{"text_format":"3","workbook":"xlsx","n_sheets":11,"sheets":["Summary","B1","B2","B3","B4","B5","B6","B7","B8","B9","B10"],"not_rendered":{"defined_names":19},"read":"whole","date_system":"1900"}

{"sheet":"Summary","index":0,"n_rows":42,"n_cols":3,"rows_kept":42,"merged":[[0,0,0,2],[29,0,29,2]]}
["SUMMARY OF BILLS"]
["BILL NO","DESCRIPTION","AMOUNT"]
["I1","CONTRACTOR NAME"]
[]
["B1","BLOCK A FAN COIL UNITS               ",{"$f":"'B1'!H514","v":0}]
[]
["B2","BLOCK B FAN COIL UNITS               ",{"$f":"'B2'!H264","v":0}]
[]
["B3","BLOCK D FAN COIL UNITS               ",{"$f":"'B3'!H627","v":0}]
[]
["B4","BLOCK E FAN COIL UNITS               ",{"$f":"'B4'!H239","v":0}]
[]
["B5","BLOCK F FAN COIL UNITS               ",{"$f":"'B5'!H360","v":0}]
[]
["B6","BLOCK G FAN COIL UNITS               ",{"$f":"'B6'!H204","v":0}]
[]
["B7","BLOCK GH FAN COIL UNITS               ",{"$f":"'B7'!H452","v":0}]
[]
["B8","BLOCK H FAN COIL UNITS               ",{"$f":"'B8'!H181","v":0}]
[]
["B9","EXTRACT AIR SYSTEM",{"$f":"'B9'!E176","v":0}]
[]
["B10","MISCELLANEOUS",{"$f":"'B10'!D35","v":0}]
[]
[11,"TOTAL EXCLUDING VAT",{"$f":"SUM(C5:C23)","v":0}]
[]
[12,"CONTIGENCY ( 15%)",{"$f":"C25*15%","v":0}]
[13,"VAT 15%",{"$f":"(C25+C27)*15%","v":0}]
[14,"TOTAL TENDER PRICE",{"$f":"SUM(C25:C28)","v":0}]
[]
[]
[]
["TENDERER SIGNATURE:                                                          "]
[]
[]
["NAME:"]
[]
[]
["TEL/FAX NO'S:"]
[]
[]
["DATE:"]

{"sheet":"B1","index":1,"n_rows":514,"n_cols":8,"rows_kept":514,"merged":[[0,4,0,7]]}
[{"$nulls":4},"BILL NO 1: BLOCK A FAN COIL UNIT SUPPLY, COMMISSION & INSTALLATION"]
[{"$nulls":4},"DESCRIPTION","SUPPLY \nRATE","INSTALLATION RATE","AMOUNT"]
[{"$nulls":4},"FAN COIL UNITS "]
["g",null,null,"1","GROUND FLOOR"]
["g","HA 1",null,"1.1","IU.A.0.01 (1 OF 28)",null,null,{"$f":"SUM(F6:F9)+SUM(G6:G9)","v":0}]
["g","HA 1",null,"1.1.1","Fan Coil Air-Conditioning Unit (incl Valve, Controller, Heater)",0,0]
["g","HA 1",null,"1.1.2","Chilled Water & Condensate Piping connections ",0,0]
["g","HA 1",null,"1.1.3","RAG c/w plenum box",0,0]
["g","HA 1",null,"1.1.4","Ducting including transformation piece, insulation, Diffusers (existing).",0,0]
["g","HA 1"]
["g","HA 1",null,"1.2","IU.A.0.02  (2 OF 28)",null,null,{"$f":"SUM(F12:F15)+SUM(G12:G15)","v":0}]
["g","HA 1",null,"1.2.1","Fan Coil Air-Conditioning Unit (incl Valve, Controller, Heater)",0,0]
["g","HA 1",null,"1.2.2","Chilled Water & Condensate Piping connections ",0,0]
["g","HA 1",null,"1.2.3","RAG c/w plenum box",0,0]
["g","HA 1",null,"1.2.4","Ducting including transformation piece, insulation, Diffusers (existing).",0,0]
["g","HA 1"]
["g","HA 1",null,"1.3","IU.A.0.03 (3 OF 28)",null,null,{"$f":"SUM(F18:F21)+SUM(G18:G21)","v":0}]
["g","HA 1",null,"1.3.1","Fan Coil Air-Conditioning Unit (incl Valve, Controller, Heater)",0,0]
["g","HA 1",null,"1.3.2","Chilled Water & Condensate Piping connections ",0,0]
["g","HA 1",null,"1.3.3","RAG c/w plenum box",0,0]
["g","HA 1",null,"1.3.4","Ducting including transformation piece, insulation, Diffusers (existing).",0,0]
["g","HA 1"]
["g","HA 1",null,"1.4","IU.A.0.04 (4 OF 28)",null,null,{"$f":"SUM(F24:F27)+SUM(G24:G27)","v":0}]
["g","HA 1",null,"1.4.1","Fan Coil Air-Conditioning Unit (incl Valve, Controller, Heater)",0,0]
["g","HA 1",null,"1.4.2","Chilled Water & Condensate Piping connections ",0,0]
["g","HA 1",null,"1.4.3","RAG c/w plenum box",0,0]
["g","HA 1",null,"1.4.4","Ducting including transformation piece, insulation, Diffusers (existing).",0,0]
["g","HA 1"]
["g","HA 1",null,"1.5","IU.A.0.05 (5 OF 28)",null,null,{"$f":"SUM(F30:F33)+SUM(G30:G33)","v":0}]
["g","HA 1",null,"1.5.1","Fan Coil Air-Conditioning Unit (incl Valve, Controller, Heater)",0,0]
["g","HA 1",null,"1.5.2","Chilled Water & Condensate Piping connections ",0,0]
["g","HA 1",null,"1.5.3","RAG c/w plenum box",0,0]
["g","HA 1",null,"1.5.4","Ducting including transformation piece, insulation, Diffusers (existing).",0,0]
[]
["g","CA 1",null,"1.6","IU.A.0.06 (6 OF 28)",null,null,{"$f":"SUM(F36:F39)+SUM(G36:G39)","v":0}]
["g","CA 1",null,"1.6.1","Fan Coil Air-Conditioning Unit (incl Valve, Controller, Heater)",0,0]
["g","CA 1",null,"1.6.2","Chilled Water & Condensate Piping connections ",0,0]
[{"$nulls":3},"1.6.3","RAG c/w plenum box",0,0]
[{"$nulls":3},"1.6.4","Ducting including transformation piece, insulation, Diffusers (existing).",0,0]
[]
[{"$nulls":3},"1.7","IU.A.0.07 (7 OF 28)",null,null,{"$f":"SUM(F42:F45)+SUM(G42:G45)","v":0}]
[{"$nulls":3},"1.7.1","Fan Coil Air-Conditioning Unit (incl Valve, Controller, Heater)",0,0]
[{"$nulls":3},"1.7.2","Chilled Water & Condensate Piping connections ",0,0]
[{"$nulls":3},"1.7.3","RAG c/w plenum box",0,0]
[{"$nulls":3},"1.7.4","Ducting including transformation piece, insulation, Diffusers (existing).",0,0]
[]
[{"$nulls":3},"1.8","IU.A.0.08 (8 OF 28)",null,null,{"$f":"SUM(F48:F51)+SUM(G48:G51)","v":0}]
[{"$nulls":3},"1.8.1","Fan Coil Air-Conditioning Unit (incl Valve, Controller, Heater)",0,0]
[{"$nulls":3},"1.8.2","Chilled Water & Condensate Piping connections ",0,0]
[{"$nulls":3},"1.8.3","RAG c/w plenum box",0,0]
[{"$nulls":3},"1.8.4","Ducting including transformation piece, insulation, Diffusers (existing).",0,0]
[]
[{"$nulls":3},"1.9","IU.A.0.09 (9 OF 28)",null,null,{"$f":"SUM(F54:F57)+SUM(G54:G57)","v":0}]
[{"$nulls":3},"1.9.1","Fan Coil Air-Conditioning Unit (incl Valve, Controller, Heater)",0,0]
[{"$nulls":3},"1.9.2","Chilled Water & Condensate Piping connections ",0,0]
[{"$nulls":3},"1.9.3","RAG c/w plenum box",0,0]
[{"$nulls":3},"1.9.4","Ducting including transformation piece, insulation, Diffusers (existing).",0,0]
[]
[{"$nulls":3},"1.10","IU.A.0.10 (10 OF 28)",null,null,{"$f":"SUM(F60:F63)+SUM(G60:G63)","v":0}]
[{"$nulls":3},"1.10.1","Fan Coil Air-Conditioning Unit (incl Valve, Controller, Heater)",0,0]
[{"$nulls":3},"1.10.2","Chilled Water & Condensate Piping connections ",0,0]
[{"$nulls":3},"1.10.3","RAG c/w plenum box",0,0]
[{"$nulls":3},"1.10.4","Ducting including transformation piece, insulation, Diffusers (existing).",0,0]
[]
[{"$nulls":3},"1.11","IU.A.0.11 (11 OF 28)",null,null,{"$f":"SUM(F66:F69)+SUM(G66:G69)","v":0}]
[{"$nulls":3},"1.11.1","Fan Coil Air-Conditioning Unit (incl Valve, Controller, Heater)",0,0]
[{"$nulls":3},"1.11.2","Chilled Water & Condensate Piping connections ",0,0]
[{"$nulls":3},"1.11.3","RAG c/w plenum box",0,0]
[{"$nulls":3},"1.11.4","Ducting including transformation piece, insulation, Diffusers (existing).",0,0]
[]
[{"$nulls":3},"1.12","IU.A.0.12 (12 OF 28)",null,null,{"$f":"SUM(F72:F75)+SUM(G72:G75)","v":0}]
[{"$nulls":3},"1.12.1","Fan Coil Air-Conditioning Unit (incl Valve, Controller, Heater)",0,0]
[{"$nulls":3},"1.12.2","Chilled Water & Condensate Piping connections ",0,0]
[{"$nulls":3},"1.12.3","RAG c/w plenum box",0,0]
[{"$nulls":3},"1.12.4","Ducting including transformation piece, insulation, Diffusers (existing).",0,0]
[]
[{"$nulls":3},"1.13","IU.A.0.13 (13 OF 28)",null,null,{"$f":"SUM(F78:F81)+SUM(G78:G81)","v":0}]
[{"$nulls":3},"1.13.1","Fan Coil Air-Conditioning Unit (incl Valve, Controller, Heater)",0,0]
[{"$nulls":3},"1.13.2","Chilled Water & Condensate Piping connections ",0,0]
[{"$nulls":3},"1.13.3","RAG c/w plenum box",0,0]
[{"$nulls":3},"1.13.4","Ducting including transformation piece, insulation, Diffusers (existing).",0,0]
[]
[{"$nulls":3},"1.14","IU.A.0.14 (14 OF 28)",null,null,{"$f":"SUM(F84:F87)+SUM(G84:G87)","v":0}]
[{"$nulls":3},"1.14.1","Fan Coil Air-Conditioning Unit (incl Valve, Controller, Heater)",0,0]
[{"$nulls":3},"1.14.2","Chilled Water & Condensate Piping connections ",0,0]
[{"$nulls":3},"1.14.3","RAG c/w plenum box",0,0]
[{"$nulls":3},"1.14.4","Ducting including transformation piece, insulation, Diffusers (existing).",0,0]
[]
[{"$nulls":3},"1.15","IU.A.0.15 (15 OF 28)",null,null,{"$f":"SUM(F90:F93)+SUM(G90:G93)","v":0}]
[{"$nulls":3},"1.15.1","Fan Coil Air-Conditioning Unit (incl Valve, Controller, Heater)",0,0]
[{"$nulls":3},"1.15.2","Chilled Water & Condensate Piping connections ",0,0]
[{"$nulls":3},"1.15.3","RAG c/w plenum box",0,0]
[{"$nulls":3},"1.15.4","Ducting including transformation piece, insulation, Diffusers (existing).",0,0]
[]
[{"$nulls":3},"1.16","IU.A.0.16 (16 OF 28)",null,null,{"$f":"SUM(F96:F99)+SUM(G96:G99)","v":0}]
[{"$nulls":3},"1.16.1","Fan Coil Air-Conditioning Unit (incl Valve, Controller, Heater)",0,0]
[{"$nulls":3},"1.16.2","Chilled Water & Condensate Piping connections ",0,0]
[{"$nulls":3},"1.16.3","RAG c/w plenum box",0,0]
[{"$nulls":3},"1.16.4","Ducting including transformation piece, insulation, Diffusers (existing).",0,0]
[]
[{"$nulls":3},"1.17","IU.A.0.17 (17 OF 28)",null,null,{"$f":"SUM(F102:F105)+SUM(G102:G105)","v":0}]
[{"$nulls":3},"1.17.1","Fan Coil Air-Conditioning Unit (incl Valve, Controller, Heater)",0,0]
[{"$nulls":3},"1.17.2","Chilled Water & Condensate Piping connections ",0,0]
[{"$nulls":3},"1.17.3","RAG c/w plenum box",0,0]
[{"$nulls":3},"1.17.4","Ducting including transformation piece, insulation, Diffusers (existing).",0,0]
[]
[{"$nulls":3},"1.18","IU.A.0.18 (18 OF 28)",null,null,{"$f":"SUM(F108:F111)+SUM(G108:G111)","v":0}]
[{"$nulls":3},"1.18.1","Fan Coil Air-Conditioning Unit (incl Valve, Controller, Heater)",0,0]
[{"$nulls":3},"1.18.2","Chilled Water & Condensate Piping connections ",0,0]
[{"$nulls":3},"1.18.3","RAG c/w plenum box",0,0]
[{"$nulls":3},"1.18.4","Ducting including transformation piece, insulation, Diffusers (existing).",0,0]
[]
[{"$nulls":3},"1.19","IU.A.0.19 (19 OF 28)",null,null,{"$f":"SUM(F114:F117)+SUM(G114:G117)","v":0}]
[{"$nulls":3},"1.19.1","Fan Coil Air-Conditioning Unit (incl Valve, Controller, Heater)",0,0]
[{"$nulls":3},"1.19.2","Chilled Water & Condensate Piping connections ",0,0]
[{"$nulls":3},"1.19.3","RAG c/w plenum box",0,0]
[{"$nulls":3},"1.19.4","Ducting including transformation piece, insulation, Diffusers (existing).",0,0]
[]
[{"$nulls":3},"1.20","IU.A.0.20 (20 OF 28)",null,null,{"$f":"SUM(F120:F123)+SUM(G120:G123)","v":0}]
[{"$nulls":3},"1.20.1","Fan Coil Air-Conditioning Unit (incl Valve, Controller, Heater)",0,0]
[{"$nulls":3},"1.20.2","Chilled Water & Condensate Piping connections ",0,0]
[{"$nulls":3},"1.20.3","RAG c/w plenum box",0,0]
[{"$nulls":3},"1.20.4","Ducting including transformation piece, insulation, Diffusers (existing).",0,0]
[]
[{"$nulls":3},"1.21","IU.A.0.21 (21 OF 28)",null,null,{"$f":"SUM(F126:F129)+SUM(G126:G129)","v":0}]
[{"$nulls":3},"1.21.1","Fan Coil Air-Conditioning Unit (incl Valve, Controller, Heater)",0,0]
[{"$nulls":3},"1.21.2","Chilled Water & Condensate Piping connections ",0,0]
[{"$nulls":3},"1.21.3","RAG c/w plenum box",0,0]
[{"$nulls":3},"1.21.4","Ducting including transformation piece, insulation, Diffusers (existing).",0,0]
[]
[{"$nulls":3},"1.22","IU.A.0.22 (22 OF 28)",null,null,{"$f":"SUM(F132:F135)+SUM(G132:G135)","v":0}]
[{"$nulls":3},"1.22.1","Fan Coil Air-Conditioning Unit (incl Valve, Controller, Heater)",0,0]
[{"$nulls":3},"1.22.2","Chilled Water & Condensate Piping connections ",0,0]
[{"$nulls":3},"1.22.3","RAG c/w plenum box",0,0]
[{"$nulls":3},"1.22.4","Ducting including transformation piece, insulation, Diffusers (existing).",0,0]
[]
[{"$nulls":3},"1.23","IU.A.0.23 (23 OF 28)",null,null,{"$f":"SUM(F138:F141)+SUM(G138:G141)","v":0}]
[{"$nulls":3},"1.23.1","Fan Coil Air-Conditioning Unit (incl Valve, Controller, Heater)",0,0]
[{"$nulls":3},"1.23.2","Chilled Water & Condensate Piping connections ",0,0]
[{"$nulls":3},"1.23.3","RAG c/w plenum box",0,0]
[{"$nulls":3},"1.23.4","Ducting including transformation piece, insulation, Diffusers (existing).",0,0]
[]
[{"$nulls":3},"1.24","IU.A.0.24 (24 OF 28)",null,null,{"$f":"SUM(F144:F147)+SUM(G144:G147)","v":0}]
[{"$nulls":3},"1.24.1","Fan Coil Air-Conditioning Unit (incl Valve, Controller, Heater)",0,0]
[{"$nulls":3},"1.24.2","Chilled Water & Condensate Piping connections ",0,0]
[{"$nulls":3},"1.24.3","RAG c/w plenum box",0,0]
[{"$nulls":3},"1.24.4","Ducting including transformation piece, insulation, Diffusers (existing).",0,0]
[]
[{"$nulls":3},"1.25","IU.A.0.25 (25 OF 28)",null,null,{"$f":"SUM(F150:F153)+SUM(G150:G153)","v":0}]
[{"$nulls":3},"1.25.1","Fan Coil Air-Conditioning Unit (incl Valve, Controller, Heater)",0,0]
[{"$nulls":3},"1.25.2","Chilled Water & Condensate Piping connections ",0,0]
[{"$nulls":3},"1.25.3","RAG c/w plenum box",0,0]
[{"$nulls":3},"1.25.4","Ducting including transformation piece, insulation, Diffusers (existing).",0,0]
[]
[{"$nulls":3},"1.26","IU.A.0.26 (26 OF 28)",null,null,{"$f":"SUM(F156:F159)+SUM(G156:G159)","v":0}]
[{"$nulls":3},"1.26.1","Fan Coil Air-Conditioning Unit (incl Valve, Controller, Heater)",0,0]
[{"$nulls":3},"1.26.2","Chilled Water & Condensate Piping connections ",0,0]
[{"$nulls":3},"1.26.3","RAG c/w plenum box",0,0]
[{"$nulls":3},"1.26.4","Ducting including transformation piece, insulation, Diffusers (existing).",0,0]
["g","OU1"]
["g","OU1",null,"1.27","IU.A.0.27 (27 OF 28)",null,null,{"$f":"SUM(F162:F165)+SUM(G162:G165)","v":0}]
["g","OU1",null,"1.27.1","Fan Coil Air-Conditioning Unit (incl Valve, Controller, Heater)",0,0]
["g",null,null,"1.27.2","Chilled Water & Condensate Piping connections ",0,0]
[1,null,null,"1.27.3","RAG c/w plenum box",0,0]
[1,null,null,"1.27.4","Ducting including transformation piece, insulation, Diffusers (existing).",0,0]
[1,"HA 1"]
[1,"HA 1",null,"1.28","IU.A.0.28 (28 OF 28)",null,null,{"$f":"SUM(F168:F171)+SUM(G168:G171)","v":0}]
[1,"HA 1",null,"1.28.1","Fan Coil Air-Conditioning Unit (incl Valve, Controller, Heater)",0,0]
[1,"HA 1",null,"1.28.2","Chilled Water & Condensate Piping connections ",0,0]
[1,"HA 1",null,"1.28.3","RAG c/w plenum box",0,0]
[1,"HA 1",null,"1.28.4","Ducting including transformation piece, insulation, Diffusers (existing).",0,0]
[1,"HA 1"]
[1,"HA 1",null,"1.29","Drain Piping",null,null,{"$f":"SUM(F174+G174)","v":0}]
[1,"HA 1",null,"1.29.1","UPVC Drain piping c/w all bends, P-traps and outlets",0,0]
[1,"HA 1",null,null,"SUB TOTAL ITEM 1",null,null,{"$f":"SUM(H4:H174)","v":0}]
[1,"HA 1",null,"2","FIRST FLOOR"]
[1,"HA 1",null,"2.1","IU.A.1.01 (1 OF 30)",null,null,{"$f":"SUM(F178:F181)+SUM(G178:G181)","v":0}]
[1,"HA 1",null,"2.1.1","Fan Coil Air-Conditioning Unit (incl Valve, Controller, Heater)",0,0]
[1,"HA 1",null,"2.1.2","Chilled Water & Condensate Piping connections ",0,0]
[1,"HA 1",null,"2.1.3","RAG c/w plenum box",0,0]
[1,"HA 1",null,"2.1.4","Ducting including transformation piece, insulation, Diffusers (existing).",0,0]
[]
[{"$nulls":3},"2.2","IU.A.1.02  (2 OF 30)",null,null,{"$f":"SUM(F184:F187)+SUM(G184:G187)","v":0}]
[{"$nulls":3},"2.2.1","Fan Coil Air-Conditioning Unit (incl Valve, Controller, Heater)",0,0]
[{"$nulls":3},"2.2.2","Chilled Water & Condensate Piping connections ",0,0]
[{"$nulls":3},"2.2.3","RAG c/w plenum box",0,0]
[{"$nulls":3},"2.2.4","Ducting including transformation piece, insulation, Diffusers (existing).",0,0]
[]
[{"$nulls":3},"2.3","IU.A.1.03 (3 OF 30)",null,null,{"$f":"SUM(F190:F193)+SUM(G190:G193)","v":0}]
[{"$nulls":3},"2.3.1","Fan Coil Air-Conditioning Unit (incl Valve, Controller, Heater)",0,0]
[{"$nulls":3},"2.3.2","Chilled Water & Condensate Piping connections ",0,0]
[{"$nulls":3},"2.3.3","RAG c/w plenum box",0,0]
[{"$nulls":3},"2.3.4","Ducting including transformation piece, insulation, Diffusers (existing).",0,0]
[]
[{"$nulls":3},"2.4","IU.A.1.04 (4 OF 30)",null,null,{"$f":"SUM(F196:F199)+SUM(G196:G199)","v":0}]
[{"$nulls":3},"2.4.1","Fan Coil Air-Conditioning Unit (incl Valve, Controller, Heater)",0,0]
[{"$nulls":3},"2.4.2","Chilled Water & Condensate Piping connections ",0,0]
[{"$nulls":3},"2.4.3","RAG c/w plenum box",0,0]
[{"$nulls":3},"2.4.4","Ducting including transformation piece, insulation, Diffusers (existing).",0,0]
[]
[{"$nulls":3},"2.5","IU.A.1.05 (5 OF 30)",null,null,{"$f":"SUM(F202:F205)+SUM(G202:G205)","v":0}]
[{"$nulls":3},"2.5.1","Fan Coil Air-Conditioning Unit (incl Valve, Controller, Heater)",0,0]
[{"$nulls":3},"2.5.2","Chilled Water & Condensate Piping connections ",0,0]
[{"$nulls":3},"2.5.3","RAG c/w plenum box",0,0]
[{"$nulls":3},"2.5.4","Ducting including transformation piece, insulation, Diffusers (existing).",0,0]
[]
[{"$nulls":3},"2.6","IU.A.1.06 (6 OF 30)",null,null,{"$f":"SUM(F208:F211)+SUM(G208:G211)","v":0}]
[{"$nulls":3},"2.6.1","Fan Coil Air-Conditioning Unit (incl Valve, Controller, Heater)",0,0]
[{"$nulls":3},"2.6.2","Chilled Water & Condensate Piping connections ",0,0]
[{"$nulls":3},"2.6.3","RAG c/w plenum box",0,0]
[{"$nulls":3},"2.6.4","Ducting including transformation piece, insulation, Diffusers (existing).",0,0]
[]
[{"$nulls":3},"2.7","IU.A.1.07 (7 OF 30)",null,null,{"$f":"SUM(F214:F217)+SUM(G214:G217)","v":0}]
[{"$nulls":3},"2.7.1","Fan Coil Air-Conditioning Unit (incl Valve, Controller, Heater)",0,0]
[{"$nulls":3},"2.7.2","Chilled Water & Condensate Piping connections ",0,0]
[{"$nulls":3},"2.7.3","RAG c/w plenum box",0,0]
[{"$nulls":3},"2.7.4","Ducting including transformation piece, insulation, Diffusers (existing).",0,0]
[]
[{"$nulls":3},"2.8","IU.A.1.08 (8 OF 30)",null,null,{"$f":"SUM(F220:F223)+SUM(G220:G223)","v":0}]
[{"$nulls":3},"2.8.1","Fan Coil Air-Conditioning Unit (incl Valve, Controller, Heater)",0,0]
[{"$nulls":3},"2.8.2","Chilled Water & Condensate Piping connections ",0,0]
[{"$nulls":3},"2.8.3","RAG c/w plenum box",0,0]
[{"$nulls":3},"2.8.4","Ducting including transformation piece, insulation, Diffusers (existing).",0,0]
[]
[{"$nulls":3},"2.9","IU.A.1.09 (9 OF 30)",null,null,{"$f":"SUM(F226:F229)+SUM(G226:G229)","v":0}]
[{"$nulls":3},"2.9.1","Fan Coil Air-Conditioning Unit (incl Valve, Controller, Heater)",0,0]
[{"$nulls":3},"2.9.2","Chilled Water & Condensate Piping connections ",0,0]
[{"$nulls":3},"2.9.3","RAG c/w plenum box",0,0]
[{"$nulls":3},"2.9.4","Ducting including transformation piece, insulation, Diffusers (existing).",0,0]
[]
[{"$nulls":3},"2.10","IU.A.1.10 (10 OF 30)",null,null,{"$f":"SUM(F232:F235)+SUM(G232:G235)","v":0}]
[{"$nulls":3},"2.10.1","Fan Coil Air-Conditioning Unit (incl Valve, Controller, Heater)",0,0]
[{"$nulls":3},"2.10.2","Chilled Water & Condensate Piping connections ",0,0]
[{"$nulls":3},"2.10.3","RAG c/w plenum box",0,0]
[{"$nulls":3},"2.10.4","Ducting including transformation piece, insulation, Diffusers (existing).",0,0]
[]
[{"$nulls":3},"2.11","IU.A.1.11 (11 OF 30)",null,null,{"$f":"SUM(F238:F241)+SUM(G238:G241)","v":0}]
[{"$nulls":3},"2.11.1","Fan Coil Air-Conditioning Unit (incl Valve, Controller, Heater)",0,0]
[{"$nulls":3},"2.11.2","Chilled Water & Condensate Piping connections ",0,0]
[{"$nulls":3},"2.11.3","RAG c/w plenum box",0,0]
[{"$nulls":3},"2.11.4","Ducting including transformation piece, insulation, Diffusers (existing).",0,0]
[]
[{"$nulls":3},"2.12","IU.A.1.12 (12 OF 30)",null,null,{"$f":"SUM(F244:F247)+SUM(G244:G247)","v":0}]
[{"$nulls":3},"2.12.1","Fan Coil Air-Conditioning Unit (incl Valve, Controller, Heater)",0,0]
[{"$nulls":3},"2.12.2","Chilled Water & Condensate Piping connections ",0,0]
[{"$nulls":3},"2.12.3","RAG c/w plenum box",0,0]
[{"$nulls":3},"2.12.4","Ducting including transformation piece, insulation, Diffusers (existing).",0,0]
[]
[{"$nulls":3},"2.13","IU.A.1.13 (13 OF 30)",null,null,{"$f":"SUM(F250:F253)+SUM(G250:G253)","v":0}]
[{"$nulls":3},"2.13.1","Fan Coil Air-Conditioning Unit (incl Valve, Controller, Heater)",0,0]
[{"$nulls":3},"2.13.2","Chilled Water & Condensate Piping connections ",0,0]
[{"$nulls":3},"2.13.3","RAG c/w plenum box",0,0]
[{"$nulls":3},"2.13.4","Ducting including transformation piece, insulation, Diffusers (existing).",0,0]
[]
[{"$nulls":3},"2.14","IU.A.1.14 (14 OF 30)",null,null,{"$f":"SUM(F256:F259)+SUM(G256:G259)","v":0}]
[{"$nulls":3},"2.14.1","Fan Coil Air-Conditioning Unit (incl Valve, Controller, Heater)",0,0]
[{"$nulls":3},"2.14.2","Chilled Water & Condensate Piping connections ",0,0]
[{"$nulls":3},"2.14.3","RAG c/w plenum box",0,0]
[{"$nulls":3},"2.14.4","Ducting including transformation piece, insulation, Diffusers (existing).",0,0]
[]
[{"$nulls":3},"2.15","IU.A.1.15 (15 OF 30)",null,null,{"$f":"SUM(F262:F265)+SUM(G262:G265)","v":0}]
[{"$nulls":3},"2.15.1","Fan Coil Air-Conditioning Unit (incl Valve, Controller, Heater)",0,0]
[{"$nulls":3},"2.15.2","Chilled Water & Condensate Piping connections ",0,0]
[{"$nulls":3},"2.15.3","RAG c/w plenum box",0,0]
[{"$nulls":3},"2.15.4","Ducting including transformation piece, insulation, Diffusers (existing).",0,0]
[]
[{"$nulls":3},"2.16","IU.A.1.16 (16 OF 30)",null,null,{"$f":"SUM(F268:F271)+SUM(G268:G271)","v":0}]
[{"$nulls":3},"2.16.1","Fan Coil Air-Conditioning Unit (incl Valve, Controller, Heater)",0,0]
[{"$nulls":3},"2.16.2","Chilled Water & Condensate Piping connections ",0,0]
[{"$nulls":3},"2.16.3","RAG c/w plenum box",0,0]
[{"$nulls":3},"2.16.4","Ducting including transformation piece, insulation, Diffusers (existing).",0,0]
[]
[{"$nulls":3},"217","IU.A.1.17 (17 OF 30)",null,null,{"$f":"SUM(F274:F277)+SUM(G274:G277)","v":0}]
[{"$nulls":3},"2.17.1","Fan Coil Air-Conditioning Unit (incl Valve, Controller, Heater)",0,0]
[{"$nulls":3},"2.17.2","Chilled Water & Condensate Piping connections ",0,0]
[{"$nulls":3},"2.17.3","RAG c/w plenum box",0,0]
[{"$nulls":3},"2.17.4","Ducting including transformation piece, insulation, Diffusers (existing).",0,0]
[]
[{"$nulls":3},"2.18","IU.A.1.18 (18 OF 30)",null,null,{"$f":"SUM(F280:F283)+SUM(G280:G283)","v":0}]
[{"$nulls":3},"2.18.1","Fan Coil Air-Conditioning Unit (incl Valve, Controller, Heater)",0,0]
[{"$nulls":3},"2.18.2","Chilled Water & Condensate Piping connections ",0,0]
[{"$nulls":3},"2.18.3","RAG c/w plenum box",0,0]
[{"$nulls":3},"2.18.4","Ducting including transformation piece, insulation, Diffusers (existing).",0,0]
[]
[{"$nulls":3},"2.19","IU.A.1.19 (19 OF 30)",null,null,{"$f":"SUM(F286:F289)+SUM(G286:G289)","v":0}]
[{"$nulls":3},"2.19.1","Fan Coil Air-Conditioning Unit (incl Valve, Controller, Heater)",0,0]
[{"$nulls":3},"2.19.2","Chilled Water & Condensate Piping connections ",0,0]
[{"$nulls":3},"2.19.3","RAG c/w plenum box",0,0]
[{"$nulls":3},"2.19.4","Ducting including transformation piece, insulation, Diffusers (existing).",0,0]
[]
[{"$nulls":3},"2.20","IU.A.1.20 (20 OF 30)",null,null,{"$f":"SUM(F292:F295)+SUM(G292:G295)","v":0}]
[{"$nulls":3},"2.20.1","Fan Coil Air-Conditioning Unit (incl Valve, Controller, Heater)",0,0]
[{"$nulls":3},"2.21.2","Chilled Water & Condensate Piping connections ",0,0]
[{"$nulls":3},"2.21.3","RAG c/w plenum box",0,0]
[{"$nulls":3},"2.21.4","Ducting including transformation piece, insulation, Diffusers (existing).",0,0]
[]
[{"$nulls":3},"2.21","IU.A.1.21 (21 OF 30)",null,null,{"$f":"SUM(F298:F301)+SUM(G298:G301)","v":0}]
[{"$nulls":3},"2.21.1","Fan Coil Air-Conditioning Unit (incl Valve, Controller, Heater)",0,0]
[{"$nulls":3},"2.21.2","Chilled Water & Condensate Piping connections ",0,0]
[{"$nulls":3},"2.21.3","RAG c/w plenum box",0,0]
[{"$nulls":3},"2.21.4","Ducting including transformation piece, insulation, Diffusers (existing).",0,0]
[]
[{"$nulls":3},"2.22","IU.A.1.22 (22 OF 30)",null,null,{"$f":"SUM(F304:F307)+SUM(G304:G307)","v":0}]
[{"$nulls":3},"2.22.1","Fan Coil Air-Conditioning Unit (incl Valve, Controller, Heater)",0,0]
[{"$nulls":3},"2.22.2","Chilled Water & Condensate Piping connections ",0,0]
[{"$nulls":3},"2.22.3","RAG c/w plenum box",0,0]
[{"$nulls":3},"2.22.4","Ducting including transformation piece, insulation, Diffusers (existing).",0,0]
[]
[{"$nulls":3},"2.23","IU.A.1.23 (23 OF 30)",null,null,{"$f":"SUM(F310:F313)+SUM(G310:G313)","v":0}]
[{"$nulls":3},"2.23.1","Fan Coil Air-Conditioning Unit (incl Valve, Controller, Heater)",0,0]
[{"$nulls":3},"2.23.2","Chilled Water & Condensate Piping connections ",0,0]
[{"$nulls":3},"2.23.3","RAG c/w plenum box",0,0]
[{"$nulls":3},"2.23.4","Ducting including transformation piece, insulation, Diffusers (existing).",0,0]
[]
[{"$nulls":3},"2.24","IU.A.1.24 (24 OF 30)",null,null,{"$f":"SUM(F316:F319)+SUM(G316:G319)","v":0}]
[{"$nulls":3},"2.24.1","Fan Coil Air-Conditioning Unit (incl Valve, Controller, Heater)",0,0]
[{"$nulls":3},"2.24.2","Chilled Water & Condensate Piping connections ",0,0]
[{"$nulls":3},"2.24.3","RAG c/w plenum box",0,0]
[{"$nulls":3},"2.24.4","Ducting including transformation piece, insulation, Diffusers (existing).",0,0]
[]
[{"$nulls":3},"2.25","IU.A.1.25 (25 OF 30)",null,null,{"$f":"SUM(F322:F325)+SUM(G322:G325)","v":0}]
[{"$nulls":3},"2.25.1","Fan Coil Air-Conditioning Unit (incl Valve, Controller, Heater)",0,0]
[{"$nulls":3},"2.25.2","Chilled Water & Condensate Piping connections ",0,0]
[{"$nulls":3},"2.25.3","RAG c/w plenum box",0,0]
[{"$nulls":3},"2.25.4","Ducting including transformation piece, insulation, Diffusers (existing).",0,0]
[]
[{"$nulls":3},"2.26","IU.A.1.26 (26 OF 30)",null,null,{"$f":"SUM(F328:F331)+SUM(G328:G331)","v":0}]
[{"$nulls":3},"2.26.1","Fan Coil Air-Conditioning Unit (incl Valve, Controller, Heater)",0,0]
[{"$nulls":3},"2.26.2","Chilled Water & Condensate Piping connections ",0,0]
[{"$nulls":3},"2.26.3","RAG c/w plenum box",0,0]
[{"$nulls":3},"2.26.4","Ducting including transformation piece, insulation, Diffusers (existing).",0,0]
[]
[{"$nulls":3},"2.27","IU.A.1.27 (27 OF 30)",null,null,{"$f":"SUM(F334:F337)+SUM(G334:G337)","v":0}]
[{"$nulls":3},"2.27.1","Fan Coil Air-Conditioning Unit (incl Valve, Controller, Heater)",0,0]
[{"$nulls":3},"2.27.2","Chilled Water & Condensate Piping connections ",0,0]
[{"$nulls":3},"2.27.3","RAG c/w plenum box",0,0]
[{"$nulls":3},"2.27.4","Ducting including transformation piece, insulation, Diffusers (existing).",0,0]
[]
[{"$nulls":3},"2.28","IU.A.1.28 (28 OF 30)",null,null,{"$f":"SUM(F340:F343)+SUM(G340:G343)","v":0}]
[{"$nulls":3},"2.28.1","Fan Coil Air-Conditioning Unit (incl Valve, Controller, Heater)",0,0]
[{"$nulls":3},"2.28.2","Chilled Water & Condensate Piping connections ",0,0]
[{"$nulls":3},"2.28.3","RAG c/w plenum box",0,0]
[{"$nulls":3},"2.28.4","Ducting including transformation piece, insulation, Diffusers (existing).",0,0]
[]
[{"$nulls":3},"2.29","IU.A.1.29 (29 OF 30)",null,null,{"$f":"SUM(F346:F349)+SUM(G346:G349)","v":0}]
[{"$nulls":3},"2.29.1","Fan Coil Air-Conditioning Unit (incl Valve, Controller, Heater)",0,0]
[{"$nulls":3},"2.29.2","Chilled Water & Condensate Piping connections ",0,0]
[{"$nulls":3},"2.29.3","RAG c/w plenum box",0,0]
[{"$nulls":3},"2.29.4","Ducting including transformation piece, insulation, Diffusers (existing).",0,0]
[]
[{"$nulls":3},"2.30","IU.A.1.30 (30 OF 30)",null,null,{"$f":"SUM(F352:F355)+SUM(G352:G355)","v":0}]
[{"$nulls":3},"2.30.1","Fan Coil Air-Conditioning Unit (incl Valve, Controller, Heater)",0,0]
[{"$nulls":3},"2.30.2","Chilled Water & Condensate Piping connections ",0,0]
[{"$nulls":3},"2.30.3","RAG c/w plenum box",0,0]
[{"$nulls":3},"2.30.4","Ducting including transformation piece, insulation, Diffusers (existing).",0,0]
[]
[{"$nulls":3},"2.31","Drain Piping",null,null,{"$f":"SUM(F358+G358)","v":0}]
[{"$nulls":3},"2.31.1","UPVC Drain piping c/w all bends, P-traps and outlets",0,0]
[{"$nulls":4},"SUB TOTAL ITEM 2",null,null,{"$f":"SUM(H176:H295)","v":0}]
[{"$nulls":3},"3","SECOND FLOOR"]
[{"$nulls":3},"3.1","IU.A.2.01 (1 OF 24)",null,null,{"$f":"SUM(F362:F365)+SUM(G362:G365)","v":0}]
[{"$nulls":3},"3.1.1","Fan Coil Air-Conditioning Unit (incl Valve, Controller, Heater)",0,0]
[{"$nulls":3},"3.1.2","Chilled Water & Condensate Piping connections ",0,0]
[{"$nulls":3},"3.1.3","RAG c/w plenum box",0,0]
[{"$nulls":3},"3.1.4","Ducting including transformation piece, insulation, Diffusers (existing).",0,0]
[]
[{"$nulls":3},"3.2","IU.A.2.02  (2 OF 24)",null,null,{"$f":"SUM(F368:F371)+SUM(G368:G371)","v":0}]
[{"$nulls":3},"3.2.1","Fan Coil Air-Conditioning Unit (incl Valve, Controller, Heater)",0,0]
[{"$nulls":3},"3.2.2","Chilled Water & Condensate Piping connections ",0,0]
[{"$nulls":3},"3.2.3","RAG c/w plenum box",0,0]
[{"$nulls":3},"3.2.4","Ducting including transformation piece, insulation, Diffusers (existing).",0,0]
[]
[{"$nulls":3},"3.3","IU.A.2.03 (3 OF 24)",null,null,{"$f":"SUM(F374:F377)+SUM(G374:G377)","v":0}]
[{"$nulls":3},"3.3.1","Fan Coil Air-Conditioning Unit (incl Valve, Controller, Heater)",0,0]
[{"$nulls":3},"3.3.2","Chilled Water & Condensate Piping connections ",0,0]
[{"$nulls":3},"3.3.3","RAG c/w plenum box",0,0]
[{"$nulls":3},"3.3.4","Ducting including transformation piece, insulation, Diffusers (existing).",0,0]
[]
[{"$nulls":3},"3.4","IU.A.2.04 (4 OF 24)",null,null,{"$f":"SUM(F380:F383)+SUM(G380:G383)","v":0}]
[{"$nulls":3},"3.4.1","Fan Coil Air-Conditioning Unit (incl Valve, Controller, Heater)",0,0]
[{"$nulls":3},"3.4.2","Chilled Water & Condensate Piping connections ",0,0]
[{"$nulls":3},"3.4.3","RAG c/w plenum box",0,0]
[{"$nulls":3},"3.4.4","Ducting including transformation piece, insulation, Diffusers (existing).",0,0]
[]
[{"$nulls":3},"3.5","IU.A.2.05 (5 OF 24)",null,null,{"$f":"SUM(F386:F389)+SUM(G386:G389)","v":0}]
[{"$nulls":3},"3.5.1","Fan Coil Air-Conditioning Unit (incl Valve, Controller, Heater)",0,0]
[{"$nulls":3},"3.5.2","Chilled Water & Condensate Piping connections ",0,0]
[{"$nulls":3},"3.5.3","RAG c/w plenum box",0,0]
[{"$nulls":3},"2.5.4","Ducting including transformation piece, insulation, Diffusers (existing).",0,0]
[]
[{"$nulls":3},"3.6","IU.A.2.06 (6 OF 24)",null,null,{"$f":"SUM(F392:F395)+SUM(G392:G395)","v":0}]
[{"$nulls":3},"3.6.1","Fan Coil Air-Conditioning Unit (incl Valve, Controller, Heater)",0,0]
[{"$nulls":3},"3.6.2","Chilled Water & Condensate Piping connections ",0,0]
[{"$nulls":3},"3.6.3","RAG c/w plenum box",0,0]
[{"$nulls":3},"3.6.4","Ducting including transformation piece, insulation, Diffusers (existing).",0,0]
[]
[{"$nulls":3},"3.7","IU.A.2.07 (7 OF 24)",null,null,{"$f":"SUM(F398:F401)+SUM(G398:G401)","v":0}]
[{"$nulls":3},"3.7.1","Fan Coil Air-Conditioning Unit (incl Valve, Controller, Heater)",0,0]
[{"$nulls":3},"3.7.2","Chilled Water & Condensate Piping connections ",0,0]
[{"$nulls":3},"3.7.3","RAG c/w plenum box",0,0]
[{"$nulls":3},"3.7.4","Ducting including transformation piece, insulation, Diffusers (existing).",0,0]
[]
[{"$nulls":3},"3.8","IU.A.2.08 (8 OF 24)",null,null,{"$f":"SUM(F404:F407)+SUM(G404:G407)","v":0}]
[{"$nulls":3},"3.8.1","Fan Coil Air-Conditioning Unit (incl Valve, Controller, Heater)",0,0]
[{"$nulls":3},"3.8.2","Chilled Water & Condensate Piping connections ",0,0]
[{"$nulls":3},"3.8.3","RAG c/w plenum box",0,0]
[{"$nulls":3},"3.8.4","Ducting including transformation piece, insulation, Diffusers (existing).",0,0]
[]
[{"$nulls":3},"3.9","IU.A.2.09 (9 OF 24)",null,null,{"$f":"SUM(F410:F413)+SUM(G410:G413)","v":0}]
[{"$nulls":3},"3.9.1","Fan Coil Air-Conditioning Unit (incl Valve, Controller, Heater)",0,0]
[{"$nulls":3},"3.9.2","Chilled Water & Condensate Piping connections ",0,0]
[{"$nulls":3},"3.9.3","RAG c/w plenum box",0,0]
[{"$nulls":3},"3.9.4","Ducting including transformation piece, insulation, Diffusers (existing).",0,0]
[]
[{"$nulls":3},"3.10","IU.A.2.10 (10 OF 24)",null,null,{"$f":"SUM(F416:F419)+SUM(G416:G419)","v":0}]
[{"$nulls":3},"3.10.1","Fan Coil Air-Conditioning Unit (incl Valve, Controller, Heater)",0,0]
[{"$nulls":3},"3.10.2","Chilled Water & Condensate Piping connections ",0,0]
[{"$nulls":3},"3.10.3","RAG c/w plenum box",0,0]
[{"$nulls":3},"3.10.4","Ducting including transformation piece, insulation, Diffusers (existing).",0,0]
[]
[{"$nulls":3},"3.11","IU.A.2.11 (11 OF 24)",null,null,{"$f":"SUM(F422:F425)+SUM(G422:G425)","v":0}]
[{"$nulls":3},"3.11.1","Fan Coil Air-Conditioning Unit (incl Valve, Controller, Heater)",0,0]
[{"$nulls":3},"3.11.2","Chilled Water & Condensate Piping connections ",0,0]
[{"$nulls":3},"3.11.3","RAG c/w plenum box",0,0]
[{"$nulls":3},"3.11.4","Ducting including transformation piece, insulation, Diffusers (existing).",0,0]
[]
[{"$nulls":3},"3.12","IU.A.2.12 (12 OF 24)",null,null,{"$f":"SUM(F428:F431)+SUM(G428:G431)","v":0}]
[{"$nulls":3},"3.12.1","Fan Coil Air-Conditioning Unit (incl Valve, Controller, Heater)",0,0]
[{"$nulls":3},"3.12.2","Chilled Water & Condensate Piping connections ",0,0]
[{"$nulls":3},"3.12.3","RAG c/w plenum box",0,0]
[{"$nulls":3},"3.12.4","Ducting including transformation piece, insulation, Diffusers (existing).",0,0]
[]
[{"$nulls":3},"3.13","IU.A.2.13 (13 OF 24)",null,null,{"$f":"SUM(F434:F437)+SUM(G434:G437)","v":0}]
[{"$nulls":3},"3.13.1","Fan Coil Air-Conditioning Unit (incl Valve, Controller, Heater)",0,0]
[{"$nulls":3},"3.13.2","Chilled Water & Condensate Piping connections ",0,0]
[{"$nulls":3},"3.13.3","RAG c/w plenum box",0,0]
[{"$nulls":3},"3.13.4","Ducting including transformation piece, insulation, Diffusers (existing).",0,0]
[]
[{"$nulls":3},"3.14","IU.A.2.14 (14 OF 24)",null,null,{"$f":"SUM(F440:F443)+SUM(G440:G443)","v":0}]
[{"$nulls":3},"3.14.1","Fan Coil Air-Conditioning Unit (incl Valve, Controller, Heater)",0,0]
[{"$nulls":3},"3.14.2","Chilled Water & Condensate Piping connections ",0,0]
[{"$nulls":3},"3.14.3","RAG c/w plenum box",0,0]
[{"$nulls":3},"3.14.4","Ducting including transformation piece, insulation, Diffusers (existing).",0,0]
[]
[{"$nulls":3},"3.15","IU.A.2.15 (15 OF 24)",null,null,{"$f":"SUM(F446:F449)+SUM(G446:G449)","v":0}]
[{"$nulls":3},"3.15.1","Fan Coil Air-Conditioning Unit (incl Valve, Controller, Heater)",0,0]
[{"$nulls":3},"3.15.2","Chilled Water & Condensate Piping connections ",0,0]
[{"$nulls":3},"3.15.3","RAG c/w plenum box",0,0]
[{"$nulls":3},"3.15.4","Ducting including transformation piece, insulation, Diffusers (existing).",0,0]
[]
[{"$nulls":3},"3.16","IU.A.2.16 (16 OF 24)",null,null,{"$f":"SUM(F452:F455)+SUM(G452:G455)","v":0}]
[{"$nulls":3},"3.16.1","Fan Coil Air-Conditioning Unit (incl Valve, Controller, Heater)",0,0]
[{"$nulls":3},"3.16.2","Chilled Water & Condensate Piping connections ",0,0]
[{"$nulls":3},"3.16.3","RAG c/w plenum box",0,0]
[{"$nulls":3},"3.16.4","Ducting including transformation piece, insulation, Diffusers (existing).",0,0]
[]
[{"$nulls":3},"3.17","IU.A.2.17 (17 OF 24)",null,null,{"$f":"SUM(F458:F461)+SUM(G458:G461)","v":0}]
[{"$nulls":3},"3.17.4","Fan Coil Air-Conditioning Unit (incl Valve, Controller, Heater)",0,0]
[{"$nulls":3},"3.17.5","Chilled Water & Condensate Piping connections ",0,0]
[{"$nulls":3},"3.17.6","RAG c/w plenum box",0,0]
[{"$nulls":3},"3.17.6","Ducting including transformation piece, insulation, Diffusers (existing).",0,0]
[]
[{"$nulls":3},"3.18","IU.A.2.18 (18 OF 24)",null,null,{"$f":"SUM(F464:F467)+SUM(G464:G467)","v":0}]
[{"$nulls":3},"3.18.1","Fan Coil Air-Conditioning Unit (incl Valve, Controller, Heater)",0,0]
[{"$nulls":3},"3.18.2","Chilled Water & Condensate Piping connections ",0,0]
[{"$nulls":3},"3.18.3","RAG c/w plenum box",0,0]
[{"$nulls":3},"3.18.4","Ducting including transformation piece, insulation, Diffusers (existing).",0,0]
[]
[{"$nulls":3},"3.19","IU.A.2.19 (19 OF 24)",null,null,{"$f":"SUM(F470:F473)+SUM(G470:G473)","v":0}]
[{"$nulls":3},"3.19.1","Fan Coil Air-Conditioning Unit (incl Valve, Controller, Heater)",0,0]
[{"$nulls":3},"3.19.2","Chilled Water & Condensate Piping connections ",0,0]
[{"$nulls":3},"3.19.3","RAG c/w plenum box",0,0]
[{"$nulls":3},"3.19.4","Ducting including transformation piece, insulation, Diffusers (existing).",0,0]
[]
[{"$nulls":3},"3.20","IU.A.2.20 (20 OF 24)",null,null,{"$f":"SUM(F476:F479)+SUM(G476:G479)","v":0}]
[{"$nulls":3},"3.20.1","Fan Coil Air-Conditioning Unit (incl Valve, Controller, Heater)",0,0]
[{"$nulls":3},"3.20.2","Chilled Water & Condensate Piping connections ",0,0]
[{"$nulls":3},"3.20.3","RAG c/w plenum box",0,0]
[{"$nulls":3},"3.20.4","Ducting including transformation piece, insulation, Diffusers (existing).",0,0]
[]
[{"$nulls":3},"3.21","IU.A.2.21 (21 OF 24)",null,null,{"$f":"SUM(F482:F485)+SUM(G482:G485)","v":0}]
[{"$nulls":3},"3.21.1","Fan Coil Air-Conditioning Unit (incl Valve, Controller, Heater)",0,0]
[{"$nulls":3},"3.21.2","Chilled Water & Condensate Piping connections ",0,0]
[{"$nulls":3},"3.21.3","RAG c/w plenum box",0,0]
[{"$nulls":3},"3.21.4","Ducting including transformation piece, insulation, Diffusers (existing).",0,0]
[]
[{"$nulls":3},"3.22","IU.A.2.22 (22 OF 24)",null,null,{"$f":"SUM(F488:F491)+SUM(G488:G491)","v":0}]
[{"$nulls":3},"3.22.1","Fan Coil Air-Conditioning Unit (incl Valve, Controller, Heater)",0,0]
[{"$nulls":3},"3.22.2","Chilled Water & Condensate Piping connections ",0,0]
[{"$nulls":3},"3.22.3","RAG c/w plenum box",0,0]
[{"$nulls":3},"3.22.4","Ducting including transformation piece, insulation, Diffusers (existing).",0,0]
[]
[{"$nulls":3},"3.23","IU.A.2.23 (23 OF 24)",null,null,{"$f":"SUM(F494:F497)+SUM(G494:G497)","v":0}]
[{"$nulls":3},"3.23.1","Fan Coil Air-Conditioning Unit (incl Valve, Controller, Heater)",0,0]
[{"$nulls":3},"3.23.2","Chilled Water & Condensate Piping connections ",0,0]
[{"$nulls":3},"3.23.3","RAG c/w plenum box",0,0]
[{"$nulls":3},"3.23.4","Ducting including transformation piece, insulation, Diffusers (existing).",0,0]
[]
[{"$nulls":3},"3.24","IU.A.2.24 (24 OF 24)",null,null,{"$f":"SUM(F500:F503)+SUM(G500:G503)","v":0}]
[{"$nulls":3},"3.24.1","Fan Coil Air-Conditioning Unit (incl Valve, Controller, Heater)",0,0]
[{"$nulls":3},"3.24.2","Chilled Water & Condensate Piping connections ",0,0]
[{"$nulls":3},"3.24.3","RAG c/w plenum box",0,0]
[{"$nulls":3},"3.24.4","Ducting including transformation piece, insulation, Diffusers (existing).",0,0]
[]
[{"$nulls":3},"3.25","IU.A.2.25 (25 OF 25)",null,null,{"$f":"SUM(F506:F509)+SUM(G506:G509)","v":0}]
[{"$nulls":3},"3.25.1","Fan Coil Air-Conditioning Unit (incl Valve, Controller, Heater)",0,0]
[{"$nulls":3},"3.25.2","Chilled Water & Condensate Piping connections ",0,0]
[{"$nulls":3},"3.25.3","RAG c/w plenum box",0,0]
[{"$nulls":3},"3.25.4","Ducting including transformation piece, insulation, Diffusers (existing).",0,0]
[]
[{"$nulls":3},"3.26","Drain Piping",null,null,{"$f":"SUM(F512+G512)","v":0}]
[{"$nulls":3},"3.26.1","UPVC Drain piping c/w all bends, P-traps and outlets",0,0]
[{"$nulls":4},"SUB TOTAL ITEM 3",null,null,{"$f":"SUM(H360:H512)","v":0}]
[{"$nulls":4},"SUB TOTAL ITEMS 1,2,3",null,null,{"$f":"SUM(H175,H359,H513)","v":0}]

{"sheet":"B2","index":2,"n_rows":264,"n_cols":8,"rows_kept":264,"merged":[[0,4,0,7]]}
[{"$nulls":4},"BILL NO 2: BLOCK B FAN COIL UNIT SUPPLY, COMMISSION & INSTALLATION"]
[{"$nulls":4},"DESCRIPTION","SUPPLY \nRATE","INSTALLATION RATE","AMOUNT"]
[{"$nulls":4},"FAN COIL UNITS "]
["g",null,null,"1","GROUND FLOOR"]
["g","HA 1",null,"1.1","IU.B.0.01 (1 OF 21)",null,null,{"$f":"SUM(F6:F9)+SUM(G6:G9)","v":0}]
["g","HA 1",null,"1.1.1","Fan Coil Air-Conditioning Unit (incl Valve, Controller, Heater)",0,0]
["g","HA 1",null,"1.1.2","Chilled Water & Condensate Piping connections ",0,0]
["g","HA 1",null,"1.1.3","RAG c/w plenum box",0,0]
["g","HA 1",null,"1.1.4","Ducting including transformation piece, insulation, Diffusers (existing).",0,0]
["g","HA 1"]
["g","HA 1",null,"1.2","IU.B.0.02  (2 OF 21)",null,null,{"$f":"SUM(F12:F15)+SUM(G12:G15)","v":0}]
["g","HA 1",null,"1.2.1","Fan Coil Air-Conditioning Unit (incl Valve, Controller, Heater)",0,0]
["g","HA 1",null,"1.2.2","Chilled Water & Condensate Piping connections ",0,0]
["g","HA 1",null,"1.2.3","RAG c/w plenum box",0,0]
["g","HA 1",null,"1.2.4","Ducting including transformation piece, insulation, Diffusers (existing).",0,0]
["g","HA 1"]
["g","HA 1",null,"1.3","IU.B.0.03 (3 OF 21)",null,null,{"$f":"SUM(F18:F21)+SUM(G18:G21)","v":0}]
["g","HA 1",null,"1.3.1","Fan Coil Air-Conditioning Unit (incl Valve, Controller, Heater)",0,0]
["g","HA 1",null,"1.3.2","Chilled Water & Condensate Piping connections ",0,0]
["g","HA 1",null,"1.3.3","RAG c/w plenum box",0,0]
["g","HA 1",null,"1.3.4","Ducting including transformation piece, insulation, Diffusers (existing).",0,0]
["g","HA 1"]
["g","HA 1",null,"1.4","IU.B.0.04 (4 OF 21)",null,null,{"$f":"SUM(F24:F27)+SUM(G24:G27)","v":0}]
["g","HA 1",null,"1.4.1","Fan Coil Air-Conditioning Unit (incl Valve, Controller, Heater)",0,0]
["g","HA 1",null,"1.4.2","Chilled Water & Condensate Piping connections ",0,0]
["g","HA 1",null,"1.4.3","RAG c/w plenum box",0,0]
["g","HA 1",null,"1.4.4","Ducting including transformation piece, insulation, Diffusers (existing).",0,0]
["g","HA 1"]
["g","HA 1",null,"1.5","IU.B.0.05 (5 OF 21)",null,null,{"$f":"SUM(F30:F33)+SUM(G30:G33)","v":0}]
["g","HA 1",null,"1.5.1","Fan Coil Air-Conditioning Unit (incl Valve, Controller, Heater)",0,0]
["g","HA 1",null,"1.5.2","Chilled Water & Condensate Piping connections ",0,0]
["g","HA 1",null,"1.5.3","RAG c/w plenum box",0,0]
["g","HA 1",null,"1.5.4","Ducting including transformation piece, insulation, Diffusers (existing).",0,0]
[]
["g","CA 1",null,"1.6","IU.B.0.06 (6 OF 21)",null,null,{"$f":"SUM(F36:F39)+SUM(G36:G39)","v":0}]
["g","CA 1",null,"1.6.1","Fan Coil Air-Conditioning Unit (incl Valve, Controller, Heater)",0,0]
["g","CA 1",null,"1.6.2","Chilled Water & Condensate Piping connections ",0,0]
[{"$nulls":3},"1.6.3","RAG c/w plenum box",0,0]
[{"$nulls":3},"1.6.4","Ducting including transformation piece, insulation, Diffusers (existing).",0,0]
[]
[{"$nulls":3},"1.7","IU.B.0.07 (7 OF 21)",null,null,{"$f":"SUM(F42:F45)+SUM(G42:G45)","v":0}]
[{"$nulls":3},"1.7.1","Fan Coil Air-Conditioning Unit (incl Valve, Controller, Heater)",0,0]
[{"$nulls":3},"1.7.2","Chilled Water & Condensate Piping connections ",0,0]
[{"$nulls":3},"1.7.3","RAG c/w plenum box",0,0]
[{"$nulls":3},"1.7.4","Ducting including transformation piece, insulation, Diffusers (existing).",0,0]
[]
[{"$nulls":3},"1.8","IU.B.0.08 (8 OF 21)",null,null,{"$f":"SUM(F48:F51)+SUM(G48:G51)","v":0}]
[{"$nulls":3},"1.8.1","Fan Coil Air-Conditioning Unit (incl Valve, Controller, Heater)",0,0]
[{"$nulls":3},"1.8.2","Chilled Water & Condensate Piping connections ",0,0]
[{"$nulls":3},"1.8.3","RAG c/w plenum box",0,0]
[{"$nulls":3},"1.8.4","Ducting including transformation piece, insulation, Diffusers (existing).",0,0]
[]
[{"$nulls":3},"1.9","IU.B.0.09 (9 OF 21)",null,null,{"$f":"SUM(F54:F57)+SUM(G54:G57)","v":0}]
[{"$nulls":3},"1.9.1","Fan Coil Air-Conditioning Unit (incl Valve, Controller, Heater)",0,0]
[{"$nulls":3},"1.9.2","Chilled Water & Condensate Piping connections ",0,0]
[{"$nulls":3},"1.9.3","RAG c/w plenum box",0,0]
[{"$nulls":3},"1.9.4","Ducting including transformation piece, insulation, Diffusers (existing).",0,0]
[]
[{"$nulls":3},"1.10","IU.B.0.10 (10 OF 21)",null,null,{"$f":"SUM(F60:F63)+SUM(G60:G63)","v":0}]
[{"$nulls":3},"1.10.1","Fan Coil Air-Conditioning Unit (incl Valve, Controller, Heater)",0,0]
[{"$nulls":3},"1.10.2","Chilled Water & Condensate Piping connections ",0,0]
[{"$nulls":3},"1.10.3","RAG c/w plenum box",0,0]
[{"$nulls":3},"1.10.4","Ducting including transformation piece, insulation, Diffusers (existing).",0,0]
[]
[{"$nulls":3},"1.11","IU.B.0.11 (11 OF 21)",null,null,{"$f":"SUM(F66:F69)+SUM(G66:G69)","v":0}]
[{"$nulls":3},"1.11.1","Fan Coil Air-Conditioning Unit (incl Valve, Controller, Heater)",0,0]
[{"$nulls":3},"1.11.2","Chilled Water & Condensate Piping connections ",0,0]
[{"$nulls":3},"1.11.3","RAG c/w plenum box",0,0]
[{"$nulls":3},"1.11.4","Ducting including transformation piece, insulation, Diffusers (existing).",0,0]
[]
[{"$nulls":3},"1.12","IU.B.0.12 (12 OF 21)",null,null,{"$f":"SUM(F72:F75)+SUM(G72:G75)","v":0}]
[{"$nulls":3},"1.12.1","Fan Coil Air-Conditioning Unit (incl Valve, Controller, Heater)",0,0]
[{"$nulls":3},"1.12.2","Chilled Water & Condensate Piping connections ",0,0]
[{"$nulls":3},"1.12.3","RAG c/w plenum box",0,0]
[{"$nulls":3},"1.12.4","Ducting including transformation piece, insulation, Diffusers (existing).",0,0]
[]
[{"$nulls":3},"1.13","IU.B.0.13 (13 OF 21)",null,null,{"$f":"SUM(F78:F81)+SUM(G78:G81)","v":0}]
[{"$nulls":3},"1.13.1","Fan Coil Air-Conditioning Unit (incl Valve, Controller, Heater)",0,0]
[{"$nulls":3},"1.13.2","Chilled Water & Condensate Piping connections ",0,0]
[{"$nulls":3},"1.13.3","RAG c/w plenum box",0,0]
[{"$nulls":3},"1.13.4","Ducting including transformation piece, insulation, Diffusers (existing).",0,0]
[]
[{"$nulls":3},"1.14","IU.B.0.14 (14 OF 21)",null,null,{"$f":"SUM(F84:F87)+SUM(G84:G87)","v":0}]
[{"$nulls":3},"1.14.1","Fan Coil Air-Conditioning Unit (incl Valve, Controller, Heater)",0,0]
[{"$nulls":3},"1.14.2","Chilled Water & Condensate Piping connections ",0,0]
[{"$nulls":3},"1.14.3","RAG c/w plenum box",0,0]
[{"$nulls":3},"1.14.4","Ducting including transformation piece, insulation, Diffusers (existing).",0,0]
[]
[{"$nulls":3},"1.15","IU.B.0.15 (15 OF 21)",null,null,{"$f":"SUM(F90:F93)+SUM(G90:G93)","v":0}]
[{"$nulls":3},"1.15.1","Fan Coil Air-Conditioning Unit (incl Valve, Controller, Heater)",0,0]
[{"$nulls":3},"1.15.2","Chilled Water & Condensate Piping connections ",0,0]
[{"$nulls":3},"1.15.3","RAG c/w plenum box",0,0]
[{"$nulls":3},"1.15.4","Ducting including transformation piece, insulation, Diffusers (existing).",0,0]
[]
[{"$nulls":3},"1.16","IU.B.0.16 (16 OF 21)",null,null,{"$f":"SUM(F96:F99)+SUM(G96:G99)","v":0}]
[{"$nulls":3},"1.16.1","Fan Coil Air-Conditioning Unit (incl Valve, Controller, Heater)",0,0]
[{"$nulls":3},"1.16.2","Chilled Water & Condensate Piping connections ",0,0]
[{"$nulls":3},"1.16.3","RAG c/w plenum box",0,0]
[{"$nulls":3},"1.16.4","Ducting including transformation piece, insulation, Diffusers (existing).",0,0]
[]
[{"$nulls":3},"1.17","IU.B.0.17 (17 OF 21)",null,null,{"$f":"SUM(F102:F105)+SUM(G102:G105)","v":0}]
[{"$nulls":3},"1.17.1","Fan Coil Air-Conditioning Unit (incl Valve, Controller, Heater)",0,0]
[{"$nulls":3},"1.17.2","Chilled Water & Condensate Piping connections ",0,0]
[{"$nulls":3},"1.17.3","RAG c/w plenum box",0,0]
[{"$nulls":3},"1.17.4","Ducting including transformation piece, insulation, Diffusers (existing).",0,0]
[]
[{"$nulls":3},"1.18","IU.B.0.18 (18 OF 21)",null,null,{"$f":"SUM(F108:F111)+SUM(G108:G111)","v":0}]
[{"$nulls":3},"1.18.1","Fan Coil Air-Conditioning Unit (incl Valve, Controller, Heater)",0,0]
[{"$nulls":3},"1.18.2","Chilled Water & Condensate Piping connections ",0,0]
[{"$nulls":3},"1.18.3","RAG c/w plenum box",0,0]
[{"$nulls":3},"1.18.4","Ducting including transformation piece, insulation, Diffusers (existing).",0,0]
[]
[{"$nulls":3},"1.19","IU.B.0.19 (19 OF 21)",null,null,{"$f":"SUM(F114:F117)+SUM(G114:G117)","v":0}]
[{"$nulls":3},"1.19.1","Fan Coil Air-Conditioning Unit (incl Valve, Controller, Heater)",0,0]
[{"$nulls":3},"1.19.2","Chilled Water & Condensate Piping connections ",0,0]
[{"$nulls":3},"1.19.3","RAG c/w plenum box",0,0]
[{"$nulls":3},"1.19.4","Ducting including transformation piece, insulation, Diffusers (existing).",0,0]
[]
[{"$nulls":3},"1.20","IU.B.0.20 (20 OF 21)",null,null,{"$f":"SUM(F120:F123)+SUM(G120:G123)","v":0}]
[{"$nulls":3},"1.20.1","Fan Coil Air-Conditioning Unit (incl Valve, Controller, Heater)",0,0]
[{"$nulls":3},"1.20.2","Chilled Water & Condensate Piping connections ",0,0]
[{"$nulls":3},"1.20.3","RAG c/w plenum box",0,0]
[{"$nulls":3},"1.20.4","Ducting including transformation piece, insulation, Diffusers (existing).",0,0]
[]
[{"$nulls":3},"1.21","IU.B.0.21 (21 OF 21)",null,null,{"$f":"SUM(F126:F129)+SUM(G126:G129)","v":0}]
[{"$nulls":3},"1.21.1","Fan Coil Air-Conditioning Unit (incl Valve, Controller, Heater)",0,0]
[{"$nulls":3},"1.21.2","Chilled Water & Condensate Piping connections ",0,0]
[{"$nulls":3},"1.21.3","RAG c/w plenum box",0,0]
[{"$nulls":3},"1.21.4","Ducting including transformation piece, insulation, Diffusers (existing).",0,0]
[]
[{"$nulls":3},"1.22","Drain Piping",null,null,{"$f":"SUM(F132+G132)","v":0}]
[{"$nulls":3},"1.22.1","UPVC Drain piping c/w all bends, P-traps and outlets",0,0]
[{"$nulls":4},"SUB TOTAL ITEM 1",null,null,{"$f":"SUM(H4:H132)","v":0}]
[{"$nulls":3},"2","FIRST FLOOR"]
[{"$nulls":3},"2.1","IU.B.1.01 (1 OF 21)",null,null,{"$f":"SUM(F136:F139)+SUM(G136:G139)","v":0}]
[{"$nulls":3},"2.1.1","Fan Coil Air-Conditioning Unit (incl Valve, Controller, Heater)",0,0]
[{"$nulls":3},"2.1.2","Chilled Water & Condensate Piping connections ",0,0]
[{"$nulls":3},"2.1.3","RAG c/w plenum box",0,0]
[{"$nulls":3},"2.1.4","Ducting including transformation piece, insulation, Diffusers (existing).",0,0]
[]
[{"$nulls":3},"2.2","IU.B.1.02  (2 OF 21)",null,null,{"$f":"SUM(F142:F145)+SUM(G142:G145)","v":0}]
[{"$nulls":3},"2.2.1","Fan Coil Air-Conditioning Unit (incl Valve, Controller, Heater)",0,0]
[{"$nulls":3},"2.2.2","Chilled Water & Condensate Piping connections ",0,0]
[{"$nulls":3},"2.2.3","RAG c/w plenum box",0,0]
[{"$nulls":3},"2.2.4","Ducting including transformation piece, insulation, Diffusers (existing).",0,0]
[]
[{"$nulls":3},"2.3","IU.B.1.03 (3 OF 21)",null,null,{"$f":"SUM(F148:F151)+SUM(G148:G151)","v":0}]
[{"$nulls":3},"2.3.1","Fan Coil Air-Conditioning Unit (incl Valve, Controller, Heater)",0,0]
[{"$nulls":3},"2.3.2","Chilled Water & Condensate Piping connections ",0,0]
[{"$nulls":3},"2.3.3","RAG c/w plenum box",0,0]
[{"$nulls":3},"2.3.4","Ducting including transformation piece, insulation, Diffusers (existing).",0,0]
[]
[{"$nulls":3},"2.4","IU.B.1.04 (4 OF 21)",null,null,{"$f":"SUM(F154:F157)+SUM(G154:G157)","v":0}]
[{"$nulls":3},"2.4.1","Fan Coil Air-Conditioning Unit (incl Valve, Controller, Heater)",0,0]
[{"$nulls":3},"2.4.2","Chilled Water & Condensate Piping connections ",0,0]
[{"$nulls":3},"2.4.3","RAG c/w plenum box",0,0]
[{"$nulls":3},"2.4.4","Ducting including transformation piece, insulation, Diffusers (existing).",0,0]
[]
[{"$nulls":3},"2.5","IU.B.1.05 (5 OF 21)",null,null,{"$f":"SUM(F160:F163)+SUM(G160:G163)","v":0}]
["g","OU1",null,"2.5.1","Fan Coil Air-Conditioning Unit (incl Valve, Controller, Heater)",0,0]
["g","OU1",null,"2.5.2","Chilled Water & Condensate Piping connections ",0,0]
["g","OU1",null,"2.5.3","RAG c/w plenum box",0,0]
["g",null,null,"2.5.4","Ducting including transformation piece, insulation, Diffusers (existing).",0,0]
[1]
[1,null,null,"2.6","IU.B.1.06 (6 OF 21)",null,null,{"$f":"SUM(F166:F169)+SUM(G166:G169)","v":0}]
[1,"HA 1",null,"2.6.1","Fan Coil Air-Conditioning Unit (incl Valve, Controller, Heater)",0,0]
[1,"HA 1",null,"2.6.2","Chilled Water & Condensate Piping connections ",0,0]
[1,"HA 1",null,"2.6.3","RAG c/w plenum box",0,0]
[1,"HA 1",null,"2.6.4","Ducting including transformation piece, insulation, Diffusers (existing).",0,0]
[1,"HA 1"]
[1,"HA 1",null,"2.7","IU.B.1.07 (7 OF 21)",null,null,{"$f":"SUM(F172:F175)+SUM(G172:G175)","v":0}]
[1,"HA 1",null,"2.7.1","Fan Coil Air-Conditioning Unit (incl Valve, Controller, Heater)",0,0]
[1,"HA 1",null,"2.7.2","Chilled Water & Condensate Piping connections ",0,0]
[1,"HA 1",null,"2.7.3","RAG c/w plenum box",0,0]
[1,"HA 1",null,"2.7.4","Ducting including transformation piece, insulation, Diffusers (existing).",0,0]
[1,"HA 1"]
[1,"HA 1",null,"2.8","IU.B.1.08 (8 OF 21)",null,null,{"$f":"SUM(F178:F181)+SUM(G178:G181)","v":0}]
[1,"HA 1",null,"2.8.1","Fan Coil Air-Conditioning Unit (incl Valve, Controller, Heater)",0,0]
[1,"HA 1",null,"2.8.2","Chilled Water & Condensate Piping connections ",0,0]
[1,"HA 1",null,"2.8.3","RAG c/w plenum box",0,0]
[1,"HA 1",null,"2.8.4","Ducting including transformation piece, insulation, Diffusers (existing).",0,0]
[]
[{"$nulls":3},"2.9","IU.B.1.09 (9 OF 21)",null,null,{"$f":"SUM(F184:F187)+SUM(G184:G187)","v":0}]
[{"$nulls":3},"2.9.1","Fan Coil Air-Conditioning Unit (incl Valve, Controller, Heater)",0,0]
[{"$nulls":3},"2.9.2","Chilled Water & Condensate Piping connections ",0,0]
[{"$nulls":3},"2.9.3","RAG c/w plenum box",0,0]
[{"$nulls":3},"2.9.4","Ducting including transformation piece, insulation, Diffusers (existing).",0,0]
[]
[{"$nulls":3},"2.10","IU.B.1.10 (10 OF 21)",null,null,{"$f":"SUM(F190:F193)+SUM(G190:G193)","v":0}]
[{"$nulls":3},"2.10.1","Fan Coil Air-Conditioning Unit (incl Valve, Controller, Heater)",0,0]
[{"$nulls":3},"2.10.2","Chilled Water & Condensate Piping connections ",0,0]
[{"$nulls":3},"2.10.3","RAG c/w plenum box",0,0]
[{"$nulls":3},"2.10.4","Ducting including transformation piece, insulation, Diffusers (existing).",0,0]
[]
[{"$nulls":3},"2.11","IU.B.1.11 (11 OF 21)",null,null,{"$f":"SUM(F196:F199)+SUM(G196:G199)","v":0}]
[{"$nulls":3},"2.11.1","Fan Coil Air-Conditioning Unit (incl Valve, Controller, Heater)",0,0]
[{"$nulls":3},"2.11.2","Chilled Water & Condensate Piping connections ",0,0]
[{"$nulls":3},"2.11.3","RAG c/w plenum box",0,0]
[{"$nulls":3},"2.11.4","Ducting including transformation piece, insulation, Diffusers (existing).",0,0]
[]
[{"$nulls":3},"2.12","IU.B.1.12 (12 OF 21)",null,null,{"$f":"SUM(F202:F205)+SUM(G202:G205)","v":0}]
[{"$nulls":3},"2.12.1","Fan Coil Air-Conditioning Unit (incl Valve, Controller, Heater)",0,0]
[{"$nulls":3},"2.12.2","Chilled Water & Condensate Piping connections ",0,0]
[{"$nulls":3},"2.12.3","RAG c/w plenum box",0,0]
[{"$nulls":3},"2.12.4","Ducting including transformation piece, insulation, Diffusers (existing).",0,0]
[]
[{"$nulls":3},"2.13","IU.B.1.13 (13 OF 21)",null,null,{"$f":"SUM(F208:F211)+SUM(G208:G211)","v":0}]
[{"$nulls":3},"2.13.1","Fan Coil Air-Conditioning Unit (incl Valve, Controller, Heater)",0,0]
[{"$nulls":3},"2.13.2","Chilled Water & Condensate Piping connections ",0,0]
[{"$nulls":3},"2.13.3","RAG c/w plenum box",0,0]
[{"$nulls":3},"2.13.4","Ducting including transformation piece, insulation, Diffusers (existing).",0,0]
[]
[{"$nulls":3},"2.14","IU.B.1.14 (14 OF 21)",null,null,{"$f":"SUM(F214:F217)+SUM(G214:G217)","v":0}]
[{"$nulls":3},"2.14.1","Fan Coil Air-Conditioning Unit (incl Valve, Controller, Heater)",0,0]
[{"$nulls":3},"2.14.2","Chilled Water & Condensate Piping connections ",0,0]
[{"$nulls":3},"2.14.3","RAG c/w plenum box",0,0]
[{"$nulls":3},"2.14.4","Ducting including transformation piece, insulation, Diffusers (existing).",0,0]
[]
[{"$nulls":3},"2.15","IU.B.1.15 (15 OF 21)",null,null,{"$f":"SUM(F220:F223)+SUM(G220:G223)","v":0}]
[{"$nulls":3},"2.15.1","Fan Coil Air-Conditioning Unit (incl Valve, Controller, Heater)",0,0]
[{"$nulls":3},"2.15.2","Chilled Water & Condensate Piping connections ",0,0]
[{"$nulls":3},"2.15.3","RAG c/w plenum box",0,0]
[{"$nulls":3},"2.15.4","Ducting including transformation piece, insulation, Diffusers (existing).",0,0]
[]
[{"$nulls":3},"2.16","IU.B.1.16 (16 OF 21)",null,null,{"$f":"SUM(F226:F229)+SUM(G226:G229)","v":0}]
[{"$nulls":3},"2.16.1","Fan Coil Air-Conditioning Unit (incl Valve, Controller, Heater)",0,0]
[{"$nulls":3},"2.16.2","Chilled Water & Condensate Piping connections ",0,0]
[{"$nulls":3},"2.16.3","RAG c/w plenum box",0,0]
[{"$nulls":3},"2.16.4","Ducting including transformation piece, insulation, Diffusers (existing).",0,0]
[]
[{"$nulls":3},"217","IU.B.1.17 (17 OF 21)",null,null,{"$f":"SUM(F232:F235)+SUM(G232:G235)","v":0}]
[{"$nulls":3},"2.17.1","Fan Coil Air-Conditioning Unit (incl Valve, Controller, Heater)",0,0]
[{"$nulls":3},"2.17.2","Chilled Water & Condensate Piping connections ",0,0]
[{"$nulls":3},"2.17.3","RAG c/w plenum box",0,0]
[{"$nulls":3},"2.17.4","Ducting including transformation piece, insulation, Diffusers (existing).",0,0]
[]
[{"$nulls":3},"2.18","IU.B.1.18 (18 OF 21)",null,null,{"$f":"SUM(F238:F241)+SUM(G238:G241)","v":0}]
[{"$nulls":3},"2.18.1","Fan Coil Air-Conditioning Unit (incl Valve, Controller, Heater)",0,0]
[{"$nulls":3},"2.18.2","Chilled Water & Condensate Piping connections ",0,0]
[{"$nulls":3},"2.18.3","RAG c/w plenum box",0,0]
[{"$nulls":3},"2.18.4","Ducting including transformation piece, insulation, Diffusers (existing).",0,0]
[]
[{"$nulls":3},"2.19","IU.B.1.19 (19 OF 21)",null,null,{"$f":"SUM(F244:F247)+SUM(G244:G247)","v":0}]
[{"$nulls":3},"2.19.1","Fan Coil Air-Conditioning Unit (incl Valve, Controller, Heater)",0,0]
[{"$nulls":3},"2.19.2","Chilled Water & Condensate Piping connections ",0,0]
[{"$nulls":3},"2.19.3","RAG c/w plenum box",0,0]
[{"$nulls":3},"2.19.4","Ducting including transformation piece, insulation, Diffusers (existing).",0,0]
[]
[{"$nulls":3},"2.20","IU.B.1.20 (20 OF 21)",null,null,{"$f":"SUM(F250:F253)+SUM(G250:G253)","v":0}]
[{"$nulls":3},"2.20.1","Fan Coil Air-Conditioning Unit (incl Valve, Controller, Heater)",0,0]
[{"$nulls":3},"2.21.2","Chilled Water & Condensate Piping connections ",0,0]
[{"$nulls":3},"2.21.3","RAG c/w plenum box",0,0]
[{"$nulls":3},"2.21.4","Ducting including transformation piece, insulation, Diffusers (existing).",0,0]
[]
[{"$nulls":3},"2.21","IU.B.1.21 (21 OF 21)",null,null,{"$f":"SUM(F256:F259)+SUM(G256:G259)","v":0}]
[{"$nulls":3},"2.21.1","Fan Coil Air-Conditioning Unit (incl Valve, Controller, Heater)",0,0]
[{"$nulls":3},"2.21.2","Chilled Water & Condensate Piping connections ",0,0]
[{"$nulls":3},"2.21.3","RAG c/w plenum box",0,0]
[{"$nulls":3},"2.21.4","Ducting including transformation piece, insulation, Diffusers (existing).",0,0]
[]
[{"$nulls":3},"2.22","Drain Piping",null,null,{"$f":"SUM(F262+G262)","v":0}]
[{"$nulls":3},"2.22.1","UPVC Drain piping c/w all bends, P-traps and outlets",0,0]
[{"$nulls":4},"SUB TOTAL ITEM 2",null,null,{"$f":"SUM(H134:H253)","v":0}]
[{"$nulls":4},"SUB TOTAL ITEMS 1,2",null,null,{"$f":"SUM(H133,H263)","v":0}]

{"sheet":"B3","index":3,"n_rows":627,"n_cols":8,"rows_kept":627,"merged":[[0,4,0,7]]}
[{"$nulls":4},"BILL NO 3: BLOCK D FAN COIL UNIT SUPPLY, COMMISSION & INSTALLATION"]
[{"$nulls":4},"DESCRIPTION","SUPPLY \nRATE","INSTALLATION RATE","AMOUNT"]
[{"$nulls":3},"1","GROUND FLOOR"]
["g",null,null,"1.1","IU.D.0.01 (1 OF 33)",null,null,{"$f":"SUM(F5:F8)+SUM(G5:G8)","v":0}]
["g","HA 1",null,"1.1.1","Fan Coil Air-Conditioning Unit (incl Valve, Controller, Heater)",0,0]
["g","HA 1",null,"1.1.2","Chilled Water & Condensate Piping connections ",0,0]
["g","HA 1",null,"1.1.3","RAG c/w plenum box",0,0]
["g","HA 1",null,"1.1.4","Ducting including transformation piece, insulation, Diffusers (existing).",0,0]
["g","HA 1"]
["g","HA 1",null,"1.2","IU.D.0.02  (2 OF 33)",null,null,{"$f":"SUM(F11:F14)+SUM(G11:G14)","v":0}]
["g","HA 1",null,"1.2.1","Fan Coil Air-Conditioning Unit (incl Valve, Controller, Heater)",0,0]
["g","HA 1",null,"1.2.2","Chilled Water & Condensate Piping connections ",0,0]
["g","HA 1",null,"1.2.3","RAG c/w plenum box",0,0]
["g","HA 1",null,"1.2.4","Ducting including transformation piece, insulation, Diffusers (existing).",0,0]
["g","HA 1"]
["g","HA 1",null,"1.3","IU.D.0.03 (3 OF 33)",null,null,{"$f":"SUM(F17:F20)+SUM(G17:G20)","v":0}]
["g","HA 1",null,"1.3.1","Fan Coil Air-Conditioning Unit (incl Valve, Controller, Heater)",0,0]
["g","HA 1",null,"1.3.2","Chilled Water & Condensate Piping connections ",0,0]
["g","HA 1",null,"1.3.3","RAG c/w plenum box",0,0]
["g","HA 1",null,"1.3.4","Ducting including transformation piece, insulation, Diffusers (existing).",0,0]
["g","HA 1"]
["g","HA 1",null,"1.4","IU.D.0.04 (4 OF 33)",null,null,{"$f":"SUM(F23:F26)+SUM(G23:G26)","v":0}]
["g","HA 1",null,"1.4.1","Fan Coil Air-Conditioning Unit (incl Valve, Controller, Heater)",0,0]
["g","HA 1",null,"1.4.2","Chilled Water & Condensate Piping connections ",0,0]
["g","HA 1",null,"1.4.3","RAG c/w plenum box",0,0]
["g","HA 1",null,"1.4.4","Ducting including transformation piece, insulation, Diffusers (existing).",0,0]
["g","HA 1"]
["g","HA 1",null,"1.5","IU.D.0.05 (5 OF 33)",null,null,{"$f":"SUM(F29:F32)+SUM(G29:G32)","v":0}]
["g","HA 1",null,"1.5.1","Fan Coil Air-Conditioning Unit (incl Valve, Controller, Heater)",0,0]
["g","HA 1",null,"1.5.2","Chilled Water & Condensate Piping connections ",0,0]
["g","HA 1",null,"1.5.3","RAG c/w plenum box",0,0]
["g","HA 1",null,"1.5.4","Ducting including transformation piece, insulation, Diffusers (existing).",0,0]
["g","HA 1"]
[{"$nulls":3},"1.6","IU.D.0.06 (6 OF 33)",null,null,{"$f":"SUM(F35:F38)+SUM(G35:G38)","v":0}]
["g","CA 1",null,"1.6.1","Fan Coil Air-Conditioning Unit (incl Valve, Controller, Heater)",0,0]
["g","CA 1",null,"1.6.2","Chilled Water & Condensate Piping connections ",0,0]
["g","CA 1",null,"1.6.3","RAG c/w plenum box",0,0]
[{"$nulls":3},"1.6.4","Ducting including transformation piece, insulation, Diffusers (existing).",0,0]
[]
[{"$nulls":3},"1.7","IU.D.0.07 (7 OF 33)",null,null,{"$f":"SUM(F41:F44)+SUM(G41:G44)","v":0}]
[{"$nulls":3},"1.7.1","Fan Coil Air-Conditioning Unit (incl Valve, Controller, Heater)",0,0]
[{"$nulls":3},"1.7.2","Chilled Water & Condensate Piping connections ",0,0]
[{"$nulls":3},"1.7.3","RAG c/w plenum box",0,0]
[{"$nulls":3},"1.7.4","Ducting including transformation piece, insulation, Diffusers (existing).",0,0]
[]
[{"$nulls":3},"1.8","IU.D.0.08 (8 OF 33)",null,null,{"$f":"SUM(F47:F50)+SUM(G47:G50)","v":0}]
[{"$nulls":3},"1.8.1","Fan Coil Air-Conditioning Unit (incl Valve, Controller, Heater)",0,0]
[{"$nulls":3},"1.8.2","Chilled Water & Condensate Piping connections ",0,0]
[{"$nulls":3},"1.8.3","RAG c/w plenum box",0,0]
[{"$nulls":3},"1.8.4","Ducting including transformation piece, insulation, Diffusers (existing).",0,0]
[]
[{"$nulls":3},"1.9","IU.D.0.09 (9 OF 33)",null,null,{"$f":"SUM(F53:F56)+SUM(G53:G56)","v":0}]
[{"$nulls":3},"1.9.1","Fan Coil Air-Conditioning Unit (incl Valve, Controller, Heater)",0,0]
[{"$nulls":3},"1.9.2","Chilled Water & Condensate Piping connections ",0,0]
[{"$nulls":3},"1.9.3","RAG c/w plenum box",0,0]
[{"$nulls":3},"1.9.4","Ducting including transformation piece, insulation, Diffusers (existing).",0,0]
[]
[{"$nulls":3},"1.10","IU.D.0.10 (10 OF 33)",null,null,{"$f":"SUM(F59:F62)+SUM(G59:G62)","v":0}]
[{"$nulls":3},"1.10.1","Fan Coil Air-Conditioning Unit (incl Valve, Controller, Heater)",0,0]
[{"$nulls":3},"1.10.2","Chilled Water & Condensate Piping connections ",0,0]
[{"$nulls":3},"1.10.3","RAG c/w plenum box",0,0]
[{"$nulls":3},"1.10.4","Ducting including transformation piece, insulation, Diffusers (existing).",0,0]
[]
[{"$nulls":3},"1.11","IU.D.0.11 (11 OF 33)",null,null,{"$f":"SUM(F65:F68)+SUM(G65:G68)","v":0}]
[{"$nulls":3},"1.11.1","Fan Coil Air-Conditioning Unit (incl Valve, Controller, Heater)",0,0]
[{"$nulls":3},"1.11.2","Chilled Water & Condensate Piping connections ",0,0]
[{"$nulls":3},"1.11.3","RAG c/w plenum box",0,0]
[{"$nulls":3},"1.11.4","Ducting including transformation piece, insulation, Diffusers (existing).",0,0]
[]
[{"$nulls":3},"1.12","IU.D.0.12 (12 OF 33)",null,null,{"$f":"SUM(F71:F74)+SUM(G71:G74)","v":0}]
[{"$nulls":3},"1.12.1","Fan Coil Air-Conditioning Unit (incl Valve, Controller, Heater)",0,0]
[{"$nulls":3},"1.12.2","Chilled Water & Condensate Piping connections ",0,0]
[{"$nulls":3},"1.12.3","RAG c/w plenum box",0,0]
[{"$nulls":3},"1.12.4","Ducting including transformation piece, insulation, Diffusers (existing).",0,0]
[]
[{"$nulls":3},"1.13","IU.D.0.13 (13 OF 33)",null,null,{"$f":"SUM(F77:F80)+SUM(G77:G80)","v":0}]
[{"$nulls":3},"1.13.1","Fan Coil Air-Conditioning Unit (incl Valve, Controller, Heater)",0,0]
[{"$nulls":3},"1.13.2","Chilled Water & Condensate Piping connections ",0,0]
[{"$nulls":3},"1.13.3","RAG c/w plenum box",0,0]
[{"$nulls":3},"1.13.4","Ducting including transformation piece, insulation, Diffusers (existing).",0,0]
[]
[{"$nulls":3},"1.14","IU.D.0.14 (14 OF 33)",null,null,{"$f":"SUM(F83:F86)+SUM(G83:G86)","v":0}]
[{"$nulls":3},"1.14.1","Fan Coil Air-Conditioning Unit (incl Valve, Controller, Heater)",0,0]
[{"$nulls":3},"1.14.2","Chilled Water & Condensate Piping connections ",0,0]
[{"$nulls":3},"1.14.3","RAG c/w plenum box",0,0]
[{"$nulls":3},"1.14.4","Ducting including transformation piece, insulation, Diffusers (existing).",0,0]
[]
[{"$nulls":3},"1.15","IU.D.0.15 (15 OF 33)",null,null,{"$f":"SUM(F89:F92)+SUM(G89:G92)","v":0}]
[{"$nulls":3},"1.15.1","Fan Coil Air-Conditioning Unit (incl Valve, Controller, Heater)",0,0]
[{"$nulls":3},"1.15.2","Chilled Water & Condensate Piping connections ",0,0]
[{"$nulls":3},"1.15.3","RAG c/w plenum box",0,0]
[{"$nulls":3},"1.15.4","Ducting including transformation piece, insulation, Diffusers (existing).",0,0]
[]
[{"$nulls":3},"1.16","IU.D.0.16 (16 OF 33)",null,null,{"$f":"SUM(F95:F98)+SUM(G95:G98)","v":0}]
[{"$nulls":3},"1.16.1","Fan Coil Air-Conditioning Unit (incl Valve, Controller, Heater)",0,0]
[{"$nulls":3},"1.16.2","Chilled Water & Condensate Piping connections ",0,0]
[{"$nulls":3},"1.16.3","RAG c/w plenum box",0,0]
[{"$nulls":3},"1.16.4","Ducting including transformation piece, insulation, Diffusers (existing).",0,0]
[]
[{"$nulls":3},"1.17","IU.D.0.17 (17 OF 33)",null,null,{"$f":"SUM(F101:F104)+SUM(G101:G104)","v":0}]
[{"$nulls":3},"1.17.1","Fan Coil Air-Conditioning Unit (incl Valve, Controller, Heater)",0,0]
[{"$nulls":3},"1.17.2","Chilled Water & Condensate Piping connections ",0,0]
[{"$nulls":3},"1.17.3","RAG c/w plenum box",0,0]
[{"$nulls":3},"1.17.4","Ducting including transformation piece, insulation, Diffusers (existing).",0,0]
[]
[{"$nulls":3},"1.18","IU.D.0.18 (18 OF 33)",null,null,{"$f":"SUM(F107:F110)+SUM(G107:G110)","v":0}]
[{"$nulls":3},"1.18.1","Fan Coil Air-Conditioning Unit (incl Valve, Controller, Heater)",0,0]
[{"$nulls":3},"1.18.2","Chilled Water & Condensate Piping connections ",0,0]
[{"$nulls":3},"1.18.3","RAG c/w plenum box",0,0]
[{"$nulls":3},"1.18.4","Ducting including transformation piece, insulation, Diffusers (existing).",0,0]
[]
[{"$nulls":3},"1.19","IU.D.0.19 (19 OF 33)",null,null,{"$f":"SUM(F113:F116)+SUM(G113:G116)","v":0}]
[{"$nulls":3},"1.19.1","Fan Coil Air-Conditioning Unit (incl Valve, Controller, Heater)",0,0]
[{"$nulls":3},"1.19.2","Chilled Water & Condensate Piping connections ",0,0]
[{"$nulls":3},"1.19.3","RAG c/w plenum box",0,0]
[{"$nulls":3},"1.19.4","Ducting including transformation piece, insulation, Diffusers (existing).",0,0]
[]
[{"$nulls":3},"1.20","IU.D.0.20 (20 OF 33)",null,null,{"$f":"SUM(F119:F122)+SUM(G119:G122)","v":0}]
[{"$nulls":3},"1.20.1","Fan Coil Air-Conditioning Unit (incl Valve, Controller, Heater)",0,0]
[{"$nulls":3},"1.20.2","Chilled Water & Condensate Piping connections ",0,0]
[{"$nulls":3},"1.20.3","RAG c/w plenum box",0,0]
[{"$nulls":3},"1.20.4","Ducting including transformation piece, insulation, Diffusers (existing).",0,0]
[]
[{"$nulls":3},"1.21","IU.D.0.21 (21 OF 33)",null,null,{"$f":"SUM(F125:F128)+SUM(G125:G128)","v":0}]
[{"$nulls":3},"1.21.1","Fan Coil Air-Conditioning Unit (incl Valve, Controller, Heater)",0,0]
[{"$nulls":3},"1.21.2","Chilled Water & Condensate Piping connections ",0,0]
[{"$nulls":3},"1.21.3","RAG c/w plenum box",0,0]
[{"$nulls":3},"1.21.4","Ducting including transformation piece, insulation, Diffusers (existing).",0,0]
[]
[{"$nulls":3},"1.22","IU.D.0.22  (22 OF 33)",null,null,{"$f":"SUM(F131:F134)+SUM(G131:G134)","v":0}]
[{"$nulls":3},"1.22.1","Fan Coil Air-Conditioning Unit (incl Valve, Controller, Heater)",0,0]
[{"$nulls":3},"1.22.2","Chilled Water & Condensate Piping connections ",0,0]
[{"$nulls":3},"1.22.3","RAG c/w plenum box",0,0]
[{"$nulls":3},"1.22.4","Ducting including transformation piece, insulation, Diffusers (existing).",0,0]
[]
[{"$nulls":3},"1.23","IU.D.0.23 (23 OF 33)",null,null,{"$f":"SUM(F137:F140)+SUM(G137:G140)","v":0}]
[{"$nulls":3},"1.23.1","Fan Coil Air-Conditioning Unit (incl Valve, Controller, Heater)",0,0]
[{"$nulls":3},"1.23.2","Chilled Water & Condensate Piping connections ",0,0]
[{"$nulls":3},"1.23.3","RAG c/w plenum box",0,0]
[{"$nulls":3},"1.23.4","Ducting including transformation piece, insulation, Diffusers (existing).",0,0]
[]
[{"$nulls":3},"1.24","IU.D.0.24 (24 OF 33)",null,null,{"$f":"SUM(F143:F146)+SUM(G143:G146)","v":0}]
[{"$nulls":3},"1.24.1","Fan Coil Air-Conditioning Unit (incl Valve, Controller, Heater)",0,0]
[{"$nulls":3},"1.24.2","Chilled Water & Condensate Piping connections ",0,0]
[{"$nulls":3},"1.24.3","RAG c/w plenum box",0,0]
[{"$nulls":3},"1.24.4","Ducting including transformation piece, insulation, Diffusers (existing).",0,0]
[]
[{"$nulls":3},"1.25","IU.D.0.25 (25 OF 33)",null,null,{"$f":"SUM(F149:F152)+SUM(G149:G152)","v":0}]
[{"$nulls":3},"1.25.1","Fan Coil Air-Conditioning Unit (incl Valve, Controller, Heater)",0,0]
[{"$nulls":3},"1.25.2","Chilled Water & Condensate Piping connections ",0,0]
[{"$nulls":3},"1.25.3","RAG c/w plenum box",0,0]
[{"$nulls":3},"1.25.4","Ducting including transformation piece, insulation, Diffusers (existing).",0,0]
[]
[{"$nulls":3},"1.26","IU.D.0.26 (26 OF 33)",null,null,{"$f":"SUM(F155:F158)+SUM(G155:G158)","v":0}]
[{"$nulls":3},"1.26.1","Fan Coil Air-Conditioning Unit (incl Valve, Controller, Heater)",0,0]
[{"$nulls":3},"1.26.2","Chilled Water & Condensate Piping connections ",0,0]
[{"$nulls":3},"1.26.3","RAG c/w plenum box",0,0]
[{"$nulls":3},"1.26.4","Ducting including transformation piece, insulation, Diffusers (existing).",0,0]
[]
["g","OU1",null,"1.27","IU.D.0.27 (27 OF 33)",null,null,{"$f":"SUM(F161:F164)+SUM(G161:G164)","v":0}]
["g","OU1",null,"1.27.1","Fan Coil Air-Conditioning Unit (incl Valve, Controller, Heater)",0,0]
["g","OU1",null,"1.27.2","Chilled Water & Condensate Piping connections ",0,0]
["g",null,null,"1.27.3","RAG c/w plenum box",0,0]
[1,null,null,"1.27.4","Ducting including transformation piece, insulation, Diffusers (existing).",0,0]
[1]
[1,"HA 1",null,"1.28","IU.D.0.28 (28 OF 33)",null,null,{"$f":"SUM(F167:F170)+SUM(G167:G170)","v":0}]
[1,"HA 1",null,"1.28.1","Fan Coil Air-Conditioning Unit (incl Valve, Controller, Heater)",0,0]
[1,"HA 1",null,"1.28.2","Chilled Water & Condensate Piping connections ",0,0]
[1,"HA 1",null,"1.28.3","RAG c/w plenum box",0,0]
[1,"HA 1",null,"1.28.4","Ducting including transformation piece, insulation, Diffusers (existing).",0,0]
[1,"HA 1"]
[1,"HA 1",null,"1.29","IU.D.0.29 (29 OF 33)",null,null,{"$f":"SUM(F173:F176)+SUM(G173:G176)","v":0}]
[1,"HA 1",null,"1.29.1","Fan Coil Air-Conditioning Unit (incl Valve, Controller, Heater)",0,0]
[1,"HA 1",null,"1.29.2","Chilled Water & Condensate Piping connections ",0,0]
[1,"HA 1",null,"1.29.3","RAG c/w plenum box",0,0]
[1,"HA 1",null,"1.29.4","Ducting including transformation piece, insulation, Diffusers (existing).",0,0]
[1,"HA 1"]
[1,"HA 1",null,"1.30","IU.D.0.30 (30 OF 33)",null,null,{"$f":"SUM(F179:F182)+SUM(G179:G182)","v":0}]
[1,"HA 1",null,"1.30.1","Fan Coil Air-Conditioning Unit (incl Valve, Controller, Heater)",0,0]
[1,"HA 1",null,"1.30.2","Chilled Water & Condensate Piping connections ",0,0]
[1,"HA 1",null,"1.30.3","RAG c/w plenum box",0,0]
[{"$nulls":3},"1.30.4","Ducting including transformation piece, insulation, Diffusers (existing).",0,0]
[]
[{"$nulls":3},"1.31","IU.D.0.31 (31 OF 33)",null,null,{"$f":"SUM(F185:F188)+SUM(G185:G188)","v":0}]
[{"$nulls":3},"1.31.1","Fan Coil Air-Conditioning Unit (incl Valve, Controller, Heater)",0,0]
[{"$nulls":3},"1.31.2","Chilled Water & Condensate Piping connections ",0,0]
[{"$nulls":3},"1.31.3","RAG c/w plenum box",0,0]
[{"$nulls":3},"1.31.4","Ducting including transformation piece, insulation, Diffusers (existing).",0,0]
[]
[{"$nulls":3},"1.32","IU.D.0.32 (32 OF 33)",null,null,{"$f":"SUM(F191:F194)+SUM(G191:G194)","v":0}]
[{"$nulls":3},"1.32.1","Fan Coil Air-Conditioning Unit (incl Valve, Controller, Heater)",0,0]
[{"$nulls":3},"1.32.2","Chilled Water & Condensate Piping connections ",0,0]
[{"$nulls":3},"1.32.3","RAG c/w plenum box",0,0]
[{"$nulls":3},"1.32.4","Ducting including transformation piece, insulation, Diffusers (existing).",0,0]
[]
[{"$nulls":3},"1.33","IU.D.0.33 (33 OF 33)",null,null,{"$f":"SUM(F197:F200)+SUM(G197:G200)","v":0}]
[{"$nulls":3},"1.33.1","Fan Coil Air-Conditioning Unit (incl Valve, Controller, Heater)",0,0]
[{"$nulls":3},"1.33.2","Chilled Water & Condensate Piping connections ",0,0]
[{"$nulls":3},"1.33.3","RAG c/w plenum box",0,0]
[{"$nulls":3},"1.33.4","Ducting including transformation piece, insulation, Diffusers (existing).",0,0]
[]
[{"$nulls":3},"1.34","Drain Piping",null,null,{"$f":"SUM(F203+G203)","v":0}]
[{"$nulls":3},"1.34.1","UPVC Drain piping c/w all bends, P-traps and outlets",0,0]
[{"$nulls":4},"SUB TOTAL ITEM 1",null,null,{"$f":"SUM(H3:H203)","v":0}]
[{"$nulls":3},"2","FIRST FLOOR"]
[{"$nulls":3},"2.1","IU.D.1.01 (1 OF 35)",null,null,{"$f":"SUM(F207:F210)+SUM(G207:G210)","v":0}]
[{"$nulls":3},"2.1.1","Fan Coil Air-Conditioning Unit (incl Valve, Controller, Heater)",0,0]
[{"$nulls":3},"2.1.2","Chilled Water & Condensate Piping connections ",0,0]
[{"$nulls":3},"2.1.3","RAG c/w plenum box",0,0]
[{"$nulls":3},"2.1.4","Ducting including transformation piece, insulation, Diffusers (existing).",0,0]
[]
[{"$nulls":3},"2.2","IU.D.1.02  (2 OF 35)",null,null,{"$f":"SUM(F213:F216)+SUM(G213:G216)","v":0}]
[{"$nulls":3},"2.2.1","Fan Coil Air-Conditioning Unit (incl Valve, Controller, Heater)",0,0]
[{"$nulls":3},"2.2.2","Chilled Water & Condensate Piping connections ",0,0]
[{"$nulls":3},"2.2.3","RAG c/w plenum box",0,0]
[{"$nulls":3},"2.2.4","Ducting including transformation piece, insulation, Diffusers (existing).",0,0]
[]
[{"$nulls":3},"2.3","IU.D.1.03 (3 OF 35)",null,null,{"$f":"SUM(F219:F222)+SUM(G219:G222)","v":0}]
[{"$nulls":3},"2.3.1","Fan Coil Air-Conditioning Unit (incl Valve, Controller, Heater)",0,0]
[{"$nulls":3},"2.3.2","Chilled Water & Condensate Piping connections ",0,0]
[{"$nulls":3},"2.3.3","RAG c/w plenum box",0,0]
[{"$nulls":3},"2.3.4","Ducting including transformation piece, insulation, Diffusers (existing).",0,0]
[]
[{"$nulls":3},"2.4","IU.D.1.04 (4 OF 35)",null,null,{"$f":"SUM(F225:F228)+SUM(G225:G228)","v":0}]
[{"$nulls":3},"2.4.1","Fan Coil Air-Conditioning Unit (incl Valve, Controller, Heater)",0,0]
[{"$nulls":3},"2.4.2","Chilled Water & Condensate Piping connections ",0,0]
[{"$nulls":3},"2.4.3","RAG c/w plenum box",0,0]
[{"$nulls":3},"2.4.4","Ducting including transformation piece, insulation, Diffusers (existing).",0,0]
[]
[{"$nulls":3},"2.5","IU.D.1.05 (5 OF 35)",null,null,{"$f":"SUM(F231:F234)+SUM(G231:G234)","v":0}]
[{"$nulls":3},"2.5.1","Fan Coil Air-Conditioning Unit (incl Valve, Controller, Heater)",0,0]
[{"$nulls":3},"2.5.2","Chilled Water & Condensate Piping connections ",0,0]
[{"$nulls":3},"2.5.3","RAG c/w plenum box",0,0]
[{"$nulls":3},"2.5.4","Ducting including transformation piece, insulation, Diffusers (existing).",0,0]
[]
[{"$nulls":3},"2.6","IU.D.1.06 (6 OF 35)",null,null,{"$f":"SUM(F237:F240)+SUM(G237:G240)","v":0}]
[{"$nulls":3},"2.6.1","Fan Coil Air-Conditioning Unit (incl Valve, Controller, Heater)",0,0]
[{"$nulls":3},"2.6.2","Chilled Water & Condensate Piping connections ",0,0]
[{"$nulls":3},"2.6.3","RAG c/w plenum box",0,0]
[{"$nulls":3},"2.6.4","Ducting including transformation piece, insulation, Diffusers (existing).",0,0]
[]
[{"$nulls":3},"2.7","IU.D.1.07 (7 OF 35)",null,null,{"$f":"SUM(F243:F246)+SUM(G243:G246)","v":0}]
[{"$nulls":3},"2.7.1","Fan Coil Air-Conditioning Unit (incl Valve, Controller, Heater)",0,0]
[{"$nulls":3},"2.7.2","Chilled Water & Condensate Piping connections ",0,0]
[{"$nulls":3},"2.7.3","RAG c/w plenum box",0,0]
[{"$nulls":3},"2.7.4","Ducting including transformation piece, insulation, Diffusers (existing).",0,0]
[]
[{"$nulls":3},"2.8","IU.D.1.08 (8 OF 35)",null,null,{"$f":"SUM(F249:F252)+SUM(G249:G252)","v":0}]
[{"$nulls":3},"2.8.1","Fan Coil Air-Conditioning Unit (incl Valve, Controller, Heater)",0,0]
[{"$nulls":3},"2.8.2","Chilled Water & Condensate Piping connections ",0,0]
[{"$nulls":3},"2.8.3","RAG c/w plenum box",0,0]
[{"$nulls":3},"2.8.4","Ducting including transformation piece, insulation, Diffusers (existing).",0,0]
[]
[{"$nulls":3},"2.9","IU.D.1.09 (9 OF 35)",null,null,{"$f":"SUM(F255:F258)+SUM(G255:G258)","v":0}]
[{"$nulls":3},"2.9.1","Fan Coil Air-Conditioning Unit (incl Valve, Controller, Heater)",0,0]
[{"$nulls":3},"2.9.2","Chilled Water & Condensate Piping connections ",0,0]
[{"$nulls":3},"2.9.3","RAG c/w plenum box",0,0]
[{"$nulls":3},"2.9.4","Ducting including transformation piece, insulation, Diffusers (existing).",0,0]
[]
[{"$nulls":3},"2.10","IU.D.1.10 (10 OF 35)",null,null,{"$f":"SUM(F261:F264)+SUM(G261:G264)","v":0}]
[{"$nulls":3},"2.10.1","Fan Coil Air-Conditioning Unit (incl Valve, Controller, Heater)",0,0]
[{"$nulls":3},"2.10.2","Chilled Water & Condensate Piping connections ",0,0]
[{"$nulls":3},"2.10.3","RAG c/w plenum box",0,0]
[{"$nulls":3},"2.10.4","Ducting including transformation piece, insulation, Diffusers (existing).",0,0]
[]
[{"$nulls":3},"2.11","IU.D.1.11 (11 OF 35)",null,null,{"$f":"SUM(F267:F270)+SUM(G267:G270)","v":0}]
[{"$nulls":3},"2.11.1","Fan Coil Air-Conditioning Unit (incl Valve, Controller, Heater)",0,0]
[{"$nulls":3},"2.11.2","Chilled Water & Condensate Piping connections ",0,0]
[{"$nulls":3},"2.11.3","RAG c/w plenum box",0,0]
[{"$nulls":3},"2.11.4","Ducting including transformation piece, insulation, Diffusers (existing).",0,0]
[]
[{"$nulls":3},"2.12","IU.D.1.12 (12 OF 35)",null,null,{"$f":"SUM(F273:F276)+SUM(G273:G276)","v":0}]
[{"$nulls":3},"2.12.1","Fan Coil Air-Conditioning Unit (incl Valve, Controller, Heater)",0,0]
[{"$nulls":3},"2.12.2","Chilled Water & Condensate Piping connections ",0,0]
[{"$nulls":3},"2.12.3","RAG c/w plenum box",0,0]
[{"$nulls":3},"2.12.4","Ducting including transformation piece, insulation, Diffusers (existing).",0,0]
[]
[{"$nulls":3},"2.13","IU.D.1.13 (13 OF 35)",null,null,{"$f":"SUM(F279:F282)+SUM(G279:G282)","v":0}]
[{"$nulls":3},"2.13.1","Fan Coil Air-Conditioning Unit (incl Valve, Controller, Heater)",0,0]
[{"$nulls":3},"2.13.2","Chilled Water & Condensate Piping connections ",0,0]
[{"$nulls":3},"2.13.3","RAG c/w plenum box",0,0]
[{"$nulls":3},"2.13.4","Ducting including transformation piece, insulation, Diffusers (existing).",0,0]
[]
[{"$nulls":3},"2.14","IU.D.1.14 (14 OF 35)",null,null,{"$f":"SUM(F285:F288)+SUM(G285:G288)","v":0}]
[{"$nulls":3},"2.14.1","Fan Coil Air-Conditioning Unit (incl Valve, Controller, Heater)",0,0]
[{"$nulls":3},"2.14.2","Chilled Water & Condensate Piping connections ",0,0]
[{"$nulls":3},"2.14.3","RAG c/w plenum box",0,0]
[{"$nulls":3},"2.14.4","Ducting including transformation piece, insulation, Diffusers (existing).",0,0]
[]
[{"$nulls":3},"2.15","IU.D.1.15 (15 OF 35)",null,null,{"$f":"SUM(F291:F294)+SUM(G291:G294)","v":0}]
[{"$nulls":3},"2.15.1","Fan Coil Air-Conditioning Unit (incl Valve, Controller, Heater)",0,0]
[{"$nulls":3},"2.15.2","Chilled Water & Condensate Piping connections ",0,0]
[{"$nulls":3},"2.15.3","RAG c/w plenum box",0,0]
[{"$nulls":3},"2.15.4","Ducting including transformation piece, insulation, Diffusers (existing).",0,0]
[]
[{"$nulls":3},"2.16","IU.D.1.16 (16 OF 35)",null,null,{"$f":"SUM(F297:F300)+SUM(G297:G300)","v":0}]
[{"$nulls":3},"2.16.1","Fan Coil Air-Conditioning Unit (incl Valve, Controller, Heater)",0,0]
[{"$nulls":3},"2.16.2","Chilled Water & Condensate Piping connections ",0,0]
[{"$nulls":3},"2.16.3","RAG c/w plenum box",0,0]
[{"$nulls":3},"2.16.4","Ducting including transformation piece, insulation, Diffusers (existing).",0,0]
[]
[{"$nulls":3},"2.17","IU.D.1.17 (17 OF 35)",null,null,{"$f":"SUM(F303:F306)+SUM(G303:G306)","v":0}]
[{"$nulls":3},"2.17.1","Fan Coil Air-Conditioning Unit (incl Valve, Controller, Heater)",0,0]
[{"$nulls":3},"2.17.2","Chilled Water & Condensate Piping connections ",0,0]
[{"$nulls":3},"2.17.3","RAG c/w plenum box",0,0]
[{"$nulls":3},"2.17.4","Ducting including transformation piece, insulation, Diffusers (existing).",0,0]
[]
[{"$nulls":3},"2.18","IU.D.1.18 (18 OF 35)",null,null,{"$f":"SUM(F309:F312)+SUM(G309:G312)","v":0}]
[{"$nulls":3},"2.18.1","Fan Coil Air-Conditioning Unit (incl Valve, Controller, Heater)",0,0]
[{"$nulls":3},"2.18.2","Chilled Water & Condensate Piping connections ",0,0]
[{"$nulls":3},"2.18.3","RAG c/w plenum box",0,0]
[{"$nulls":3},"2.18.4","Ducting including transformation piece, insulation, Diffusers (existing).",0,0]
[]
[{"$nulls":3},"2.19","IU.D.1.19 (19 OF 35)",null,null,{"$f":"SUM(F315:F318)+SUM(G315:G318)","v":0}]
[{"$nulls":3},"2.19.1","Fan Coil Air-Conditioning Unit (incl Valve, Controller, Heater)",0,0]
[{"$nulls":3},"2.19.2","Chilled Water & Condensate Piping connections ",0,0]
[{"$nulls":3},"2.19.3","RAG c/w plenum box",0,0]
[{"$nulls":3},"2.19.4","Ducting including transformation piece, insulation, Diffusers (existing).",0,0]
[]
[{"$nulls":3},"2.20","IU.D.1.20 (20 OF 35)",null,null,{"$f":"SUM(F321:F324)+SUM(G321:G324)","v":0}]
[{"$nulls":3},"2.20.1","Fan Coil Air-Conditioning Unit (incl Valve, Controller, Heater)",0,0]
[{"$nulls":3},"2.21.2","Chilled Water & Condensate Piping connections ",0,0]
[{"$nulls":3},"2.21.3","RAG c/w plenum box",0,0]
[{"$nulls":3},"2.21.4","Ducting including transformation piece, insulation, Diffusers (existing).",0,0]
[]
[{"$nulls":3},"2.21","IU.D.1.21 (21 OF 35)",null,null,{"$f":"SUM(F327:F330)+SUM(G327:G330)","v":0}]
[{"$nulls":3},"2.21.1","Fan Coil Air-Conditioning Unit (incl Valve, Controller, Heater)",0,0]
[{"$nulls":3},"2.21.2","Chilled Water & Condensate Piping connections ",0,0]
[{"$nulls":3},"2.21.3","RAG c/w plenum box",0,0]
[{"$nulls":3},"2.21.4","Ducting including transformation piece, insulation, Diffusers (existing).",0,0]
[]
[{"$nulls":3},"2.22","IU.D.1.22  (22 OF 35)",null,null,{"$f":"SUM(F333:F336)+SUM(G333:G336)","v":0}]
[{"$nulls":3},"2.22.1","Fan Coil Air-Conditioning Unit (incl Valve, Controller, Heater)",0,0]
[{"$nulls":3},"2.22.2","Chilled Water & Condensate Piping connections ",0,0]
[{"$nulls":3},"2.22.3","RAG c/w plenum box",0,0]
[{"$nulls":3},"2.22.4","Ducting including transformation piece, insulation, Diffusers (existing).",0,0]
[]
[{"$nulls":3},"2.23","IU.D.1.23 (23 OF 35)",null,null,{"$f":"SUM(F339:F342)+SUM(G339:G342)","v":0}]
[{"$nulls":3},"2.23.1","Fan Coil Air-Conditioning Unit (incl Valve, Controller, Heater)",0,0]
[{"$nulls":3},"2.23.2","Chilled Water & Condensate Piping connections ",0,0]
[{"$nulls":3},"2.23.3","RAG c/w plenum box",0,0]
[{"$nulls":3},"2.23.4","Ducting including transformation piece, insulation, Diffusers (existing).",0,0]
[]
[{"$nulls":3},"2.24","IU.D.1.24 (24 OF 35)",null,null,{"$f":"SUM(F345:F348)+SUM(G345:G348)","v":0}]
[{"$nulls":3},"2.24.1","Fan Coil Air-Conditioning Unit (incl Valve, Controller, Heater)",0,0]
[{"$nulls":3},"2.24.2","Chilled Water & Condensate Piping connections ",0,0]
[{"$nulls":3},"2.24.3","RAG c/w plenum box",0,0]
[{"$nulls":3},"2.24.4","Ducting including transformation piece, insulation, Diffusers (existing).",0,0]
[]
[{"$nulls":3},"2.25","IU.D.1.25 (25 OF 35)",null,null,{"$f":"SUM(F351:F354)+SUM(G351:G354)","v":0}]
[{"$nulls":3},"2.25.1","Fan Coil Air-Conditioning Unit (incl Valve, Controller, Heater)",0,0]
[{"$nulls":3},"2.25.2","Chilled Water & Condensate Piping connections ",0,0]
[{"$nulls":3},"2.25.3","RAG c/w plenum box",0,0]
[{"$nulls":3},"2.25.4","Ducting including transformation piece, insulation, Diffusers (existing).",0,0]
[]
[{"$nulls":3},"2.26","IU.D.1.26 (26 OF 35)",null,null,{"$f":"SUM(F357:F360)+SUM(G357:G360)","v":0}]
[{"$nulls":3},"2.26.1","Fan Coil Air-Conditioning Unit (incl Valve, Controller, Heater)",0,0]
[{"$nulls":3},"2.26.2","Chilled Water & Condensate Piping connections ",0,0]
[{"$nulls":3},"2.26.3","RAG c/w plenum box",0,0]
[{"$nulls":3},"2.26.4","Ducting including transformation piece, insulation, Diffusers (existing).",0,0]
[]
[{"$nulls":3},"2.27","IU.D.1.27 (27 OF 35)",null,null,{"$f":"SUM(F363:F366)+SUM(G363:G366)","v":0}]
[{"$nulls":3},"2.27.1","Fan Coil Air-Conditioning Unit (incl Valve, Controller, Heater)",0,0]
[{"$nulls":3},"2.27.2","Chilled Water & Condensate Piping connections ",0,0]
[{"$nulls":3},"2.27.3","RAG c/w plenum box",0,0]
[{"$nulls":3},"2.27.4","Ducting including transformation piece, insulation, Diffusers (existing).",0,0]
[]
[{"$nulls":3},"2.28","IU.D.1.28 (28 OF 35)",null,null,{"$f":"SUM(F369:F372)+SUM(G369:G372)","v":0}]
[{"$nulls":3},"2.28.1","Fan Coil Air-Conditioning Unit (incl Valve, Controller, Heater)",0,0]
[{"$nulls":3},"2.28.2","Chilled Water & Condensate Piping connections ",0,0]
[{"$nulls":3},"2.28.3","RAG c/w plenum box",0,0]
[{"$nulls":3},"2.28.4","Ducting including transformation piece, insulation, Diffusers (existing).",0,0]
[]
[{"$nulls":3},"2.29","IU.D.1.29 (29 OF 35)",null,null,{"$f":"SUM(F375:F378)+SUM(G375:G378)","v":0}]
[{"$nulls":3},"2.29.1","Fan Coil Air-Conditioning Unit (incl Valve, Controller, Heater)",0,0]
[{"$nulls":3},"2.29.2","Chilled Water & Condensate Piping connections ",0,0]
[{"$nulls":3},"2.29.3","RAG c/w plenum box",0,0]
[{"$nulls":3},"2.29.4","Ducting including transformation piece, insulation, Diffusers (existing).",0,0]
[]
[{"$nulls":3},"2.30","IU.D.1.30 (30 OF 35)",null,null,{"$f":"SUM(F381:F384)+SUM(G381:G384)","v":0}]
[{"$nulls":3},"2.30.1","Fan Coil Air-Conditioning Unit (incl Valve, Controller, Heater)",0,0]
[{"$nulls":3},"2.30.2","Chilled Water & Condensate Piping connections ",0,0]
[{"$nulls":3},"2.30.3","RAG c/w plenum box",0,0]
[{"$nulls":3},"2.30.4","Ducting including transformation piece, insulation, Diffusers (existing).",0,0]
[]
[{"$nulls":3},"2.31","IU.D.1.31 (31 OF 35)",null,null,{"$f":"SUM(F387:F390)+SUM(G387:G390)","v":0}]
[{"$nulls":3},"2.31.1","Fan Coil Air-Conditioning Unit (incl Valve, Controller, Heater)",0,0]
[{"$nulls":3},"2.31.2","Chilled Water & Condensate Piping connections ",0,0]
[{"$nulls":3},"2.31.3","RAG c/w plenum box",0,0]
[{"$nulls":3},"2.31.4","Ducting including transformation piece, insulation, Diffusers (existing).",0,0]
[]
[{"$nulls":3},"2.32","IU.D.1.32 (32 OF 35)",null,null,{"$f":"SUM(F393:F396)+SUM(G393:G396)","v":0}]
[{"$nulls":3},"2.32.1","Fan Coil Air-Conditioning Unit (incl Valve, Controller, Heater)",0,0]
[{"$nulls":3},"2.32.2","Chilled Water & Condensate Piping connections ",0,0]
[{"$nulls":3},"2.32.3","RAG c/w plenum box",0,0]
[{"$nulls":3},"2.32.4","Ducting including transformation piece, insulation, Diffusers (existing).",0,0]
[]
[{"$nulls":3},"2.33","IU.D.1.33 (33 OF 35)",null,null,{"$f":"SUM(F399:F402)+SUM(G399:G402)","v":0}]
[{"$nulls":3},"2.33.1","Fan Coil Air-Conditioning Unit (incl Valve, Controller, Heater)",0,0]
[{"$nulls":3},"2.33.2","Chilled Water & Condensate Piping connections ",0,0]
[{"$nulls":3},"2.33.3","RAG c/w plenum box",0,0]
[{"$nulls":3},"2.33.4","Ducting including transformation piece, insulation, Diffusers (existing).",0,0]
[]
[{"$nulls":3},"2.34","IU.D.1.34 (34 OF 35)",null,null,{"$f":"SUM(F405:F408)+SUM(G405:G408)","v":0}]
[{"$nulls":3},"2.34.1","Fan Coil Air-Conditioning Unit (incl Valve, Controller, Heater)",0,0]
[{"$nulls":3},"2.34.2","Chilled Water & Condensate Piping connections ",0,0]
[{"$nulls":3},"2.34.3","RAG c/w plenum box",0,0]
[{"$nulls":3},"2.34.4","Ducting including transformation piece, insulation, Diffusers (existing).",0,0]
[]
[{"$nulls":3},"2.35","IU.D.1.35 (35 OF 35)",null,null,{"$f":"SUM(F411:F414)+SUM(G411:G414)","v":0}]
[{"$nulls":3},"2.35.1","Fan Coil Air-Conditioning Unit (incl Valve, Controller, Heater)",0,0]
[{"$nulls":3},"2.35.2","Chilled Water & Condensate Piping connections ",0,0]
[{"$nulls":3},"2.35.3","RAG c/w plenum box",0,0]
[{"$nulls":3},"2.35.4","Ducting including transformation piece, insulation, Diffusers (existing).",0,0]
[]
[{"$nulls":3},"2.36","Drain Piping",null,null,{"$f":"SUM(F417+G417)","v":0}]
[{"$nulls":3},"2.36.1","UPVC Drain piping c/w all bends, P-traps and outlets",0,0]
[{"$nulls":4},"SUB TOTAL ITEM 2",null,null,{"$f":"SUM(H205:H417)","v":0}]
[{"$nulls":3},"3","SECOND FLOOR"]
[{"$nulls":3},"3.1","IU.D.2.01 (1 OF 34)",null,null,{"$f":"SUM(F421:F424)+SUM(G421:G424)","v":0}]
[{"$nulls":3},"3.1.1","Fan Coil Air-Conditioning Unit (incl Valve, Controller, Heater)",0,0]
[{"$nulls":3},"3.1.2","Chilled Water & Condensate Piping connections ",0,0]
[{"$nulls":3},"3.1.3","RAG c/w plenum box",0,0]
[{"$nulls":3},"3.1.4","Ducting including transformation piece, insulation, Diffusers (existing).",0,0]
[]
[{"$nulls":3},"3.2","IU.D.2.02  (2 OF 34)",null,null,{"$f":"SUM(F427:F430)+SUM(G427:G430)","v":0}]
[{"$nulls":3},"3.2.1","Fan Coil Air-Conditioning Unit (incl Valve, Controller, Heater)",0,0]
[{"$nulls":3},"3.2.2","Chilled Water & Condensate Piping connections ",0,0]
[{"$nulls":3},"3.2.3","RAG c/w plenum box",0,0]
[{"$nulls":3},"3.2.4","Ducting including transformation piece, insulation, Diffusers (existing).",0,0]
[]
[{"$nulls":3},"3.3","IU.D.2.03 (3 OF 34)",null,null,{"$f":"SUM(F433:F436)+SUM(G433:G436)","v":0}]
[{"$nulls":3},"3.3.1","Fan Coil Air-Conditioning Unit (incl Valve, Controller, Heater)",0,0]
[{"$nulls":3},"3.3.2","Chilled Water & Condensate Piping connections ",0,0]
[{"$nulls":3},"3.3.3","RAG c/w plenum box",0,0]
[{"$nulls":3},"3.3.4","Ducting including transformation piece, insulation, Diffusers (existing).",0,0]
[]
[{"$nulls":3},"3.4","IU.D.2.04 (4 OF 34)",null,null,{"$f":"SUM(F439:F442)+SUM(G439:G442)","v":0}]
[{"$nulls":3},"3.4.1","Fan Coil Air-Conditioning Unit (incl Valve, Controller, Heater)",0,0]
[{"$nulls":3},"3.4.2","Chilled Water & Condensate Piping connections ",0,0]
[{"$nulls":3},"3.4.3","RAG c/w plenum box",0,0]
[{"$nulls":3},"3.4.4","Ducting including transformation piece, insulation, Diffusers (existing).",0,0]
[]
[{"$nulls":3},"3.5","IU.D.2.05 (5 OF 34)",null,null,{"$f":"SUM(F445:F448)+SUM(G445:G448)","v":0}]
[{"$nulls":3},"3.5.1","Fan Coil Air-Conditioning Unit (incl Valve, Controller, Heater)",0,0]
[{"$nulls":3},"3.5.2","Chilled Water & Condensate Piping connections ",0,0]
[{"$nulls":3},"3.5.3","RAG c/w plenum box",0,0]
[{"$nulls":3},"2.5.4","Ducting including transformation piece, insulation, Diffusers (existing).",0,0]
[]
[{"$nulls":3},"3.6","IU.D.2.06 (6 OF 34)",null,null,{"$f":"SUM(F451:F454)+SUM(G451:G454)","v":0}]
[{"$nulls":3},"3.6.1","Fan Coil Air-Conditioning Unit (incl Valve, Controller, Heater)",0,0]
[{"$nulls":3},"3.6.2","Chilled Water & Condensate Piping connections ",0,0]
[{"$nulls":3},"3.6.3","RAG c/w plenum box",0,0]
[{"$nulls":3},"3.6.4","Ducting including transformation piece, insulation, Diffusers (existing).",0,0]
[]
[{"$nulls":3},"3.7","IU.D.2.07 (7 OF 34)",null,null,{"$f":"SUM(F457:F460)+SUM(G457:G460)","v":0}]
[{"$nulls":3},"3.7.1","Fan Coil Air-Conditioning Unit (incl Valve, Controller, Heater)",0,0]
[{"$nulls":3},"3.7.2","Chilled Water & Condensate Piping connections ",0,0]
[{"$nulls":3},"3.7.3","RAG c/w plenum box",0,0]
[{"$nulls":3},"3.7.4","Ducting including transformation piece, insulation, Diffusers (existing).",0,0]
[]
[{"$nulls":3},"3.8","IU.D.2.08 (8 OF 34)",null,null,{"$f":"SUM(F463:F466)+SUM(G463:G466)","v":0}]
[{"$nulls":3},"3.8.1","Fan Coil Air-Conditioning Unit (incl Valve, Controller, Heater)",0,0]
[{"$nulls":3},"3.8.2","Chilled Water & Condensate Piping connections ",0,0]
[{"$nulls":3},"3.8.3","RAG c/w plenum box",0,0]
[{"$nulls":3},"3.8.4","Ducting including transformation piece, insulation, Diffusers (existing).",0,0]
[]
[{"$nulls":3},"3.9","IU.D.2.09 (9 OF 34)",null,null,{"$f":"SUM(F469:F472)+SUM(G469:G472)","v":0}]
[{"$nulls":3},"3.9.1","Fan Coil Air-Conditioning Unit (incl Valve, Controller, Heater)",0,0]
[{"$nulls":3},"3.9.2","Chilled Water & Condensate Piping connections ",0,0]
[{"$nulls":3},"3.9.3","RAG c/w plenum box",0,0]
[{"$nulls":3},"3.9.4","Ducting including transformation piece, insulation, Diffusers (existing).",0,0]
[]
[{"$nulls":3},"3.10","IU.D.2.10 (10 OF 34)",null,null,{"$f":"SUM(F475:F478)+SUM(G475:G478)","v":0}]
[{"$nulls":3},"3.10.1","Fan Coil Air-Conditioning Unit (incl Valve, Controller, Heater)",0,0]
[{"$nulls":3},"3.10.2","Chilled Water & Condensate Piping connections ",0,0]
[{"$nulls":3},"3.10.3","RAG c/w plenum box",0,0]
[{"$nulls":3},"3.10.4","Ducting including transformation piece, insulation, Diffusers (existing).",0,0]
[]
[{"$nulls":3},"3.11","IU.D.2.11 (11 OF 34)",null,null,{"$f":"SUM(F481:F484)+SUM(G481:G484)","v":0}]
[{"$nulls":3},"3.11.1","Fan Coil Air-Conditioning Unit (incl Valve, Controller, Heater)",0,0]
[{"$nulls":3},"3.11.2","Chilled Water & Condensate Piping connections ",0,0]
[{"$nulls":3},"3.11.3","RAG c/w plenum box",0,0]
[{"$nulls":3},"3.11.4","Ducting including transformation piece, insulation, Diffusers (existing).",0,0]
[]
[{"$nulls":3},"3.12","IU.D.2.12 (12 OF 34)",null,null,{"$f":"SUM(F487:F490)+SUM(G487:G490)","v":0}]
[{"$nulls":3},"3.12.1","Fan Coil Air-Conditioning Unit (incl Valve, Controller, Heater)",0,0]
[{"$nulls":3},"3.12.2","Chilled Water & Condensate Piping connections ",0,0]
[{"$nulls":3},"3.12.3","RAG c/w plenum box",0,0]
[{"$nulls":3},"3.12.4","Ducting including transformation piece, insulation, Diffusers (existing).",0,0]
[]
[{"$nulls":3},"3.13","IU.D.2.13 (13 OF 34)",null,null,{"$f":"SUM(F493:F496)+SUM(G493:G496)","v":0}]
[{"$nulls":3},"3.13.1","Fan Coil Air-Conditioning Unit (incl Valve, Controller, Heater)",0,0]
[{"$nulls":3},"3.13.2","Chilled Water & Condensate Piping connections ",0,0]
[{"$nulls":3},"3.13.3","RAG c/w plenum box",0,0]
[{"$nulls":3},"3.13.4","Ducting including transformation piece, insulation, Diffusers (existing).",0,0]
[]
[{"$nulls":3},"3.14","IU.D.2.14 (14 OF 34)",null,null,{"$f":"SUM(F499:F502)+SUM(G499:G502)","v":0}]
[{"$nulls":3},"3.14.1","Fan Coil Air-Conditioning Unit (incl Valve, Controller, Heater)",0,0]
[{"$nulls":3},"3.14.2","Chilled Water & Condensate Piping connections ",0,0]
[{"$nulls":3},"3.14.3","RAG c/w plenum box",0,0]
[{"$nulls":3},"3.14.4","Ducting including transformation piece, insulation, Diffusers (existing).",0,0]
[]
[{"$nulls":3},"3.15","IU.D.2.15 (15 OF 34)",null,null,{"$f":"SUM(F505:F508)+SUM(G505:G508)","v":0}]
[{"$nulls":3},"3.15.1","Fan Coil Air-Conditioning Unit (incl Valve, Controller, Heater)",0,0]
[{"$nulls":3},"3.15.2","Chilled Water & Condensate Piping connections ",0,0]
[{"$nulls":3},"3.15.3","RAG c/w plenum box",0,0]
[{"$nulls":3},"3.15.4","Ducting including transformation piece, insulation, Diffusers (existing).",0,0]
[]
[{"$nulls":3},"3.16","IU.D.2.16 (16 OF 34)",null,null,{"$f":"SUM(F511:F514)+SUM(G511:G514)","v":0}]
[{"$nulls":3},"3.16.1","Fan Coil Air-Conditioning Unit (incl Valve, Controller, Heater)",0,0]
[{"$nulls":3},"3.16.2","Chilled Water & Condensate Piping connections ",0,0]
[{"$nulls":3},"3.16.3","RAG c/w plenum box",0,0]
[{"$nulls":3},"3.16.4","Ducting including transformation piece, insulation, Diffusers (existing).",0,0]
[]
[{"$nulls":3},"3.17","IU.D.2.17 (17 OF 34)",null,null,{"$f":"SUM(F517:F520)+SUM(G517:G520)","v":0}]
[{"$nulls":3},"3.17.4","Fan Coil Air-Conditioning Unit (incl Valve, Controller, Heater)",0,0]
[{"$nulls":3},"3.17.5","Chilled Water & Condensate Piping connections ",0,0]
[{"$nulls":3},"3.17.6","RAG c/w plenum box",0,0]
[{"$nulls":3},"3.17.6","Ducting including transformation piece, insulation, Diffusers (existing).",0,0]
[]
[{"$nulls":3},"3.18","IU.D.2.18 (18 OF 34)",null,null,{"$f":"SUM(F523:F526)+SUM(G523:G526)","v":0}]
[{"$nulls":3},"3.18.1","Fan Coil Air-Conditioning Unit (incl Valve, Controller, Heater)",0,0]
[{"$nulls":3},"3.18.2","Chilled Water & Condensate Piping connections ",0,0]
[{"$nulls":3},"3.18.3","RAG c/w plenum box",0,0]
[{"$nulls":3},"3.18.4","Ducting including transformation piece, insulation, Diffusers (existing).",0,0]
[]
[{"$nulls":3},"3.19","IU.D.2.19 (19 OF 34)",null,null,{"$f":"SUM(F529:F532)+SUM(G529:G532)","v":0}]
[{"$nulls":3},"3.19.1","Fan Coil Air-Conditioning Unit (incl Valve, Controller, Heater)",0,0]
[{"$nulls":3},"3.19.2","Chilled Water & Condensate Piping connections ",0,0]
[{"$nulls":3},"3.19.3","RAG c/w plenum box",0,0]
[{"$nulls":3},"3.19.4","Ducting including transformation piece, insulation, Diffusers (existing).",0,0]
[]
[{"$nulls":3},"3.20","IU.D.2.20 (20 OF 34)",null,null,{"$f":"SUM(F535:F538)+SUM(G535:G538)","v":0}]
[{"$nulls":3},"3.20.1","Fan Coil Air-Conditioning Unit (incl Valve, Controller, Heater)",0,0]
[{"$nulls":3},"3.20.2","Chilled Water & Condensate Piping connections ",0,0]
[{"$nulls":3},"3.20.3","RAG c/w plenum box",0,0]
[{"$nulls":3},"3.20.4","Ducting including transformation piece, insulation, Diffusers (existing).",0,0]
[]
[{"$nulls":3},"3.21","IU.D.2.21 (21 OF 34)",null,null,{"$f":"SUM(F541:F544)+SUM(G541:G544)","v":0}]
[{"$nulls":3},"3.21.1","Fan Coil Air-Conditioning Unit (incl Valve, Controller, Heater)",0,0]
[{"$nulls":3},"3.21.2","Chilled Water & Condensate Piping connections ",0,0]
[{"$nulls":3},"3.21.3","RAG c/w plenum box",0,0]
[{"$nulls":3},"3.21.4","Ducting including transformation piece, insulation, Diffusers (existing).",0,0]
[]
[{"$nulls":3},"3.22","IU.D.2.22 (22 OF 34)",null,null,{"$f":"SUM(F547:F550)+SUM(G547:G550)","v":0}]
[{"$nulls":3},"3.22.1","Fan Coil Air-Conditioning Unit (incl Valve, Controller, Heater)",0,0]
[{"$nulls":3},"3.22.2","Chilled Water & Condensate Piping connections ",0,0]
[{"$nulls":3},"3.22.3","RAG c/w plenum box",0,0]
[{"$nulls":3},"3.22.4","Ducting including transformation piece, insulation, Diffusers (existing).",0,0]
[]
[{"$nulls":3},"3.23","IU.D.2.23 (23 OF 34)",null,null,{"$f":"SUM(F553:F556)+SUM(G553:G556)","v":0}]
[{"$nulls":3},"3.23.1","Fan Coil Air-Conditioning Unit (incl Valve, Controller, Heater)",0,0]
[{"$nulls":3},"3.23.2","Chilled Water & Condensate Piping connections ",0,0]
[{"$nulls":3},"3.23.3","RAG c/w plenum box",0,0]
[{"$nulls":3},"3.23.4","Ducting including transformation piece, insulation, Diffusers (existing).",0,0]
[]
[{"$nulls":3},"3.24","IU.D.2.24 (24 OF 34)",null,null,{"$f":"SUM(F559:F562)+SUM(G559:G562)","v":0}]
[{"$nulls":3},"3.24.1","Fan Coil Air-Conditioning Unit (incl Valve, Controller, Heater)",0,0]
[{"$nulls":3},"3.24.2","Chilled Water & Condensate Piping connections ",0,0]
[{"$nulls":3},"3.24.3","RAG c/w plenum box",0,0]
[{"$nulls":3},"3.24.4","Ducting including transformation piece, insulation, Diffusers (existing).",0,0]
[]
[{"$nulls":3},"3.25","IU.D.2.25 (25 OF 34)",null,null,{"$f":"SUM(F565:F568)+SUM(G565:G568)","v":0}]
[{"$nulls":3},"3.25.1","Fan Coil Air-Conditioning Unit (incl Valve, Controller, Heater)",0,0]
[{"$nulls":3},"3.25.2","Chilled Water & Condensate Piping connections ",0,0]
[{"$nulls":3},"3.25.3","RAG c/w plenum box",0,0]
[{"$nulls":3},"3.25.4","Ducting including transformation piece, insulation, Diffusers (existing).",0,0]
[]
[{"$nulls":3},"3.26","IU.D.2.26 (26 OF 34)",null,null,{"$f":"SUM(F571:F574)+SUM(G571:G574)","v":0}]
[{"$nulls":3},"3.26.1","Fan Coil Air-Conditioning Unit (incl Valve, Controller, Heater)",0,0]
[{"$nulls":3},"3.26.2","Chilled Water & Condensate Piping connections ",0,0]
[{"$nulls":3},"3.26.3","RAG c/w plenum box",0,0]
[{"$nulls":3},"3.26.4","Ducting including transformation piece, insulation, Diffusers (existing).",0,0]
[]
[{"$nulls":3},"3.27","IU.D.2.27 (27 OF 34)",null,null,{"$f":"SUM(F577:F580)+SUM(G577:G580)","v":0}]
[{"$nulls":3},"3.27.1","Fan Coil Air-Conditioning Unit (incl Valve, Controller, Heater)",0,0]
[{"$nulls":3},"3.27.2","Chilled Water & Condensate Piping connections ",0,0]
[{"$nulls":3},"3.27.3","RAG c/w plenum box",0,0]
[{"$nulls":3},"3.27.4","Ducting including transformation piece, insulation, Diffusers (existing).",0,0]
[]
[{"$nulls":3},"3.28","IU.D.2.28 (28 OF 34)",null,null,{"$f":"SUM(F583:F586)+SUM(G583:G586)","v":0}]
[{"$nulls":3},"3.28.1","Fan Coil Air-Conditioning Unit (incl Valve, Controller, Heater)",0,0]
[{"$nulls":3},"3.28.2","Chilled Water & Condensate Piping connections ",0,0]
[{"$nulls":3},"3.28.3","RAG c/w plenum box",0,0]
[{"$nulls":3},"3.28.4","Ducting including transformation piece, insulation, Diffusers (existing).",0,0]
[]
[{"$nulls":3},"3.29","IU.D.2.29 (29 OF 34)",null,null,{"$f":"SUM(F589:F592)+SUM(G589:G592)","v":0}]
[{"$nulls":3},"3.29.1","Fan Coil Air-Conditioning Unit (incl Valve, Controller, Heater)",0,0]
[{"$nulls":3},"3.29.2","Chilled Water & Condensate Piping connections ",0,0]
[{"$nulls":3},"3.29.3","RAG c/w plenum box",0,0]
[{"$nulls":3},"3.29.4","Ducting including transformation piece, insulation, Diffusers (existing).",0,0]
[]
[{"$nulls":3},"3.30","IU.D.2.30 (30 OF 34)",null,null,{"$f":"SUM(F595:F598)+SUM(G595:G598)","v":0}]
[{"$nulls":3},"3.30.1","Fan Coil Air-Conditioning Unit (incl Valve, Controller, Heater)",0,0]
[{"$nulls":3},"3.30.2","Chilled Water & Condensate Piping connections ",0,0]
[{"$nulls":3},"3.30.3","RAG c/w plenum box",0,0]
[{"$nulls":3},"3.30.4","Ducting including transformation piece, insulation, Diffusers (existing).",0,0]
[]
[{"$nulls":3},"3.31","IU.D.2.31 (31 OF 34)",null,null,{"$f":"SUM(F601:F604)+SUM(G601:G604)","v":0}]
[{"$nulls":3},"3.31.1","Fan Coil Air-Conditioning Unit (incl Valve, Controller, Heater)",0,0]
[{"$nulls":3},"3.31.2","Chilled Water & Condensate Piping connections ",0,0]
[{"$nulls":3},"3.31.3","RAG c/w plenum box",0,0]
[{"$nulls":3},"3.31.4","Ducting including transformation piece, insulation, Diffusers (existing).",0,0]
[]
[{"$nulls":3},"3.32","IU.D.2.32 (32 OF 34)",null,null,{"$f":"SUM(F607:F610)+SUM(G607:G610)","v":0}]
[{"$nulls":3},"3.32.1","Fan Coil Air-Conditioning Unit (incl Valve, Controller, Heater)",0,0]
[{"$nulls":3},"3.32.2","Chilled Water & Condensate Piping connections ",0,0]
[{"$nulls":3},"3.32.3","RAG c/w plenum box",0,0]
[{"$nulls":3},"3.32.4","Ducting including transformation piece, insulation, Diffusers (existing).",0,0]
[]
[{"$nulls":3},"3.33","IU.D.2.33 (33 OF 34)",null,null,{"$f":"SUM(F613:F616)+SUM(G613:G616)","v":0}]
[{"$nulls":3},"3.33.1","Fan Coil Air-Conditioning Unit (incl Valve, Controller, Heater)",0,0]
[{"$nulls":3},"3.33.2","Chilled Water & Condensate Piping connections ",0,0]
[{"$nulls":3},"3.33.3","RAG c/w plenum box",0,0]
[{"$nulls":3},"3.33.4","Ducting including transformation piece, insulation, Diffusers (existing).",0,0]
[]
[{"$nulls":3},"3.34","IU.D.2.34 (34 OF 34)",null,null,{"$f":"SUM(F619:F622)+SUM(G619:G622)","v":0}]
[{"$nulls":3},"3.34.1","Fan Coil Air-Conditioning Unit (incl Valve, Controller, Heater)",0,0]
[{"$nulls":3},"3.34.2","Chilled Water & Condensate Piping connections ",0,0]
[{"$nulls":3},"3.34.3","RAG c/w plenum box",0,0]
[{"$nulls":3},"3.34.4","Ducting including transformation piece, insulation, Diffusers (existing).",0,0]
[]
[{"$nulls":3},"3.35","Drain Piping",null,null,{"$f":"SUM(F625+G625)","v":0}]
[{"$nulls":3},"3.35.1","UPVC Drain piping c/w all bends, P-traps and outlets",0,0]
[{"$nulls":4},"SUB TOTAL ITEM 3",null,null,{"$f":"SUM(H419:H625)","v":0}]
[{"$nulls":4},"SUB TOTAL ITEMS 1,2,3",null,null,{"$f":"SUM(H204,H418,H626)","v":0}]

{"sheet":"B4","index":4,"n_rows":239,"n_cols":8,"rows_kept":239,"merged":[[0,4,0,7]]}
[{"$nulls":4},"BILL NO 4: BLOCK E  FAN COIL UNIT SUPPLY, COMMISSION & INSTALLATION"]
[{"$nulls":4},"DESCRIPTION","SUPPLY \nRATE","INSTALLATION RATE","AMOUNT"]
[{"$nulls":4},"FAN COIL UNITS "]
["g",null,null,"1","GROUND FLOOR"]
["g","HA 1",null,"1.1","IU.E.0.01 (1 OF 10)",null,null,{"$f":"SUM(F6:F9)+SUM(G6:G9)","v":0}]
["g","HA 1",null,"1.1.1","Fan Coil Air-Conditioning Unit (incl Valve, Controller, Heater)",0,0]
["g","HA 1",null,"1.1.2","Chilled Water & Condensate Piping connections ",0,0]
["g","HA 1",null,"1.1.3","RAG c/w plenum box",0,0]
["g","HA 1",null,"1.1.4","Ducting including transformation piece, insulation, Diffusers (existing).",0,0]
["g","HA 1"]
["g","HA 1",null,"1.2","IU.E.0.02  (2 OF 10)",null,null,{"$f":"SUM(F12:F15)+SUM(G12:G15)","v":0}]
["g","HA 1",null,"1.2.1","Fan Coil Air-Conditioning Unit (incl Valve, Controller, Heater)",0,0]
["g","HA 1",null,"1.2.2","Chilled Water & Condensate Piping connections ",0,0]
["g","HA 1",null,"1.2.3","RAG c/w plenum box",0,0]
["g","HA 1",null,"1.2.4","Ducting including transformation piece, insulation, Diffusers (existing).",0,0]
["g","HA 1"]
["g","HA 1",null,"1.3","IU.E.0.03 (3 OF 10)",null,null,{"$f":"SUM(F18:F21)+SUM(G18:G21)","v":0}]
["g","HA 1",null,"1.3.1","Fan Coil Air-Conditioning Unit (incl Valve, Controller, Heater)",0,0]
["g","HA 1",null,"1.3.2","Chilled Water & Condensate Piping connections ",0,0]
["g","HA 1",null,"1.3.3","RAG c/w plenum box",0,0]
["g","HA 1",null,"1.3.4","Ducting including transformation piece, insulation, Diffusers (existing).",0,0]
["g","HA 1"]
["g","HA 1",null,"1.4","IU.E.0.04 (4 OF 10)",null,null,{"$f":"SUM(F24:F27)+SUM(G24:G27)","v":0}]
["g","HA 1",null,"1.4.1","Fan Coil Air-Conditioning Unit (incl Valve, Controller, Heater)",0,0]
["g","HA 1",null,"1.4.2","Chilled Water & Condensate Piping connections ",0,0]
["g","HA 1",null,"1.4.3","RAG c/w plenum box",0,0]
["g","HA 1",null,"1.4.4","Ducting including transformation piece, insulation, Diffusers (existing).",0,0]
["g","HA 1"]
["g","HA 1",null,"1.5","IU.E.0.05 (5 OF 10)",null,null,{"$f":"SUM(F30:F33)+SUM(G30:G33)","v":0}]
["g","HA 1",null,"1.5.1","Fan Coil Air-Conditioning Unit (incl Valve, Controller, Heater)",0,0]
["g","HA 1",null,"1.5.2","Chilled Water & Condensate Piping connections ",0,0]
["g","HA 1",null,"1.5.3","RAG c/w plenum box",0,0]
["g","HA 1",null,"1.5.4","Ducting including transformation piece, insulation, Diffusers (existing).",0,0]
[]
["g","CA 1",null,"1.6","IU.E.0.06 (6 OF 10)",null,null,{"$f":"SUM(F36:F39)+SUM(G36:G39)","v":0}]
["g","CA 1",null,"1.6.1","Fan Coil Air-Conditioning Unit (incl Valve, Controller, Heater)",0,0]
["g","CA 1",null,"1.6.2","Chilled Water & Condensate Piping connections ",0,0]
[{"$nulls":3},"1.6.3","RAG c/w plenum box",0,0]
[{"$nulls":3},"1.6.4","Ducting including transformation piece, insulation, Diffusers (existing).",0,0]
[]
[{"$nulls":3},"1.7","IU.E.0.07 (7 OF 10)",null,null,{"$f":"SUM(F42:F45)+SUM(G42:G45)","v":0}]
[{"$nulls":3},"1.7.1","Fan Coil Air-Conditioning Unit (incl Valve, Controller, Heater)",0,0]
[{"$nulls":3},"1.7.2","Chilled Water & Condensate Piping connections ",0,0]
[{"$nulls":3},"1.7.3","RAG c/w plenum box",0,0]
[{"$nulls":3},"1.7.4","Ducting including transformation piece, insulation, Diffusers (existing).",0,0]
[]
[{"$nulls":3},"1.8","IU.E.0.08 (8 OF 10)",null,null,{"$f":"SUM(F48:F51)+SUM(G48:G51)","v":0}]
[{"$nulls":3},"1.8.1","Fan Coil Air-Conditioning Unit (incl Valve, Controller, Heater)",0,0]
[{"$nulls":3},"1.8.2","Chilled Water & Condensate Piping connections ",0,0]
[{"$nulls":3},"1.8.3","RAG c/w plenum box",0,0]
[{"$nulls":3},"1.8.4","Ducting including transformation piece, insulation, Diffusers (existing).",0,0]
[]
[{"$nulls":3},"1.9","IU.E.0.09 (9 OF 10)",null,null,{"$f":"SUM(F54:F57)+SUM(G54:G57)","v":0}]
[{"$nulls":3},"1.9.1","Fan Coil Air-Conditioning Unit (incl Valve, Controller, Heater)",0,0]
[{"$nulls":3},"1.9.2","Chilled Water & Condensate Piping connections ",0,0]
[{"$nulls":3},"1.9.3","RAG c/w plenum box",0,0]
[{"$nulls":3},"1.9.4","Ducting including transformation piece, insulation, Diffusers (existing).",0,0]
[]
[{"$nulls":3},"1.10","IU.E.0.10 (10 OF 10)",null,null,{"$f":"SUM(F60:F63)+SUM(G60:G63)","v":0}]
[{"$nulls":3},"1.10.1","Fan Coil Air-Conditioning Unit (incl Valve, Controller, Heater)",0,0]
[{"$nulls":3},"1.10.2","Chilled Water & Condensate Piping connections ",0,0]
[{"$nulls":3},"1.10.3","RAG c/w plenum box",0,0]
[{"$nulls":3},"1.10.4","Ducting including transformation piece, insulation, Diffusers (existing).",0,0]
[]
[{"$nulls":3},"1.11","Drain Piping",null,null,{"$f":"SUM(F66+G66)","v":0}]
[{"$nulls":3},"1.11.1","UPVC Drain piping c/w all bends, P-traps and outlets",0,0]
[{"$nulls":4},"SUB TOTAL ITEM 1",null,null,{"$f":"SUM(H4:H66)","v":0}]
[{"$nulls":3},"2","FIRST FLOOR"]
[{"$nulls":3},"2.1","IU.E.1.01 (1 OF 28)",null,null,{"$f":"SUM(F70:F73)+SUM(G70:G73)","v":0}]
[{"$nulls":3},"2.1.1","Fan Coil Air-Conditioning Unit (incl Valve, Controller, Heater)",0,0]
[{"$nulls":3},"2.1.2","Chilled Water & Condensate Piping connections ",0,0]
[{"$nulls":3},"2.1.3","RAG c/w plenum box",0,0]
[{"$nulls":3},"2.1.4","Ducting including transformation piece, insulation, Diffusers (existing).",0,0]
[]
[{"$nulls":3},"2.2","IU.E.1.02 (2 OF 28)",null,null,{"$f":"SUM(F76:F79)+SUM(G76:G79)","v":0}]
[{"$nulls":3},"2.2.1","Fan Coil Air-Conditioning Unit (incl Valve, Controller, Heater)",0,0]
[{"$nulls":3},"2.2.2","Chilled Water & Condensate Piping connections ",0,0]
[{"$nulls":3},"2.2.3","RAG c/w plenum box",0,0]
[{"$nulls":3},"2.2.4","Ducting including transformation piece, insulation, Diffusers (existing).",0,0]
[]
[{"$nulls":3},"2.3","IU.E.1.03 (3 OF 28)",null,null,{"$f":"SUM(F82:F85)+SUM(G82:G85)","v":0}]
[{"$nulls":3},"2.3.1","Fan Coil Air-Conditioning Unit (incl Valve, Controller, Heater)",0,0]
[{"$nulls":3},"2.3.2","Chilled Water & Condensate Piping connections ",0,0]
[{"$nulls":3},"2.3.3","RAG c/w plenum box",0,0]
[{"$nulls":3},"2.3.4","Ducting including transformation piece, insulation, Diffusers (existing).",0,0]
[]
[{"$nulls":3},"2.4","IU.E.1.04 (4 OF 28)",null,null,{"$f":"SUM(F88:F91)+SUM(G88:G91)","v":0}]
[{"$nulls":3},"2.4.1","Fan Coil Air-Conditioning Unit (incl Valve, Controller, Heater)",0,0]
[{"$nulls":3},"2.4.2","Chilled Water & Condensate Piping connections ",0,0]
[{"$nulls":3},"2.4.3","RAG c/w plenum box",0,0]
[{"$nulls":3},"2.4.4","Ducting including transformation piece, insulation, Diffusers (existing).",0,0]
[]
[{"$nulls":3},"2.5","IU.E.1.05 (5 OF 28)",null,null,{"$f":"SUM(F94:F97)+SUM(G94:G97)","v":0}]
[{"$nulls":3},"2.5.1","Fan Coil Air-Conditioning Unit (incl Valve, Controller, Heater)",0,0]
[{"$nulls":3},"2.5.2","Chilled Water & Condensate Piping connections ",0,0]
[{"$nulls":3},"2.5.3","RAG c/w plenum box",0,0]
[{"$nulls":3},"2.5.4","Ducting including transformation piece, insulation, Diffusers (existing).",0,0]
[]
[{"$nulls":3},"2.6","IU.E.1.06 (6 OF 28)",null,null,{"$f":"SUM(F100:F103)+SUM(G100:G103)","v":0}]
[{"$nulls":3},"2.6.1","Fan Coil Air-Conditioning Unit (incl Valve, Controller, Heater)",0,0]
[{"$nulls":3},"2.6.2","Chilled Water & Condensate Piping connections ",0,0]
[{"$nulls":3},"2.6.3","RAG c/w plenum box",0,0]
[{"$nulls":3},"2.6.4","Ducting including transformation piece, insulation, Diffusers (existing).",0,0]
[]
[{"$nulls":3},"2.7","IU.E.1.07 (7 OF 28)",null,null,{"$f":"SUM(F106:F109)+SUM(G106:G109)","v":0}]
[{"$nulls":3},"2.7.1","Fan Coil Air-Conditioning Unit (incl Valve, Controller, Heater)",0,0]
[{"$nulls":3},"2.7.2","Chilled Water & Condensate Piping connections ",0,0]
[{"$nulls":3},"2.7.3","RAG c/w plenum box",0,0]
[{"$nulls":3},"2.7.4","Ducting including transformation piece, insulation, Diffusers (existing).",0,0]
[]
[{"$nulls":3},"2.8","IU.E.1.08 (8 OF 28)",null,null,{"$f":"SUM(F112:F115)+SUM(G112:G115)","v":0}]
[{"$nulls":3},"2.8.1","Fan Coil Air-Conditioning Unit (incl Valve, Controller, Heater)",0,0]
[{"$nulls":3},"2.8.2","Chilled Water & Condensate Piping connections ",0,0]
[{"$nulls":3},"2.8.3","RAG c/w plenum box",0,0]
[{"$nulls":3},"2.8.4","Ducting including transformation piece, insulation, Diffusers (existing).",0,0]
[]
[{"$nulls":3},"2.9","IU.E.1.09 (9 OF 28)",null,null,{"$f":"SUM(F118:F121)+SUM(G118:G121)","v":0}]
[{"$nulls":3},"2.9.1","Fan Coil Air-Conditioning Unit (incl Valve, Controller, Heater)",0,0]
[{"$nulls":3},"2.9.2","Chilled Water & Condensate Piping connections ",0,0]
[{"$nulls":3},"2.9.3","RAG c/w plenum box",0,0]
[{"$nulls":3},"2.9.4","Ducting including transformation piece, insulation, Diffusers (existing).",0,0]
[]
[{"$nulls":3},"2.10","IU.E.1.10 (10 OF 28)",null,null,{"$f":"SUM(F124:F127)+SUM(G124:G127)","v":0}]
[{"$nulls":3},"2.10.1","Fan Coil Air-Conditioning Unit (incl Valve, Controller, Heater)",0,0]
[{"$nulls":3},"2.10.2","Chilled Water & Condensate Piping connections ",0,0]
[{"$nulls":3},"2.10.3","RAG c/w plenum box",0,0]
[{"$nulls":3},"2.10.4","Ducting including transformation piece, insulation, Diffusers (existing).",0,0]
[]
[{"$nulls":3},"2.11","IU.E.1.11 (11 OF 28)",null,null,{"$f":"SUM(F130:F133)+SUM(G130:G133)","v":0}]
[{"$nulls":3},"2.11.1","Fan Coil Air-Conditioning Unit (incl Valve, Controller, Heater)",0,0]
[{"$nulls":3},"2.11.2","Chilled Water & Condensate Piping connections ",0,0]
[{"$nulls":3},"2.11.3","RAG c/w plenum box",0,0]
[{"$nulls":3},"2.11.4","Ducting including transformation piece, insulation, Diffusers (existing).",0,0]
[]
[{"$nulls":3},"2.12","IU.E.1.12 (12 OF 28)",null,null,{"$f":"SUM(F136:F139)+SUM(G136:G139)","v":0}]
[{"$nulls":3},"2.12.1","Fan Coil Air-Conditioning Unit (incl Valve, Controller, Heater)",0,0]
[{"$nulls":3},"2.12.2","Chilled Water & Condensate Piping connections ",0,0]
[{"$nulls":3},"2.12.3","RAG c/w plenum box",0,0]
[{"$nulls":3},"2.12.4","Ducting including transformation piece, insulation, Diffusers (existing).",0,0]
[]
[{"$nulls":3},"2.13","IU.E.1.13 (13 OF 28)",null,null,{"$f":"SUM(F142:F145)+SUM(G142:G145)","v":0}]
[{"$nulls":3},"2.13.1","Fan Coil Air-Conditioning Unit (incl Valve, Controller, Heater)",0,0]
[{"$nulls":3},"2.13.2","Chilled Water & Condensate Piping connections ",0,0]
[{"$nulls":3},"2.13.3","RAG c/w plenum box",0,0]
[{"$nulls":3},"2.13.4","Ducting including transformation piece, insulation, Diffusers (existing).",0,0]
[]
[{"$nulls":3},"2.14","IU.E.1.14 (14 OF 28)",null,null,{"$f":"SUM(F148:F151)+SUM(G148:G151)","v":0}]
[{"$nulls":3},"2.14.1","Fan Coil Air-Conditioning Unit (incl Valve, Controller, Heater)",0,0]
[{"$nulls":3},"2.14.2","Chilled Water & Condensate Piping connections ",0,0]
[{"$nulls":3},"2.14.3","RAG c/w plenum box",0,0]
[{"$nulls":3},"2.14.4","Ducting including transformation piece, insulation, Diffusers (existing).",0,0]
[]
[{"$nulls":3},"2.15","IU.E.1.15 (15 OF 28)",null,null,{"$f":"SUM(F154:F157)+SUM(G154:G157)","v":0}]
[{"$nulls":3},"2.15.1","Fan Coil Air-Conditioning Unit (incl Valve, Controller, Heater)",0,0]
[{"$nulls":3},"2.15.2","Chilled Water & Condensate Piping connections ",0,0]
[{"$nulls":3},"2.15.3","RAG c/w plenum box",0,0]
[{"$nulls":3},"2.15.4","Ducting including transformation piece, insulation, Diffusers (existing).",0,0]
[]
[{"$nulls":3},"2.16","IU.E.1.16 (16 OF 28)",null,null,{"$f":"SUM(F160:F163)+SUM(G160:G163)","v":0}]
["g","OU1",null,"2.16.1","Fan Coil Air-Conditioning Unit (incl Valve, Controller, Heater)",0,0]
["g","OU1",null,"2.16.2","Chilled Water & Condensate Piping connections ",0,0]
["g","OU1",null,"2.16.3","RAG c/w plenum box",0,0]
["g",null,null,"2.16.4","Ducting including transformation piece, insulation, Diffusers (existing).",0,0]
[1]
[1,null,null,"2.17","IU.E.1.17 (17 OF 28)",null,null,{"$f":"SUM(F166:F169)+SUM(G166:G169)","v":0}]
[1,"HA 1",null,"2.17.1","Fan Coil Air-Conditioning Unit (incl Valve, Controller, Heater)",0,0]
[1,"HA 1",null,"2.17.2","Chilled Water & Condensate Piping connections ",0,0]
[1,"HA 1",null,"2.17.3","RAG c/w plenum box",0,0]
[1,"HA 1",null,"2.17.4","Ducting including transformation piece, insulation, Diffusers (existing).",0,0]
[1,"HA 1"]
[1,"HA 1",null,"2.18","IU.E.1.18 (18 OF 28)",null,null,{"$f":"SUM(F172:F175)+SUM(G172:G175)","v":0}]
[1,"HA 1",null,"2.18.1","Fan Coil Air-Conditioning Unit (incl Valve, Controller, Heater)",0,0]
[1,"HA 1",null,"2.18.2","Chilled Water & Condensate Piping connections ",0,0]
[1,"HA 1",null,"2.18.3","RAG c/w plenum box",0,0]
[1,"HA 1",null,"2.18.4","Ducting including transformation piece, insulation, Diffusers (existing).",0,0]
[1,"HA 1"]
[1,"HA 1",null,"2.19","IU.E.1.19 (19 OF 28)",null,null,{"$f":"SUM(F178:F181)+SUM(G178:G181)","v":0}]
[1,"HA 1",null,"2.19.1","Fan Coil Air-Conditioning Unit (incl Valve, Controller, Heater)",0,0]
[1,"HA 1",null,"2.19.2","Chilled Water & Condensate Piping connections ",0,0]
[1,"HA 1",null,"2.19.3","RAG c/w plenum box",0,0]
[1,"HA 1",null,"2.19.4","Ducting including transformation piece, insulation, Diffusers (existing).",0,0]
[]
[{"$nulls":3},"2.20","IU.E.1.20 (20 OF 28)",null,null,{"$f":"SUM(F184:F187)+SUM(G184:G187)","v":0}]
[{"$nulls":3},"2.20.1","Fan Coil Air-Conditioning Unit (incl Valve, Controller, Heater)",0,0]
[{"$nulls":3},"2.21.2","Chilled Water & Condensate Piping connections ",0,0]
[{"$nulls":3},"2.21.3","RAG c/w plenum box",0,0]
[{"$nulls":3},"2.21.4","Ducting including transformation piece, insulation, Diffusers (existing).",0,0]
[]
[{"$nulls":3},"2.21","IU.E.1.21 (21 OF 28)",null,null,{"$f":"SUM(F190:F193)+SUM(G190:G193)","v":0}]
[{"$nulls":3},"2.21.1","Fan Coil Air-Conditioning Unit (incl Valve, Controller, Heater)",0,0]
[{"$nulls":3},"2.21.2","Chilled Water & Condensate Piping connections ",0,0]
[{"$nulls":3},"2.21.3","RAG c/w plenum box",0,0]
[{"$nulls":3},"2.21.4","Ducting including transformation piece, insulation, Diffusers (existing).",0,0]
[]
[{"$nulls":3},"2.22","IU.E.1.22 (22 OF 28)",null,null,{"$f":"SUM(F196:F199)+SUM(G196:G199)","v":0}]
[{"$nulls":3},"2.22.1","Fan Coil Air-Conditioning Unit (incl Valve, Controller, Heater)",0,0]
[{"$nulls":3},"2.22.2","Chilled Water & Condensate Piping connections ",0,0]
[{"$nulls":3},"2.22.3","RAG c/w plenum box",0,0]
[{"$nulls":3},"2.22.4","Ducting including transformation piece, insulation, Diffusers (existing).",0,0]
[]
[{"$nulls":3},"2.23","IU.E.1.23 (23 OF 28)",null,null,{"$f":"SUM(F202:F205)+SUM(G202:G205)","v":0}]
[{"$nulls":3},"2.23.1","Fan Coil Air-Conditioning Unit (incl Valve, Controller, Heater)",0,0]
[{"$nulls":3},"2.23.2","Chilled Water & Condensate Piping connections ",0,0]
[{"$nulls":3},"2.23.3","RAG c/w plenum box",0,0]
[{"$nulls":3},"2.23.4","Ducting including transformation piece, insulation, Diffusers (existing).",0,0]
[]
[{"$nulls":3},"2.24","IU.E.1.24 (24 OF 28)",null,null,{"$f":"SUM(F208:F211)+SUM(G208:G211)","v":0}]
[{"$nulls":3},"2.24.1","Fan Coil Air-Conditioning Unit (incl Valve, Controller, Heater)",0,0]
[{"$nulls":3},"2.24.2","Chilled Water & Condensate Piping connections ",0,0]
[{"$nulls":3},"2.24.3","RAG c/w plenum box",0,0]
[{"$nulls":3},"2.24.4","Ducting including transformation piece, insulation, Diffusers (existing).",0,0]
[]
[{"$nulls":3},"2.25","IU.E.1.25 (25 OF 28)",null,null,{"$f":"SUM(F214:F217)+SUM(G214:G217)","v":0}]
[{"$nulls":3},"2.25.1","Fan Coil Air-Conditioning Unit (incl Valve, Controller, Heater)",0,0]
[{"$nulls":3},"2.25.2","Chilled Water & Condensate Piping connections ",0,0]
[{"$nulls":3},"2.25.3","RAG c/w plenum box",0,0]
[{"$nulls":3},"2.25.4","Ducting including transformation piece, insulation, Diffusers (existing).",0,0]
[]
[{"$nulls":3},"2.26","IU.E.1.26 (26 OF 28)",null,null,{"$f":"SUM(F220:F223)+SUM(G220:G223)","v":0}]
[{"$nulls":3},"2.26.1","Fan Coil Air-Conditioning Unit (incl Valve, Controller, Heater)",0,0]
[{"$nulls":3},"2.26.2","Chilled Water & Condensate Piping connections ",0,0]
[{"$nulls":3},"2.26.3","RAG c/w plenum box",0,0]
[{"$nulls":3},"2.26.4","Ducting including transformation piece, insulation, Diffusers (existing).",0,0]
[]
[{"$nulls":3},"2.27","IU.E.1.27 (27 OF 28)",null,null,{"$f":"SUM(F226:F229)+SUM(G226:G229)","v":0}]
[{"$nulls":3},"2.27.1","Fan Coil Air-Conditioning Unit (incl Valve, Controller, Heater)",0,0]
[{"$nulls":3},"2.27.2","Chilled Water & Condensate Piping connections ",0,0]
[{"$nulls":3},"2.27.3","RAG c/w plenum box",0,0]
[{"$nulls":3},"2.27.4","Ducting including transformation piece, insulation, Diffusers (existing).",0,0]
[]
[{"$nulls":3},"2.28","IU.E.1.28 (28 OF 28)",null,null,{"$f":"SUM(F232:F235)+SUM(G232:G235)","v":0}]
[{"$nulls":3},"2.28.1","Fan Coil Air-Conditioning Unit (incl Valve, Controller, Heater)",0,0]
[{"$nulls":3},"2.28.2","Chilled Water & Condensate Piping connections ",0,0]
[{"$nulls":3},"2.28.3","RAG c/w plenum box",0,0]
[{"$nulls":3},"2.28.4","Ducting including transformation piece, insulation, Diffusers (existing).",0,0]
[{"$nulls":3},"2.29","Drain Piping",null,null,{"$f":"SUM(F237+G237)","v":0}]
[{"$nulls":3},"2.29.1","UPVC Drain piping c/w all bends, P-traps and outlets",0,0]
[{"$nulls":4},"SUB TOTAL ITEM 2",null,null,{"$f":"SUM(H68:H237)","v":0}]
[{"$nulls":4},"SUB TOTAL ITEMS 1,2",null,null,{"$f":"SUM(H67,H238)","v":0}]

{"sheet":"B5","index":5,"n_rows":360,"n_cols":8,"rows_kept":360,"merged":[[0,4,0,7]]}
[{"$nulls":4},"BILL NO 5: BLOCK F  FAN COIL UNIT SUPPLY, COMMISSION & INSTALLATION"]
[{"$nulls":4},"DESCRIPTION","SUPPLY \nRATE","INSTALLATION RATE","AMOUNT"]
[{"$nulls":4},"FAN COIL UNITS "]
["g",null,null,"1","GROUND FLOOR"]
["g","HA 1",null,"1.1","IU.F.0.1 (1 OF 28)",null,null,{"$f":"SUM(F6:F9)+SUM(G6:G9)","v":0}]
["g","HA 1",null,"1.1.1","Fan Coil Air-Conditioning Unit (incl Valve, Controller, Heater)",0,0]
["g","HA 1",null,"1.1.2","Chilled Water & Condensate Piping connections ",0,0]
["g","HA 1",null,"1.1.3","RAG c/w plenum box",0,0]
["g","HA 1",null,"1.1.4","Ducting including transformation piece, insulation, Diffusers (existing).",0,0]
["g","HA 1"]
["g","HA 1",null,"1.2","IU.F.0.2 (2 OF 28)",null,null,{"$f":"SUM(F12:F15)+SUM(G12:G15)","v":0}]
["g","HA 1",null,"1.2.1","Fan Coil Air-Conditioning Unit (incl Valve, Controller, Heater)",0,0]
["g","HA 1",null,"1.2.2","Chilled Water & Condensate Piping connections ",0,0]
["g","HA 1",null,"1.2.3","RAG c/w plenum box",0,0]
["g","HA 1",null,"1.2.4","Ducting including transformation piece, insulation, Diffusers (existing).",0,0]
["g","HA 1"]
["g","HA 1",null,"1.3","IU.F.0.3 (3 OF 28)",null,null,{"$f":"SUM(F18:F21)+SUM(G18:G21)","v":0}]
["g","HA 1",null,"1.3.1","Fan Coil Air-Conditioning Unit (incl Valve, Controller, Heater)",0,0]
["g","HA 1",null,"1.3.2","Chilled Water & Condensate Piping connections ",0,0]
["g","HA 1",null,"1.3.3","RAG c/w plenum box",0,0]
["g","HA 1",null,"1.3.4","Ducting including transformation piece, insulation, Diffusers (existing).",0,0]
["g","HA 1"]
["g","HA 1",null,"1.4","IU.F.0.4 (4 OF 28)",null,null,{"$f":"SUM(F24:F27)+SUM(G24:G27)","v":0}]
["g","HA 1",null,"1.4.1","Fan Coil Air-Conditioning Unit (incl Valve, Controller, Heater)",0,0]
["g","HA 1",null,"1.4.2","Chilled Water & Condensate Piping connections ",0,0]
["g","HA 1",null,"1.4.3","RAG c/w plenum box",0,0]
["g","HA 1",null,"1.4.4","Ducting including transformation piece, insulation, Diffusers (existing).",0,0]
["g","HA 1"]
["g","HA 1",null,"1.5","IU.F.0.5 (5 OF 28)",null,null,{"$f":"SUM(F30:F33)+SUM(G30:G33)","v":0}]
["g","HA 1",null,"1.5.1","Fan Coil Air-Conditioning Unit (incl Valve, Controller, Heater)",0,0]
["g","HA 1",null,"1.5.2","Chilled Water & Condensate Piping connections ",0,0]
["g","HA 1",null,"1.5.3","RAG c/w plenum box",0,0]
["g","HA 1",null,"1.5.4","Ducting including transformation piece, insulation, Diffusers (existing).",0,0]
[]
["g","CA 1",null,"1.6","IU.F.0.6 (6 OF 28)",null,null,{"$f":"SUM(F36:F39)+SUM(G36:G39)","v":0}]
["g","CA 1",null,"1.6.1","Fan Coil Air-Conditioning Unit (incl Valve, Controller, Heater)",0,0]
["g","CA 1",null,"1.6.2","Chilled Water & Condensate Piping connections ",0,0]
[{"$nulls":3},"1.6.3","RAG c/w plenum box",0,0]
[{"$nulls":3},"1.6.4","Ducting including transformation piece, insulation, Diffusers (existing).",0,0]
[]
[{"$nulls":3},"1.7","IU.F.0.7 (7 OF 28)",null,null,{"$f":"SUM(F42:F45)+SUM(G42:G45)","v":0}]
[{"$nulls":3},"1.7.1","Fan Coil Air-Conditioning Unit (incl Valve, Controller, Heater)",0,0]
[{"$nulls":3},"1.7.2","Chilled Water & Condensate Piping connections ",0,0]
[{"$nulls":3},"1.7.3","RAG c/w plenum box",0,0]
[{"$nulls":3},"1.7.4","Ducting including transformation piece, insulation, Diffusers (existing).",0,0]
[]
[{"$nulls":3},"1.8","IU.F.0.8 (8 OF 28)",null,null,{"$f":"SUM(F48:F51)+SUM(G48:G51)","v":0}]
[{"$nulls":3},"1.8.1","Fan Coil Air-Conditioning Unit (incl Valve, Controller, Heater)",0,0]
[{"$nulls":3},"1.8.2","Chilled Water & Condensate Piping connections ",0,0]
[{"$nulls":3},"1.8.3","RAG c/w plenum box",0,0]
[{"$nulls":3},"1.8.4","Ducting including transformation piece, insulation, Diffusers (existing).",0,0]
[]
[{"$nulls":3},"1.9","IU.F.0.9 (9 OF 28)",null,null,{"$f":"SUM(F54:F57)+SUM(G54:G57)","v":0}]
[{"$nulls":3},"1.9.1","Fan Coil Air-Conditioning Unit (incl Valve, Controller, Heater)",0,0]
[{"$nulls":3},"1.9.2","Chilled Water & Condensate Piping connections ",0,0]
[{"$nulls":3},"1.9.3","RAG c/w plenum box",0,0]
[{"$nulls":3},"1.9.4","Ducting including transformation piece, insulation, Diffusers (existing).",0,0]
[]
[{"$nulls":3},"1.10","IU.F.0.10 (10 OF 28)",null,null,{"$f":"SUM(F60:F63)+SUM(G60:G63)","v":0}]
[{"$nulls":3},"1.10.1","Fan Coil Air-Conditioning Unit (incl Valve, Controller, Heater)",0,0]
[{"$nulls":3},"1.10.2","Chilled Water & Condensate Piping connections ",0,0]
[{"$nulls":3},"1.10.3","RAG c/w plenum box",0,0]
[{"$nulls":3},"1.10.4","Ducting including transformation piece, insulation, Diffusers (existing).",0,0]
[]
[{"$nulls":3},"1.11","IU.F.0.11 (11 OF 28)",null,null,{"$f":"SUM(F66:F69)+SUM(G66:G69)","v":0}]
[{"$nulls":3},"1.11.1","Fan Coil Air-Conditioning Unit (incl Valve, Controller, Heater)",0,0]
[{"$nulls":3},"1.11.2","Chilled Water & Condensate Piping connections ",0,0]
[{"$nulls":3},"1.11.3","RAG c/w plenum box",0,0]
[{"$nulls":3},"1.11.4","Ducting including transformation piece, insulation, Diffusers (existing).",0,0]
[]
[{"$nulls":3},"1.12","IU.F.0.12 (12 OF 28)",null,null,{"$f":"SUM(F72:F75)+SUM(G72:G75)","v":0}]
[{"$nulls":3},"1.12.1","Fan Coil Air-Conditioning Unit (incl Valve, Controller, Heater)",0,0]
[{"$nulls":3},"1.12.2","Chilled Water & Condensate Piping connections ",0,0]
[{"$nulls":3},"1.12.3","RAG c/w plenum box",0,0]
[{"$nulls":3},"1.12.4","Ducting including transformation piece, insulation, Diffusers (existing).",0,0]
[]
[{"$nulls":3},"1.13","IU.F.0.13 (13 OF 28)",null,null,{"$f":"SUM(F78:F81)+SUM(G78:G81)","v":0}]
[{"$nulls":3},"1.13.1","Fan Coil Air-Conditioning Unit (incl Valve, Controller, Heater)",0,0]
[{"$nulls":3},"1.13.2","Chilled Water & Condensate Piping connections ",0,0]
[{"$nulls":3},"1.13.3","RAG c/w plenum box",0,0]
[{"$nulls":3},"1.13.4","Ducting including transformation piece, insulation, Diffusers (existing).",0,0]
[]
[{"$nulls":3},"1.14","IU.F.0.14 (14 OF 28)",null,null,{"$f":"SUM(F84:F87)+SUM(G84:G87)","v":0}]
[{"$nulls":3},"1.14.1","Fan Coil Air-Conditioning Unit (incl Valve, Controller, Heater)",0,0]
[{"$nulls":3},"1.14.2","Chilled Water & Condensate Piping connections ",0,0]
[{"$nulls":3},"1.14.3","RAG c/w plenum box",0,0]
[{"$nulls":3},"1.14.4","Ducting including transformation piece, insulation, Diffusers (existing).",0,0]
[]
[{"$nulls":3},"1.15","IU.F.0.15 (15 OF 28)",null,null,{"$f":"SUM(F90:F93)+SUM(G90:G93)","v":0}]
[{"$nulls":3},"1.15.1","Fan Coil Air-Conditioning Unit (incl Valve, Controller, Heater)",0,0]
[{"$nulls":3},"1.15.2","Chilled Water & Condensate Piping connections ",0,0]
[{"$nulls":3},"1.15.3","RAG c/w plenum box",0,0]
[{"$nulls":3},"1.15.4","Ducting including transformation piece, insulation, Diffusers (existing).",0,0]
[]
[{"$nulls":3},"1.16","IU.F.0.17 (16 OF 28)",null,null,{"$f":"SUM(F96:F99)+SUM(G96:G99)","v":0}]
[{"$nulls":3},"1.16.1","Fan Coil Air-Conditioning Unit (incl Valve, Controller, Heater)",0,0]
[{"$nulls":3},"1.16.2","Chilled Water & Condensate Piping connections ",0,0]
[{"$nulls":3},"1.16.3","RAG c/w plenum box",0,0]
[{"$nulls":3},"1.16.4","Ducting including transformation piece, insulation, Diffusers (existing).",0,0]
[]
[{"$nulls":3},"1.17","IU.F.0.18 (17 OF 28)",null,null,{"$f":"SUM(F102:F105)+SUM(G102:G105)","v":0}]
[{"$nulls":3},"1.17.1","Fan Coil Air-Conditioning Unit (incl Valve, Controller, Heater)",0,0]
[{"$nulls":3},"1.17.2","Chilled Water & Condensate Piping connections ",0,0]
[{"$nulls":3},"1.17.3","RAG c/w plenum box",0,0]
[{"$nulls":3},"1.17.4","Ducting including transformation piece, insulation, Diffusers (existing).",0,0]
[]
[{"$nulls":3},"1.18","IU.F.0.19 (18 OF 28)",null,null,{"$f":"SUM(F108:F111)+SUM(G108:G111)","v":0}]
[{"$nulls":3},"1.18.1","Fan Coil Air-Conditioning Unit (incl Valve, Controller, Heater)",0,0]
[{"$nulls":3},"1.18.2","Chilled Water & Condensate Piping connections ",0,0]
[{"$nulls":3},"1.18.3","RAG c/w plenum box",0,0]
[{"$nulls":3},"1.18.4","Ducting including transformation piece, insulation, Diffusers (existing).",0,0]
[]
[{"$nulls":3},"1.19","IU.F.0.20 (19 OF 28)",null,null,{"$f":"SUM(F114:F117)+SUM(G114:G117)","v":0}]
[{"$nulls":3},"1.19.1","Fan Coil Air-Conditioning Unit (incl Valve, Controller, Heater)",0,0]
[{"$nulls":3},"1.19.2","Chilled Water & Condensate Piping connections ",0,0]
[{"$nulls":3},"1.19.3","RAG c/w plenum box",0,0]
[{"$nulls":3},"1.19.4","Ducting including transformation piece, insulation, Diffusers (existing).",0,0]
[]
[{"$nulls":3},"1.20","IU.F.0.21 (20 OF 28)",null,null,{"$f":"SUM(F120:F123)+SUM(G120:G123)","v":0}]
[{"$nulls":3},"1.20.1","Fan Coil Air-Conditioning Unit (incl Valve, Controller, Heater)",0,0]
[{"$nulls":3},"1.20.2","Chilled Water & Condensate Piping connections ",0,0]
[{"$nulls":3},"1.20.3","RAG c/w plenum box",0,0]
[{"$nulls":3},"1.20.4","Ducting including transformation piece, insulation, Diffusers (existing).",0,0]
[]
[{"$nulls":3},"1.21","IU.F.0.22 (21 OF 28)",null,null,{"$f":"SUM(F126:F129)+SUM(G126:G129)","v":0}]
[{"$nulls":3},"1.21.1","Fan Coil Air-Conditioning Unit (incl Valve, Controller, Heater)",0,0]
[{"$nulls":3},"1.21.2","Chilled Water & Condensate Piping connections ",0,0]
[{"$nulls":3},"1.21.3","RAG c/w plenum box",0,0]
[{"$nulls":3},"1.21.4","Ducting including transformation piece, insulation, Diffusers (existing).",0,0]
[]
[{"$nulls":3},"1.22","IU.F.0.23 (22 OF 28)",null,null,{"$f":"SUM(F132:F135)+SUM(G132:G135)","v":0}]
[{"$nulls":3},"1.22.1","Fan Coil Air-Conditioning Unit (incl Valve, Controller, Heater)",0,0]
[{"$nulls":3},"1.22.2","Chilled Water & Condensate Piping connections ",0,0]
[{"$nulls":3},"1.22.3","RAG c/w plenum box",0,0]
[{"$nulls":3},"1.22.4","Ducting including transformation piece, insulation, Diffusers (existing).",0,0]
[]
[{"$nulls":3},"1.23","IU.F.0.24 (23 OF 28)",null,null,{"$f":"SUM(F138:F141)+SUM(G138:G141)","v":0}]
[{"$nulls":3},"1.23.1","Fan Coil Air-Conditioning Unit (incl Valve, Controller, Heater)",0,0]
[{"$nulls":3},"1.23.2","Chilled Water & Condensate Piping connections ",0,0]
[{"$nulls":3},"1.23.3","RAG c/w plenum box",0,0]
[{"$nulls":3},"1.23.4","Ducting including transformation piece, insulation, Diffusers (existing).",0,0]
[]
[{"$nulls":3},"1.24","IU.F.0.25 (24 OF 28)",null,null,{"$f":"SUM(F144:F147)+SUM(G144:G147)","v":0}]
[{"$nulls":3},"1.24.1","Fan Coil Air-Conditioning Unit (incl Valve, Controller, Heater)",0,0]
[{"$nulls":3},"1.24.2","Chilled Water & Condensate Piping connections ",0,0]
[{"$nulls":3},"1.24.3","RAG c/w plenum box",0,0]
[{"$nulls":3},"1.24.4","Ducting including transformation piece, insulation, Diffusers (existing).",0,0]
[]
[{"$nulls":3},"2.25","IU.F.0.26 (25 OF 28)",null,null,{"$f":"SUM(F150:F153)+SUM(G150:G153)","v":0}]
[{"$nulls":3},"1.25.1","Fan Coil Air-Conditioning Unit (incl Valve, Controller, Heater)",0,0]
[{"$nulls":3},"1.25.2","Chilled Water & Condensate Piping connections ",0,0]
[{"$nulls":3},"1.25.3","RAG c/w plenum box",0,0]
[{"$nulls":3},"1.25.4","Ducting including transformation piece, insulation, Diffusers (existing).",0,0]
[]
[{"$nulls":3},"2.26","IU.F.0.27 (26 OF 28)",null,null,{"$f":"SUM(F156:F159)+SUM(G156:G159)","v":0}]
[{"$nulls":3},"2.26.1","Fan Coil Air-Conditioning Unit (incl Valve, Controller, Heater)",0,0]
[{"$nulls":3},"2.26.2","Chilled Water & Condensate Piping connections ",0,0]
[{"$nulls":3},"2.26.3","RAG c/w plenum box",0,0]
[{"$nulls":3},"2.26.4","Ducting including transformation piece, insulation, Diffusers (existing).",0,0]
["g","OU1"]
["g","OU1",null,"2.27","IU.F.0.28 (27 OF 28)",null,null,{"$f":"SUM(F162:F165)+SUM(G162:G165)","v":0}]
["g","OU1",null,"2.27.1","Fan Coil Air-Conditioning Unit (incl Valve, Controller, Heater)",0,0]
["g",null,null,"2.27.2","Chilled Water & Condensate Piping connections ",0,0]
[1,null,null,"2.27.3","RAG c/w plenum box",0,0]
[1,null,null,"2.27.4","Ducting including transformation piece, insulation, Diffusers (existing).",0,0]
[1,"HA 1"]
[1,"HA 1",null,"2.28","IU.F.0.29 (28 OF 28)",null,null,{"$f":"SUM(F168:F171)+SUM(G168:G171)","v":0}]
[1,"HA 1",null,"2.28.1","Fan Coil Air-Conditioning Unit (incl Valve, Controller, Heater)",0,0]
[1,"HA 1",null,"2.28.2","Chilled Water & Condensate Piping connections ",0,0]
[1,"HA 1",null,"2.28.3","RAG c/w plenum box",0,0]
[1,"HA 1",null,"2.28.4","Ducting including transformation piece, insulation, Diffusers (existing).",0,0]
[1,"HA 1"]
[1,"HA 1",null,"1.10","Drain Piping",null,null,{"$f":"SUM(F174+G174)","v":0}]
[1,"HA 1",null,"1.10.1","UPVC Drain piping c/w all bends, P-traps and outlets",0,0]
[1,"HA 1",null,null,"SUB TOTAL ITEM 1",null,null,{"$f":"SUM(H4:H174)","v":0}]
[1,"HA 1",null,"2","FIRST FLOOR"]
[1,"HA 1",null,"2.1","IU.F.1.1 (1 OF 30)",null,null,{"$f":"SUM(F178:F181)+SUM(G178:G181)","v":0}]
[1,"HA 1",null,"2.1.1","Fan Coil Air-Conditioning Unit (incl Valve, Controller, Heater)",0,0]
[1,"HA 1",null,"2.1.2","Chilled Water & Condensate Piping connections ",0,0]
[1,"HA 1",null,"2.1.3","RAG c/w plenum box",0,0]
[1,"HA 1",null,"2.1.4","Ducting including transformation piece, insulation, Diffusers (existing).",0,0]
[]
[{"$nulls":3},"2.2","IU.F.1.2 (2 OF 30)",null,null,{"$f":"SUM(F184:F187)+SUM(G184:G187)","v":0}]
[{"$nulls":3},"2.2.1","Fan Coil Air-Conditioning Unit (incl Valve, Controller, Heater)",0,0]
[{"$nulls":3},"2.2.2","Chilled Water & Condensate Piping connections ",0,0]
[{"$nulls":3},"2.2.3","RAG c/w plenum box",0,0]
[{"$nulls":3},"2.2.4","Ducting including transformation piece, insulation, Diffusers (existing).",0,0]
[]
[{"$nulls":3},"2.3","IU.F.1.3 (3 OF 30)",null,null,{"$f":"SUM(F190:F193)+SUM(G190:G193)","v":0}]
[{"$nulls":3},"2.3.1","Fan Coil Air-Conditioning Unit (incl Valve, Controller, Heater)",0,0]
[{"$nulls":3},"2.3.2","Chilled Water & Condensate Piping connections ",0,0]
[{"$nulls":3},"2.3.3","RAG c/w plenum box",0,0]
[{"$nulls":3},"2.3.4","Ducting including transformation piece, insulation, Diffusers (existing).",0,0]
[]
[{"$nulls":3},"2.4","IU.F.1.4 (4 OF 30)",null,null,{"$f":"SUM(F196:F199)+SUM(G196:G199)","v":0}]
[{"$nulls":3},"2.4.1","Fan Coil Air-Conditioning Unit (incl Valve, Controller, Heater)",0,0]
[{"$nulls":3},"2.4.2","Chilled Water & Condensate Piping connections ",0,0]
[{"$nulls":3},"2.4.3","RAG c/w plenum box",0,0]
[{"$nulls":3},"2.4.4","Ducting including transformation piece, insulation, Diffusers (existing).",0,0]
[]
[{"$nulls":3},"2.5","IU.F.1.5 (5 OF 30)",null,null,{"$f":"SUM(F202:F205)+SUM(G202:G205)","v":0}]
[{"$nulls":3},"2.5.1","Fan Coil Air-Conditioning Unit (incl Valve, Controller, Heater)",0,0]
[{"$nulls":3},"2.5.2","Chilled Water & Condensate Piping connections ",0,0]
[{"$nulls":3},"2.5.3","RAG c/w plenum box",0,0]
[{"$nulls":3},"2.5.4","Ducting including transformation piece, insulation, Diffusers (existing).",0,0]
[]
[{"$nulls":3},"2.6","IU.F.1.6 (6 OF 30)",null,null,{"$f":"SUM(F208:F211)+SUM(G208:G211)","v":0}]
[{"$nulls":3},"2.6.1","Fan Coil Air-Conditioning Unit (incl Valve, Controller, Heater)",0,0]
[{"$nulls":3},"2.6.2","Chilled Water & Condensate Piping connections ",0,0]
[{"$nulls":3},"2.6.3","RAG c/w plenum box",0,0]
[{"$nulls":3},"2.6.4","Ducting including transformation piece, insulation, Diffusers (existing).",0,0]
[]
[{"$nulls":3},"2.7","IU.F.1.7 (7 OF 30)",null,null,{"$f":"SUM(F214:F217)+SUM(G214:G217)","v":0}]
[{"$nulls":3},"2.7.1","Fan Coil Air-Conditioning Unit (incl Valve, Controller, Heater)",0,0]
[{"$nulls":3},"2.7.2","Chilled Water & Condensate Piping connections ",0,0]
[{"$nulls":3},"2.7.3","RAG c/w plenum box",0,0]
[{"$nulls":3},"2.7.4","Ducting including transformation piece, insulation, Diffusers (existing).",0,0]
[]
[{"$nulls":3},"2.8","IU.F.1.8 (8 OF 30)",null,null,{"$f":"SUM(F220:F223)+SUM(G220:G223)","v":0}]
[{"$nulls":3},"2.8.1","Fan Coil Air-Conditioning Unit (incl Valve, Controller, Heater)",0,0]
[{"$nulls":3},"2.8.2","Chilled Water & Condensate Piping connections ",0,0]
[{"$nulls":3},"2.8.3","RAG c/w plenum box",0,0]
[{"$nulls":3},"2.8.4","Ducting including transformation piece, insulation, Diffusers (existing).",0,0]
[]
[{"$nulls":3},"2.9","IU.F.1.9 (9 OF 30)",null,null,{"$f":"SUM(F226:F229)+SUM(G226:G229)","v":0}]
[{"$nulls":3},"2.9.1","Fan Coil Air-Conditioning Unit (incl Valve, Controller, Heater)",0,0]
[{"$nulls":3},"2.9.2","Chilled Water & Condensate Piping connections ",0,0]
[{"$nulls":3},"2.9.3","RAG c/w plenum box",0,0]
[{"$nulls":3},"2.9.4","Ducting including transformation piece, insulation, Diffusers (existing).",0,0]
[]
[{"$nulls":3},"2.10","IU.F.1.10 (10 OF 30)",null,null,{"$f":"SUM(F232:F235)+SUM(G232:G235)","v":0}]
[{"$nulls":3},"2.10.1","Fan Coil Air-Conditioning Unit (incl Valve, Controller, Heater)",0,0]
[{"$nulls":3},"2.10.2","Chilled Water & Condensate Piping connections ",0,0]
[{"$nulls":3},"2.10.3","RAG c/w plenum box",0,0]
[{"$nulls":3},"2.10.4","Ducting including transformation piece, insulation, Diffusers (existing).",0,0]
[]
[{"$nulls":3},"2.11","IU.F.1.11 (11 OF 30)",null,null,{"$f":"SUM(F238:F241)+SUM(G238:G241)","v":0}]
[{"$nulls":3},"2.11.1","Fan Coil Air-Conditioning Unit (incl Valve, Controller, Heater)",0,0]
[{"$nulls":3},"2.11.2","Chilled Water & Condensate Piping connections ",0,0]
[{"$nulls":3},"2.11.3","RAG c/w plenum box",0,0]
[{"$nulls":3},"2.11.4","Ducting including transformation piece, insulation, Diffusers (existing).",0,0]
[]
[{"$nulls":3},"2.12","IU.F.1.12 (12 OF 30)",null,null,{"$f":"SUM(F244:F247)+SUM(G244:G247)","v":0}]
[{"$nulls":3},"2.12.1","Fan Coil Air-Conditioning Unit (incl Valve, Controller, Heater)",0,0]
[{"$nulls":3},"2.12.2","Chilled Water & Condensate Piping connections ",0,0]
[{"$nulls":3},"2.12.3","RAG c/w plenum box",0,0]
[{"$nulls":3},"2.12.4","Ducting including transformation piece, insulation, Diffusers (existing).",0,0]
[]
[{"$nulls":3},"2.13","IU.F.1.13 (13 OF 30)",null,null,{"$f":"SUM(F250:F253)+SUM(G250:G253)","v":0}]
[{"$nulls":3},"2.13.1","Fan Coil Air-Conditioning Unit (incl Valve, Controller, Heater)",0,0]
[{"$nulls":3},"2.13.2","Chilled Water & Condensate Piping connections ",0,0]
[{"$nulls":3},"2.13.3","RAG c/w plenum box",0,0]
[{"$nulls":3},"2.13.4","Ducting including transformation piece, insulation, Diffusers (existing).",0,0]
[]
[{"$nulls":3},"2.14","IU.F.1.14 (14 OF 30)",null,null,{"$f":"SUM(F256:F259)+SUM(G256:G259)","v":0}]
[{"$nulls":3},"2.14.1","Fan Coil Air-Conditioning Unit (incl Valve, Controller, Heater)",0,0]
[{"$nulls":3},"2.14.2","Chilled Water & Condensate Piping connections ",0,0]
[{"$nulls":3},"2.14.3","RAG c/w plenum box",0,0]
[{"$nulls":3},"2.14.4","Ducting including transformation piece, insulation, Diffusers (existing).",0,0]
[]
[{"$nulls":3},"2.15","IU.F.1.15 (15 OF 30)",null,null,{"$f":"SUM(F262:F265)+SUM(G262:G265)","v":0}]
[{"$nulls":3},"2.15.1","Fan Coil Air-Conditioning Unit (incl Valve, Controller, Heater)",0,0]
[{"$nulls":3},"2.15.2","Chilled Water & Condensate Piping connections ",0,0]
[{"$nulls":3},"2.15.3","RAG c/w plenum box",0,0]
[{"$nulls":3},"2.15.4","Ducting including transformation piece, insulation, Diffusers (existing).",0,0]
[]
[{"$nulls":3},"2.16","IU.F.1.16 (16 OF 30)",null,null,{"$f":"SUM(F268:F271)+SUM(G268:G271)","v":0}]
[{"$nulls":3},"2.16.1","Fan Coil Air-Conditioning Unit (incl Valve, Controller, Heater)",0,0]
[{"$nulls":3},"2.16.2","Chilled Water & Condensate Piping connections ",0,0]
[{"$nulls":3},"2.16.3","RAG c/w plenum box",0,0]
[{"$nulls":3},"2.16.4","Ducting including transformation piece, insulation, Diffusers (existing).",0,0]
[]
[{"$nulls":3},"2.17","IU.F.1.17 (17 OF 30)",null,null,{"$f":"SUM(F274:F277)+SUM(G274:G277)","v":0}]
[{"$nulls":3},"2.17.1","Fan Coil Air-Conditioning Unit (incl Valve, Controller, Heater)",0,0]
[{"$nulls":3},"2.17.2","Chilled Water & Condensate Piping connections ",0,0]
[{"$nulls":3},"2.17.3","RAG c/w plenum box",0,0]
[{"$nulls":3},"2.17.4","Ducting including transformation piece, insulation, Diffusers (existing).",0,0]
[]
[{"$nulls":3},"2.18","IU.F.1.18 (18 OF 30)",null,null,{"$f":"SUM(F280:F283)+SUM(G280:G283)","v":0}]
[{"$nulls":3},"2.18.1","Fan Coil Air-Conditioning Unit (incl Valve, Controller, Heater)",0,0]
[{"$nulls":3},"2.18.2","Chilled Water & Condensate Piping connections ",0,0]
[{"$nulls":3},"2.18.3","RAG c/w plenum box",0,0]
[{"$nulls":3},"2.18.4","Ducting including transformation piece, insulation, Diffusers (existing).",0,0]
[]
[{"$nulls":3},"2.19","IU.F.1.19 (19 OF 30)",null,null,{"$f":"SUM(F286:F289)+SUM(G286:G289)","v":0}]
[{"$nulls":3},"2.19.1","Fan Coil Air-Conditioning Unit (incl Valve, Controller, Heater)",0,0]
[{"$nulls":3},"2.19.2","Chilled Water & Condensate Piping connections ",0,0]
[{"$nulls":3},"2.19.3","RAG c/w plenum box",0,0]
[{"$nulls":3},"2.19.4","Ducting including transformation piece, insulation, Diffusers (existing).",0,0]
[]
[{"$nulls":3},"2.20","IU.F.1.20 (20 OF 30)",null,null,{"$f":"SUM(F292:F295)+SUM(G292:G295)","v":0}]
[{"$nulls":3},"2.20.1","Fan Coil Air-Conditioning Unit (incl Valve, Controller, Heater)",0,0]
[{"$nulls":3},"2.21.2","Chilled Water & Condensate Piping connections ",0,0]
[{"$nulls":3},"2.21.3","RAG c/w plenum box",0,0]
[{"$nulls":3},"2.21.4","Ducting including transformation piece, insulation, Diffusers (existing).",0,0]
[]
[{"$nulls":3},"2.21","IU.F.1.21 (21 OF 30)",null,null,{"$f":"SUM(F298:F301)+SUM(G298:G301)","v":0}]
[{"$nulls":3},"2.21.1","Fan Coil Air-Conditioning Unit (incl Valve, Controller, Heater)",0,0]
[{"$nulls":3},"2.21.2","Chilled Water & Condensate Piping connections ",0,0]
[{"$nulls":3},"2.21.3","RAG c/w plenum box",0,0]
[{"$nulls":3},"2.21.4","Ducting including transformation piece, insulation, Diffusers (existing).",0,0]
[]
[{"$nulls":3},"2.22","IU.F.1.22 (22 OF 30)",null,null,{"$f":"SUM(F304:F307)+SUM(G304:G307)","v":0}]
[{"$nulls":3},"2.22.1","Fan Coil Air-Conditioning Unit (incl Valve, Controller, Heater)",0,0]
[{"$nulls":3},"2.22.2","Chilled Water & Condensate Piping connections ",0,0]
[{"$nulls":3},"2.22.3","RAG c/w plenum box",0,0]
[{"$nulls":3},"2.22.4","Ducting including transformation piece, insulation, Diffusers (existing).",0,0]
[]
[{"$nulls":3},"2.23","IU.F.1.23 (23 OF 30)",null,null,{"$f":"SUM(F310:F313)+SUM(G310:G313)","v":0}]
[{"$nulls":3},"2.23.1","Fan Coil Air-Conditioning Unit (incl Valve, Controller, Heater)",0,0]
[{"$nulls":3},"2.23.2","Chilled Water & Condensate Piping connections ",0,0]
[{"$nulls":3},"2.23.3","RAG c/w plenum box",0,0]
[{"$nulls":3},"2.23.4","Ducting including transformation piece, insulation, Diffusers (existing).",0,0]
[]
[{"$nulls":3},"2.24","IU.F.1.24 (24 OF 30)",null,null,{"$f":"SUM(F316:F319)+SUM(G316:G319)","v":0}]
[{"$nulls":3},"2.24.1","Fan Coil Air-Conditioning Unit (incl Valve, Controller, Heater)",0,0]
[{"$nulls":3},"2.24.2","Chilled Water & Condensate Piping connections ",0,0]
[{"$nulls":3},"2.24.3","RAG c/w plenum box",0,0]
[{"$nulls":3},"2.24.4","Ducting including transformation piece, insulation, Diffusers (existing).",0,0]
[]
[{"$nulls":3},"2.25","IU.F.1.25 (25 OF 30)",null,null,{"$f":"SUM(F322:F325)+SUM(G322:G325)","v":0}]
[{"$nulls":3},"2.25.1","Fan Coil Air-Conditioning Unit (incl Valve, Controller, Heater)",0,0]
[{"$nulls":3},"2.25.2","Chilled Water & Condensate Piping connections ",0,0]
[{"$nulls":3},"2.25.3","RAG c/w plenum box",0,0]
[{"$nulls":3},"2.25.4","Ducting including transformation piece, insulation, Diffusers (existing).",0,0]
[]
[{"$nulls":3},"2.26","IU.F.1.26 (26 OF 30)",null,null,{"$f":"SUM(F328:F331)+SUM(G328:G331)","v":0}]
[{"$nulls":3},"2.26.1","Fan Coil Air-Conditioning Unit (incl Valve, Controller, Heater)",0,0]
[{"$nulls":3},"2.26.2","Chilled Water & Condensate Piping connections ",0,0]
[{"$nulls":3},"2.26.3","RAG c/w plenum box",0,0]
[{"$nulls":3},"2.26.4","Ducting including transformation piece, insulation, Diffusers (existing).",0,0]
[]
[{"$nulls":3},"2.27","IU.F.1.27 (27 OF 30)",null,null,{"$f":"SUM(F334:F337)+SUM(G334:G337)","v":0}]
[{"$nulls":3},"2.27.1","Fan Coil Air-Conditioning Unit (incl Valve, Controller, Heater)",0,0]
[{"$nulls":3},"2.27.2","Chilled Water & Condensate Piping connections ",0,0]
[{"$nulls":3},"2.27.3","RAG c/w plenum box",0,0]
[{"$nulls":3},"2.27.4","Ducting including transformation piece, insulation, Diffusers (existing).",0,0]
[]
[{"$nulls":3},"2.28","IU.F.1.28 (28 OF 30)",null,null,{"$f":"SUM(F340:F343)+SUM(G340:G343)","v":0}]
[{"$nulls":3},"2.28.1","Fan Coil Air-Conditioning Unit (incl Valve, Controller, Heater)",0,0]
[{"$nulls":3},"2.28.2","Chilled Water & Condensate Piping connections ",0,0]
[{"$nulls":3},"2.28.3","RAG c/w plenum box",0,0]
[{"$nulls":3},"2.28.4","Ducting including transformation piece, insulation, Diffusers (existing).",0,0]
[]
[{"$nulls":3},"2.29","IU.F.1.29 (29 OF 30)",null,null,{"$f":"SUM(F346:F349)+SUM(G346:G349)","v":0}]
[{"$nulls":3},"2.29.1","Fan Coil Air-Conditioning Unit (incl Valve, Controller, Heater)",0,0]
[{"$nulls":3},"2.29.2","Chilled Water & Condensate Piping connections ",0,0]
[{"$nulls":3},"2.29.3","RAG c/w plenum box",0,0]
[{"$nulls":3},"2.29.4","Ducting including transformation piece, insulation, Diffusers (existing).",0,0]
[]
[{"$nulls":3},"2.30","IU.F.1.30 (30 OF 30)",null,null,{"$f":"SUM(F352:F355)+SUM(G352:G355)","v":0}]
[{"$nulls":3},"2.30.1","Fan Coil Air-Conditioning Unit (incl Valve, Controller, Heater)",0,0]
[{"$nulls":3},"2.30.2","Chilled Water & Condensate Piping connections ",0,0]
[{"$nulls":3},"2.30.3","RAG c/w plenum box",0,0]
[{"$nulls":3},"2.30.4","Ducting including transformation piece, insulation, Diffusers (existing).",0,0]
[]
[{"$nulls":3},"2.54","Drain Piping",null,null,{"$f":"SUM(F358+G358)","v":0}]
[{"$nulls":3},"2.54.1","UPVC Drain piping c/w all bends, P-traps and outlets",0,0]
[{"$nulls":4},"SUB TOTAL ITEM 2",null,null,{"$f":"SUM(H176:H358)","v":0}]
[{"$nulls":4},"SUB TOTAL ITEMS 1,2",null,null,{"$f":"SUM(H175,H359)","v":0}]

{"sheet":"B6","index":6,"n_rows":204,"n_cols":8,"rows_kept":204,"merged":[[0,4,0,7]]}
[{"$nulls":4},"BILL NO 6: BLOCK G  FAN COIL UNIT SUPPLY, COMMISSION & INSTALLATION"]
[{"$nulls":4},"DESCRIPTION","SUPPLY \nRATE","INSTALLATION RATE","AMOUNT"]
[{"$nulls":3},"1","GROUND FLOOR"]
["g",null,null,"1.1","IU.G.0.01 (1 OF 33)",null,null,{"$f":"SUM(F5:F8)+SUM(G5:G8)","v":0}]
["g","HA 1",null,"1.1.1","Fan Coil Air-Conditioning Unit (incl Valve, Controller, Heater)",0,0]
["g","HA 1",null,"1.1.2","Chilled Water & Condensate Piping connections ",0,0]
["g","HA 1",null,"1.1.3","RAG c/w plenum box",0,0]
["g","HA 1",null,"1.1.4","Ducting including transformation piece, insulation, Diffusers (existing).",0,0]
["g","HA 1"]
["g","HA 1",null,"1.2","IU.G.0.02  (2 OF 33)",null,null,{"$f":"SUM(F11:F14)+SUM(G11:G14)","v":0}]
["g","HA 1",null,"1.2.1","Fan Coil Air-Conditioning Unit (incl Valve, Controller, Heater)",0,0]
["g","HA 1",null,"1.2.2","Chilled Water & Condensate Piping connections ",0,0]
["g","HA 1",null,"1.2.3","RAG c/w plenum box",0,0]
["g","HA 1",null,"1.2.4","Ducting including transformation piece, insulation, Diffusers (existing).",0,0]
["g","HA 1"]
["g","HA 1",null,"1.3","IU.G.0.03 (3 OF 33)",null,null,{"$f":"SUM(F17:F20)+SUM(G17:G20)","v":0}]
["g","HA 1",null,"1.3.1","Fan Coil Air-Conditioning Unit (incl Valve, Controller, Heater)",0,0]
["g","HA 1",null,"1.3.2","Chilled Water & Condensate Piping connections ",0,0]
["g","HA 1",null,"1.3.3","RAG c/w plenum box",0,0]
["g","HA 1",null,"1.3.4","Ducting including transformation piece, insulation, Diffusers (existing).",0,0]
["g","HA 1"]
["g","HA 1",null,"1.4","IU.G.0.04 (4 OF 33)",null,null,{"$f":"SUM(F23:F26)+SUM(G23:G26)","v":0}]
["g","HA 1",null,"1.4.1","Fan Coil Air-Conditioning Unit (incl Valve, Controller, Heater)",0,0]
["g","HA 1",null,"1.4.2","Chilled Water & Condensate Piping connections ",0,0]
["g","HA 1",null,"1.4.3","RAG c/w plenum box",0,0]
["g","HA 1",null,"1.4.4","Ducting including transformation piece, insulation, Diffusers (existing).",0,0]
["g","HA 1"]
["g","HA 1",null,"1.5","IU.G.0.05 (5 OF 33)",null,null,{"$f":"SUM(F29:F32)+SUM(G29:G32)","v":0}]
["g","HA 1",null,"1.5.1","Fan Coil Air-Conditioning Unit (incl Valve, Controller, Heater)",0,0]
["g","HA 1",null,"1.5.2","Chilled Water & Condensate Piping connections ",0,0]
["g","HA 1",null,"1.5.3","RAG c/w plenum box",0,0]
["g","HA 1",null,"1.5.4","Ducting including transformation piece, insulation, Diffusers (existing).",0,0]
["g","HA 1"]
[{"$nulls":3},"1.6","IU.G.0.06 (6 OF 33)",null,null,{"$f":"SUM(F35:F38)+SUM(G35:G38)","v":0}]
["g","CA 1",null,"1.6.1","Fan Coil Air-Conditioning Unit (incl Valve, Controller, Heater)",0,0]
["g","CA 1",null,"1.6.2","Chilled Water & Condensate Piping connections ",0,0]
["g","CA 1",null,"1.6.3","RAG c/w plenum box",0,0]
[{"$nulls":3},"1.6.4","Ducting including transformation piece, insulation, Diffusers (existing).",0,0]
[]
[{"$nulls":3},"1.7","IU.G.0.07 (7 OF 33)",null,null,{"$f":"SUM(F41:F44)+SUM(G41:G44)","v":0}]
[{"$nulls":3},"1.7.1","Fan Coil Air-Conditioning Unit (incl Valve, Controller, Heater)",0,0]
[{"$nulls":3},"1.7.2","Chilled Water & Condensate Piping connections ",0,0]
[{"$nulls":3},"1.7.3","RAG c/w plenum box",0,0]
[{"$nulls":3},"1.7.4","Ducting including transformation piece, insulation, Diffusers (existing).",0,0]
[]
[{"$nulls":3},"1.8","IU.G.0.08 (8 OF 33)",null,null,{"$f":"SUM(F47:F50)+SUM(G47:G50)","v":0}]
[{"$nulls":3},"1.8.1","Fan Coil Air-Conditioning Unit (incl Valve, Controller, Heater)",0,0]
[{"$nulls":3},"1.8.2","Chilled Water & Condensate Piping connections ",0,0]
[{"$nulls":3},"1.8.3","RAG c/w plenum box",0,0]
[{"$nulls":3},"1.8.4","Ducting including transformation piece, insulation, Diffusers (existing).",0,0]
[]
[{"$nulls":3},"1.9","IU.G.0.09 (9 OF 33)",null,null,{"$f":"SUM(F53:F56)+SUM(G53:G56)","v":0}]
[{"$nulls":3},"1.9.1","Fan Coil Air-Conditioning Unit (incl Valve, Controller, Heater)",0,0]
[{"$nulls":3},"1.9.2","Chilled Water & Condensate Piping connections ",0,0]
[{"$nulls":3},"1.9.3","RAG c/w plenum box",0,0]
[{"$nulls":3},"1.9.4","Ducting including transformation piece, insulation, Diffusers (existing).",0,0]
[]
[{"$nulls":3},"1.10","IU.G.0.12 (10 OF 33)",null,null,{"$f":"SUM(F59:F62)+SUM(G59:G62)","v":0}]
[{"$nulls":3},"1.10.1","Fan Coil Air-Conditioning Unit (incl Valve, Controller, Heater)",0,0]
[{"$nulls":3},"1.10.2","Chilled Water & Condensate Piping connections ",0,0]
[{"$nulls":3},"1.10.3","RAG c/w plenum box",0,0]
[{"$nulls":3},"1.10.4","Ducting including transformation piece, insulation, Diffusers (existing).",0,0]
[]
[{"$nulls":3},"1.11","IU.G.0.13 (11 OF 33)",null,null,{"$f":"SUM(F65:F68)+SUM(G65:G68)","v":0}]
[{"$nulls":3},"1.11.1","Fan Coil Air-Conditioning Unit (incl Valve, Controller, Heater)",0,0]
[{"$nulls":3},"1.11.2","Chilled Water & Condensate Piping connections ",0,0]
[{"$nulls":3},"1.11.3","RAG c/w plenum box",0,0]
[{"$nulls":3},"1.11.4","Ducting including transformation piece, insulation, Diffusers (existing).",0,0]
[]
[{"$nulls":3},"1.12","IU.G.0.14 (12 OF 33)",null,null,{"$f":"SUM(F71:F74)+SUM(G71:G74)","v":0}]
[{"$nulls":3},"1.12.1","Fan Coil Air-Conditioning Unit (incl Valve, Controller, Heater)",0,0]
[{"$nulls":3},"1.12.2","Chilled Water & Condensate Piping connections ",0,0]
[{"$nulls":3},"1.12.3","RAG c/w plenum box",0,0]
[{"$nulls":3},"1.12.4","Ducting including transformation piece, insulation, Diffusers (existing).",0,0]
[]
[{"$nulls":3},"1.13","IU.G.0.17 (13 OF 33)",null,null,{"$f":"SUM(F77:F80)+SUM(G77:G80)","v":0}]
[{"$nulls":3},"1.13.1","Fan Coil Air-Conditioning Unit (incl Valve, Controller, Heater)",0,0]
[{"$nulls":3},"1.13.2","Chilled Water & Condensate Piping connections ",0,0]
[{"$nulls":3},"1.13.3","RAG c/w plenum box",0,0]
[{"$nulls":3},"1.13.4","Ducting including transformation piece, insulation, Diffusers (existing).",0,0]
[]
[{"$nulls":3},"1.14","IU.G.0.18 (14 OF 33)",null,null,{"$f":"SUM(F83:F86)+SUM(G83:G86)","v":0}]
[{"$nulls":3},"1.14.1","Fan Coil Air-Conditioning Unit (incl Valve, Controller, Heater)",0,0]
[{"$nulls":3},"1.14.2","Chilled Water & Condensate Piping connections ",0,0]
[{"$nulls":3},"1.14.3","RAG c/w plenum box",0,0]
[{"$nulls":3},"1.14.4","Ducting including transformation piece, insulation, Diffusers (existing).",0,0]
[]
[{"$nulls":3},"1.15","IU.G.0.19 (15 OF 33)",null,null,{"$f":"SUM(F89:F92)+SUM(G89:G92)","v":0}]
[{"$nulls":3},"1.15.1","Fan Coil Air-Conditioning Unit (incl Valve, Controller, Heater)",0,0]
[{"$nulls":3},"1.15.2","Chilled Water & Condensate Piping connections ",0,0]
[{"$nulls":3},"1.15.3","RAG c/w plenum box",0,0]
[{"$nulls":3},"1.15.4","Ducting including transformation piece, insulation, Diffusers (existing).",0,0]
[]
[{"$nulls":3},"1.16","IU.G.0.20 (16 OF 33)",null,null,{"$f":"SUM(F95:F98)+SUM(G95:G98)","v":0}]
[{"$nulls":3},"1.16.1","Fan Coil Air-Conditioning Unit (incl Valve, Controller, Heater)",0,0]
[{"$nulls":3},"1.16.2","Chilled Water & Condensate Piping connections ",0,0]
[{"$nulls":3},"1.16.3","RAG c/w plenum box",0,0]
[{"$nulls":3},"1.16.4","Ducting including transformation piece, insulation, Diffusers (existing).",0,0]
[]
[{"$nulls":3},"1.17","IU.G.0.21 (17 OF 33)",null,null,{"$f":"SUM(F101:F104)+SUM(G101:G104)","v":0}]
[{"$nulls":3},"1.17.1","Fan Coil Air-Conditioning Unit (incl Valve, Controller, Heater)",0,0]
[{"$nulls":3},"1.17.2","Chilled Water & Condensate Piping connections ",0,0]
[{"$nulls":3},"1.17.3","RAG c/w plenum box",0,0]
[{"$nulls":3},"1.17.4","Ducting including transformation piece, insulation, Diffusers (existing).",0,0]
[]
[{"$nulls":3},"1.18","IU.G.0.22 (18 OF 33)",null,null,{"$f":"SUM(F107:F110)+SUM(G107:G110)","v":0}]
[{"$nulls":3},"1.18.1","Fan Coil Air-Conditioning Unit (incl Valve, Controller, Heater)",0,0]
[{"$nulls":3},"1.18.2","Chilled Water & Condensate Piping connections ",0,0]
[{"$nulls":3},"1.18.3","RAG c/w plenum box",0,0]
[{"$nulls":3},"1.18.4","Ducting including transformation piece, insulation, Diffusers (existing).",0,0]
[]
[{"$nulls":3},"1.19","IU.G.0.23 (19 OF 33)",null,null,{"$f":"SUM(F113:F116)+SUM(G113:G116)","v":0}]
[{"$nulls":3},"1.19.1","Fan Coil Air-Conditioning Unit (incl Valve, Controller, Heater)",0,0]
[{"$nulls":3},"1.19.2","Chilled Water & Condensate Piping connections ",0,0]
[{"$nulls":3},"1.19.3","RAG c/w plenum box",0,0]
[{"$nulls":3},"1.19.4","Ducting including transformation piece, insulation, Diffusers (existing).",0,0]
[]
[{"$nulls":3},"1.20","IU.G.0.24 (20 OF 33)",null,null,{"$f":"SUM(F119:F122)+SUM(G119:G122)","v":0}]
[{"$nulls":3},"1.20.1","Fan Coil Air-Conditioning Unit (incl Valve, Controller, Heater)",0,0]
[{"$nulls":3},"1.20.2","Chilled Water & Condensate Piping connections ",0,0]
[{"$nulls":3},"1.20.3","RAG c/w plenum box",0,0]
[{"$nulls":3},"1.20.4","Ducting including transformation piece, insulation, Diffusers (existing).",0,0]
[]
[{"$nulls":3},"1.21","IU.G.0.25 (21 OF 33)",null,null,{"$f":"SUM(F125:F128)+SUM(G125:G128)","v":0}]
[{"$nulls":3},"1.21.1","Fan Coil Air-Conditioning Unit (incl Valve, Controller, Heater)",0,0]
[{"$nulls":3},"1.21.2","Chilled Water & Condensate Piping connections ",0,0]
[{"$nulls":3},"1.21.3","RAG c/w plenum box",0,0]
[{"$nulls":3},"1.21.4","Ducting including transformation piece, insulation, Diffusers (existing).",0,0]
[]
[{"$nulls":3},"1.22","IU.G.0.26  (22 OF 33)",null,null,{"$f":"SUM(F131:F134)+SUM(G131:G134)","v":0}]
[{"$nulls":3},"1.22.1","Fan Coil Air-Conditioning Unit (incl Valve, Controller, Heater)",0,0]
[{"$nulls":3},"1.22.2","Chilled Water & Condensate Piping connections ",0,0]
[{"$nulls":3},"1.22.3","RAG c/w plenum box",0,0]
[{"$nulls":3},"1.22.4","Ducting including transformation piece, insulation, Diffusers (existing).",0,0]
[]
[{"$nulls":3},"1.23","IU.G.0.27 (23 OF 33)",null,null,{"$f":"SUM(F137:F140)+SUM(G137:G140)","v":0}]
[{"$nulls":3},"1.23.1","Fan Coil Air-Conditioning Unit (incl Valve, Controller, Heater)",0,0]
[{"$nulls":3},"1.23.2","Chilled Water & Condensate Piping connections ",0,0]
[{"$nulls":3},"1.23.3","RAG c/w plenum box",0,0]
[{"$nulls":3},"1.23.4","Ducting including transformation piece, insulation, Diffusers (existing).",0,0]
[]
[{"$nulls":3},"1.24","IU.G.0.28 (24 OF 33)",null,null,{"$f":"SUM(F143:F146)+SUM(G143:G146)","v":0}]
[{"$nulls":3},"1.24.1","Fan Coil Air-Conditioning Unit (incl Valve, Controller, Heater)",0,0]
[{"$nulls":3},"1.24.2","Chilled Water & Condensate Piping connections ",0,0]
[{"$nulls":3},"1.24.3","RAG c/w plenum box",0,0]
[{"$nulls":3},"1.24.4","Ducting including transformation piece, insulation, Diffusers (existing).",0,0]
[]
[{"$nulls":3},"1.25","IU.G.0.29 (25 OF 33)",null,null,{"$f":"SUM(F149:F152)+SUM(G149:G152)","v":0}]
[{"$nulls":3},"1.25.1","Fan Coil Air-Conditioning Unit (incl Valve, Controller, Heater)",0,0]
[{"$nulls":3},"1.25.2","Chilled Water & Condensate Piping connections ",0,0]
[{"$nulls":3},"1.25.3","RAG c/w plenum box",0,0]
[{"$nulls":3},"1.25.4","Ducting including transformation piece, insulation, Diffusers (existing).",0,0]
[]
[{"$nulls":3},"1.26","IU.G.0.30 (26 OF 33)",null,null,{"$f":"SUM(F155:F158)+SUM(G155:G158)","v":0}]
[{"$nulls":3},"1.26.1","Fan Coil Air-Conditioning Unit (incl Valve, Controller, Heater)",0,0]
[{"$nulls":3},"1.26.2","Chilled Water & Condensate Piping connections ",0,0]
[{"$nulls":3},"1.26.3","RAG c/w plenum box",0,0]
[{"$nulls":3},"1.26.4","Ducting including transformation piece, insulation, Diffusers (existing).",0,0]
[]
["g","OU1",null,"1.27","IU.G.0.31 (27 OF 33)",null,null,{"$f":"SUM(F161:F164)+SUM(G161:G164)","v":0}]
["g","OU1",null,"1.27.1","Fan Coil Air-Conditioning Unit (incl Valve, Controller, Heater)",0,0]
["g","OU1",null,"1.27.2","Chilled Water & Condensate Piping connections ",0,0]
["g",null,null,"1.27.3","RAG c/w plenum box",0,0]
[1,null,null,"1.27.4","Ducting including transformation piece, insulation, Diffusers (existing).",0,0]
[1]
[1,"HA 1",null,"1.28","IU.G.0.32 (28 OF 33)",null,null,{"$f":"SUM(F167:F170)+SUM(G167:G170)","v":0}]
[1,"HA 1",null,"1.28.1","Fan Coil Air-Conditioning Unit (incl Valve, Controller, Heater)",0,0]
[1,"HA 1",null,"1.28.2","Chilled Water & Condensate Piping connections ",0,0]
[1,"HA 1",null,"1.28.3","RAG c/w plenum box",0,0]
[1,"HA 1",null,"1.28.4","Ducting including transformation piece, insulation, Diffusers (existing).",0,0]
[1,"HA 1"]
[1,"HA 1",null,"1.29","IU.G.0.33 (29 OF 33)",null,null,{"$f":"SUM(F173:F176)+SUM(G173:G176)","v":0}]
[1,"HA 1",null,"1.29.1","Fan Coil Air-Conditioning Unit (incl Valve, Controller, Heater)",0,0]
[1,"HA 1",null,"1.29.2","Chilled Water & Condensate Piping connections ",0,0]
[1,"HA 1",null,"1.29.3","RAG c/w plenum box",0,0]
[1,"HA 1",null,"1.29.4","Ducting including transformation piece, insulation, Diffusers (existing).",0,0]
[1,"HA 1"]
[1,"HA 1",null,"1.30","IU.G.0.34 (30 OF 33)",null,null,{"$f":"SUM(F179:F182)+SUM(G179:G182)","v":0}]
[1,"HA 1",null,"1.30.1","Fan Coil Air-Conditioning Unit (incl Valve, Controller, Heater)",0,0]
[1,"HA 1",null,"1.30.2","Chilled Water & Condensate Piping connections ",0,0]
[1,"HA 1",null,"1.30.3","RAG c/w plenum box",0,0]
[{"$nulls":3},"1.30.4","Ducting including transformation piece, insulation, Diffusers (existing).",0,0]
[]
[{"$nulls":3},"1.31","IU.G.0.35 (31 OF 33)",null,null,{"$f":"SUM(F185:F188)+SUM(G185:G188)","v":0}]
[{"$nulls":3},"1.31.1","Fan Coil Air-Conditioning Unit (incl Valve, Controller, Heater)",0,0]
[{"$nulls":3},"1.31.2","Chilled Water & Condensate Piping connections ",0,0]
[{"$nulls":3},"1.31.3","RAG c/w plenum box",0,0]
[{"$nulls":3},"1.31.4","Ducting including transformation piece, insulation, Diffusers (existing).",0,0]
[]
[{"$nulls":3},"1.32","IU.G.0.36 (32 OF 33)",null,null,{"$f":"SUM(F191:F194)+SUM(G191:G194)","v":0}]
[{"$nulls":3},"1.32.1","Fan Coil Air-Conditioning Unit (incl Valve, Controller, Heater)",0,0]
[{"$nulls":3},"1.32.2","Chilled Water & Condensate Piping connections ",0,0]
[{"$nulls":3},"1.32.3","RAG c/w plenum box",0,0]
[{"$nulls":3},"1.32.4","Ducting including transformation piece, insulation, Diffusers (existing).",0,0]
[]
[{"$nulls":3},"1.33","IU.G.0.37 (33 OF 33)",null,null,{"$f":"SUM(F197:F200)+SUM(G197:G200)","v":0}]
[{"$nulls":3},"1.33.1","Fan Coil Air-Conditioning Unit (incl Valve, Controller, Heater)",0,0]
[{"$nulls":3},"1.33.2","Chilled Water & Condensate Piping connections ",0,0]
[{"$nulls":3},"1.33.3","RAG c/w plenum box",0,0]
[{"$nulls":3},"1.33.4","Ducting including transformation piece, insulation, Diffusers (existing).",0,0]
[]
[{"$nulls":3},"1.34","Drain Piping",null,null,{"$f":"SUM(F203+G203)","v":0}]
[{"$nulls":3},"1.34.1","UPVC Drain piping c/w all bends, P-traps and outlets",0,0]
[{"$nulls":4},"SUB TOTAL ITEM 1",null,null,{"$f":"SUM(H3:H203)","v":0}]

{"sheet":"B7","index":7,"n_rows":452,"n_cols":8,"rows_kept":452,"merged":[[0,4,0,7]]}
[{"$nulls":4},"BILL NO 7: BLOCK GH  FAN COIL UNIT SUPPLY, COMMISSION & INSTALLATION"]
[{"$nulls":4},"DESCRIPTION","SUPPLY \nRATE","INSTALLATION RATE","AMOUNT"]
[{"$nulls":4},"FAN COIL UNITS "]
["g",null,null,"1","FIRST FLOOR"]
["g","HA 1",null,"1.1","IU.GH.1.01 (1 OF 74)",null,null,{"$f":"SUM(F6:F9)+SUM(G6:G9)","v":0}]
["g","HA 1",null,"1.1.1","Fan Coil Air-Conditioning Unit (incl Valve, Controller, Heater)",0,0]
["g","HA 1",null,"1.1.2","Chilled Water & Condensate Piping connections ",0,0]
["g","HA 1",null,"1.1.3","RAG c/w plenum box",0,0]
["g","HA 1",null,"1.1.4","Ducting including transformation piece, insulation, Diffusers (existing).",0,0]
["g","HA 1"]
["g","HA 1",null,"1.2","IU.GH.1.02  (2 OF 74)",null,null,{"$f":"SUM(F12:F15)+SUM(G12:G15)","v":0}]
["g","HA 1",null,"1.2.1","Fan Coil Air-Conditioning Unit (incl Valve, Controller, Heater)",0,0]
["g","HA 1",null,"1.2.2","Chilled Water & Condensate Piping connections ",0,0]
["g","HA 1",null,"1.2.3","RAG c/w plenum box",0,0]
["g","HA 1",null,"1.2.4","Ducting including transformation piece, insulation, Diffusers (existing).",0,0]
["g","HA 1"]
["g","HA 1",null,"1.3","IU.GH.1.03 (3 OF 74)",null,null,{"$f":"SUM(F18:F21)+SUM(G18:G21)","v":0}]
["g","HA 1",null,"1.3.1","Fan Coil Air-Conditioning Unit (incl Valve, Controller, Heater)",0,0]
["g","HA 1",null,"1.3.2","Chilled Water & Condensate Piping connections ",0,0]
["g","HA 1",null,"1.3.3","RAG c/w plenum box",0,0]
["g","HA 1",null,"1.3.4","Ducting including transformation piece, insulation, Diffusers (existing).",0,0]
["g","HA 1"]
["g","HA 1",null,"1.4","IU.GH.1.04 (4 OF 74)",null,null,{"$f":"SUM(F24:F27)+SUM(G24:G27)","v":0}]
["g","HA 1",null,"1.4.1","Fan Coil Air-Conditioning Unit (incl Valve, Controller, Heater)",0,0]
["g","HA 1",null,"1.4.2","Chilled Water & Condensate Piping connections ",0,0]
["g","HA 1",null,"1.4.3","RAG c/w plenum box",0,0]
["g","HA 1",null,"1.4.4","Ducting including transformation piece, insulation, Diffusers (existing).",0,0]
["g","HA 1"]
["g","HA 1",null,"1.5","IU.GH.1.05 (5 OF 74)",null,null,{"$f":"SUM(F30:F33)+SUM(G30:G33)","v":0}]
["g","HA 1",null,"1.5.1","Fan Coil Air-Conditioning Unit (incl Valve, Controller, Heater)",0,0]
["g","HA 1",null,"1.5.2","Chilled Water & Condensate Piping connections ",0,0]
["g","HA 1",null,"1.5.3","RAG c/w plenum box",0,0]
["g","HA 1",null,"1.5.4","Ducting including transformation piece, insulation, Diffusers (existing).",0,0]
[]
["g","CA 1",null,"1.6","IU.GH.1.06 (6 OF 74)",null,null,{"$f":"SUM(F36:F39)+SUM(G36:G39)","v":0}]
["g","CA 1",null,"1.6.1","Fan Coil Air-Conditioning Unit (incl Valve, Controller, Heater)",0,0]
["g","CA 1",null,"1.6.2","Chilled Water & Condensate Piping connections ",0,0]
[{"$nulls":3},"1.6.3","RAG c/w plenum box",0,0]
[{"$nulls":3},"1.6.4","Ducting including transformation piece, insulation, Diffusers (existing).",0,0]
[]
[{"$nulls":3},"1.7","IU.GH.1.07 (7 OF 74)",null,null,{"$f":"SUM(F42:F45)+SUM(G42:G45)","v":0}]
[{"$nulls":3},"1.7.1","Fan Coil Air-Conditioning Unit (incl Valve, Controller, Heater)",0,0]
[{"$nulls":3},"1.7.2","Chilled Water & Condensate Piping connections ",0,0]
[{"$nulls":3},"1.7.3","RAG c/w plenum box",0,0]
[{"$nulls":3},"1.7.4","Ducting including transformation piece, insulation, Diffusers (existing).",0,0]
[]
[{"$nulls":3},"1.8","IU.GH.1.08 (8 OF 74)",null,null,{"$f":"SUM(F48:F51)+SUM(G48:G51)","v":0}]
[{"$nulls":3},"1.8.1","Fan Coil Air-Conditioning Unit (incl Valve, Controller, Heater)",0,0]
[{"$nulls":3},"1.8.2","Chilled Water & Condensate Piping connections ",0,0]
[{"$nulls":3},"1.8.3","RAG c/w plenum box",0,0]
[{"$nulls":3},"1.8.4","Ducting including transformation piece, insulation, Diffusers (existing).",0,0]
[]
[{"$nulls":3},"1.9","IU.GH.1.09 (9 OF 74)",null,null,{"$f":"SUM(F54:F57)+SUM(G54:G57)","v":0}]
[{"$nulls":3},"1.9.1","Fan Coil Air-Conditioning Unit (incl Valve, Controller, Heater)",0,0]
[{"$nulls":3},"1.9.2","Chilled Water & Condensate Piping connections ",0,0]
[{"$nulls":3},"1.9.3","RAG c/w plenum box",0,0]
[{"$nulls":3},"1.9.4","Ducting including transformation piece, insulation, Diffusers (existing).",0,0]
[]
[{"$nulls":3},"1.10","IU.GH.1.10 (10 OF 74)",null,null,{"$f":"SUM(F60:F63)+SUM(G60:G63)","v":0}]
[{"$nulls":3},"1.10.1","Fan Coil Air-Conditioning Unit (incl Valve, Controller, Heater)",0,0]
[{"$nulls":3},"1.10.2","Chilled Water & Condensate Piping connections ",0,0]
[{"$nulls":3},"1.10.3","RAG c/w plenum box",0,0]
[{"$nulls":3},"1.10.4","Ducting including transformation piece, insulation, Diffusers (existing).",0,0]
[]
[{"$nulls":3},"1.11","IU.GH.1.11 (11 OF 74)",null,null,{"$f":"SUM(F66:F69)+SUM(G66:G69)","v":0}]
[{"$nulls":3},"1.11.1","Fan Coil Air-Conditioning Unit (incl Valve, Controller, Heater)",0,0]
[{"$nulls":3},"1.11.2","Chilled Water & Condensate Piping connections ",0,0]
[{"$nulls":3},"1.11.3","RAG c/w plenum box",0,0]
[{"$nulls":3},"1.11.4","Ducting including transformation piece, insulation, Diffusers (existing).",0,0]
[]
[{"$nulls":3},"1.12","IU.GH.1.12 (12 OF 74)",null,null,{"$f":"SUM(F72:F75)+SUM(G72:G75)","v":0}]
[{"$nulls":3},"1.12.1","Fan Coil Air-Conditioning Unit (incl Valve, Controller, Heater)",0,0]
[{"$nulls":3},"1.12.2","Chilled Water & Condensate Piping connections ",0,0]
[{"$nulls":3},"1.12.3","RAG c/w plenum box",0,0]
[{"$nulls":3},"1.12.4","Ducting including transformation piece, insulation, Diffusers (existing).",0,0]
[]
[{"$nulls":3},"1.13","IU.GH.1.13 (13 OF 74)",null,null,{"$f":"SUM(F78:F81)+SUM(G78:G81)","v":0}]
[{"$nulls":3},"1.13.1","Fan Coil Air-Conditioning Unit (incl Valve, Controller, Heater)",0,0]
[{"$nulls":3},"1.13.2","Chilled Water & Condensate Piping connections ",0,0]
[{"$nulls":3},"1.13.3","RAG c/w plenum box",0,0]
[{"$nulls":3},"1.13.4","Ducting including transformation piece, insulation, Diffusers (existing).",0,0]
[]
[{"$nulls":3},"1.14","IU.GH.1.14 (14 OF 74)",null,null,{"$f":"SUM(F84:F87)+SUM(G84:G87)","v":0}]
[{"$nulls":3},"1.14.1","Fan Coil Air-Conditioning Unit (incl Valve, Controller, Heater)",0,0]
[{"$nulls":3},"1.14.2","Chilled Water & Condensate Piping connections ",0,0]
[{"$nulls":3},"1.14.3","RAG c/w plenum box",0,0]
[{"$nulls":3},"1.14.4","Ducting including transformation piece, insulation, Diffusers (existing).",0,0]
[]
[{"$nulls":3},"1.15","IU.GH.1.15 (15 OF 74)",null,null,{"$f":"SUM(F90:F93)+SUM(G90:G93)","v":0}]
[{"$nulls":3},"1.15.1","Fan Coil Air-Conditioning Unit (incl Valve, Controller, Heater)",0,0]
[{"$nulls":3},"1.15.2","Chilled Water & Condensate Piping connections ",0,0]
[{"$nulls":3},"1.15.3","RAG c/w plenum box",0,0]
[{"$nulls":3},"1.15.4","Ducting including transformation piece, insulation, Diffusers (existing).",0,0]
[]
[{"$nulls":3},"1.16","IU.GH.1.16 (16 OF 74)",null,null,{"$f":"SUM(F96:F99)+SUM(G96:G99)","v":0}]
[{"$nulls":3},"1.16.1","Fan Coil Air-Conditioning Unit (incl Valve, Controller, Heater)",0,0]
[{"$nulls":3},"1.16.2","Chilled Water & Condensate Piping connections ",0,0]
[{"$nulls":3},"1.16.3","RAG c/w plenum box",0,0]
[{"$nulls":3},"1.16.4","Ducting including transformation piece, insulation, Diffusers (existing).",0,0]
[]
[{"$nulls":3},"1.17","IU.GH.1.17 (17 OF 74)",null,null,{"$f":"SUM(F102:F105)+SUM(G102:G105)","v":0}]
[{"$nulls":3},"1.17.1","Fan Coil Air-Conditioning Unit (incl Valve, Controller, Heater)",0,0]
[{"$nulls":3},"1.17.2","Chilled Water & Condensate Piping connections ",0,0]
[{"$nulls":3},"1.17.3","RAG c/w plenum box",0,0]
[{"$nulls":3},"1.17.4","Ducting including transformation piece, insulation, Diffusers (existing).",0,0]
[]
[{"$nulls":3},"1.18","IU.GH.1.18 (18 OF 74)",null,null,{"$f":"SUM(F108:F111)+SUM(G108:G111)","v":0}]
[{"$nulls":3},"1.18.1","Fan Coil Air-Conditioning Unit (incl Valve, Controller, Heater)",0,0]
[{"$nulls":3},"1.18.2","Chilled Water & Condensate Piping connections ",0,0]
[{"$nulls":3},"1.18.3","RAG c/w plenum box",0,0]
[{"$nulls":3},"1.18.4","Ducting including transformation piece, insulation, Diffusers (existing).",0,0]
[]
[{"$nulls":3},"1.19","IU.GH.1.19 (19 OF 74)",null,null,{"$f":"SUM(F114:F117)+SUM(G114:G117)","v":0}]
[{"$nulls":3},"1.19.1","Fan Coil Air-Conditioning Unit (incl Valve, Controller, Heater)",0,0]
[{"$nulls":3},"1.19.2","Chilled Water & Condensate Piping connections ",0,0]
[{"$nulls":3},"1.19.3","RAG c/w plenum box",0,0]
[{"$nulls":3},"1.19.4","Ducting including transformation piece, insulation, Diffusers (existing).",0,0]
[]
[{"$nulls":3},"1.20","IU.GH.1.20 (20 OF 74)",null,null,{"$f":"SUM(F120:F123)+SUM(G120:G123)","v":0}]
[{"$nulls":3},"1.20.1","Fan Coil Air-Conditioning Unit (incl Valve, Controller, Heater)",0,0]
[{"$nulls":3},"1.20.2","Chilled Water & Condensate Piping connections ",0,0]
[{"$nulls":3},"1.20.3","RAG c/w plenum box",0,0]
[{"$nulls":3},"1.20.4","Ducting including transformation piece, insulation, Diffusers (existing).",0,0]
[]
[{"$nulls":3},"1.21","IU.GH.1.21 (21 OF 74)",null,null,{"$f":"SUM(F126:F129)+SUM(G126:G129)","v":0}]
[{"$nulls":3},"1.21.1","Fan Coil Air-Conditioning Unit (incl Valve, Controller, Heater)",0,0]
[{"$nulls":3},"1.21.2","Chilled Water & Condensate Piping connections ",0,0]
[{"$nulls":3},"1.21.3","RAG c/w plenum box",0,0]
[{"$nulls":3},"1.21.4","Ducting including transformation piece, insulation, Diffusers (existing).",0,0]
[]
[{"$nulls":3},"1.22","IU.GH.1.22  (22 OF 74)",null,null,{"$f":"SUM(F132:F135)+SUM(G132:G135)","v":0}]
[{"$nulls":3},"1.22.1","Fan Coil Air-Conditioning Unit (incl Valve, Controller, Heater)",0,0]
[{"$nulls":3},"1.22.2","Chilled Water & Condensate Piping connections ",0,0]
[{"$nulls":3},"1.22.3","RAG c/w plenum box",0,0]
[{"$nulls":3},"1.22.4","Ducting including transformation piece, insulation, Diffusers (existing).",0,0]
[]
[{"$nulls":3},"1.23","IU.GH.1.23 (23 OF 74)",null,null,{"$f":"SUM(F138:F141)+SUM(G138:G141)","v":0}]
[{"$nulls":3},"1.23.1","Fan Coil Air-Conditioning Unit (incl Valve, Controller, Heater)",0,0]
[{"$nulls":3},"1.23.2","Chilled Water & Condensate Piping connections ",0,0]
[{"$nulls":3},"1.23.3","RAG c/w plenum box",0,0]
[{"$nulls":3},"1.23.4","Ducting including transformation piece, insulation, Diffusers (existing).",0,0]
[]
[{"$nulls":3},"1.24","IU.GH.1.24 (24 OF 74)",null,null,{"$f":"SUM(F144:F147)+SUM(G144:G147)","v":0}]
[{"$nulls":3},"1.24.1","Fan Coil Air-Conditioning Unit (incl Valve, Controller, Heater)",0,0]
[{"$nulls":3},"1.24.2","Chilled Water & Condensate Piping connections ",0,0]
[{"$nulls":3},"1.24.3","RAG c/w plenum box",0,0]
[{"$nulls":3},"1.24.4","Ducting including transformation piece, insulation, Diffusers (existing).",0,0]
[]
[{"$nulls":3},"1.25","IU.GH.1.25 (25 OF 74)",null,null,{"$f":"SUM(F150:F153)+SUM(G150:G153)","v":0}]
[{"$nulls":3},"1.25.1","Fan Coil Air-Conditioning Unit (incl Valve, Controller, Heater)",0,0]
[{"$nulls":3},"1.25.2","Chilled Water & Condensate Piping connections ",0,0]
[{"$nulls":3},"1.25.3","RAG c/w plenum box",0,0]
[{"$nulls":3},"1.25.4","Ducting including transformation piece, insulation, Diffusers (existing).",0,0]
[]
[{"$nulls":3},"1.26","IU.GH.1.26 (26 OF 74)",null,null,{"$f":"SUM(F156:F159)+SUM(G156:G159)","v":0}]
[{"$nulls":3},"1.26.1","Fan Coil Air-Conditioning Unit (incl Valve, Controller, Heater)",0,0]
[{"$nulls":3},"1.26.2","Chilled Water & Condensate Piping connections ",0,0]
[{"$nulls":3},"1.26.3","RAG c/w plenum box",0,0]
[{"$nulls":3},"1.26.4","Ducting including transformation piece, insulation, Diffusers (existing).",0,0]
["g","OU1"]
["g","OU1",null,"1.27","IU.GH.1.27 (27 OF 74)",null,null,{"$f":"SUM(F162:F165)+SUM(G162:G165)","v":0}]
["g","OU1",null,"1.27.1","Fan Coil Air-Conditioning Unit (incl Valve, Controller, Heater)",0,0]
["g",null,null,"1.27.2","Chilled Water & Condensate Piping connections ",0,0]
[1,null,null,"1.27.3","RAG c/w plenum box",0,0]
[1,null,null,"1.27.4","Ducting including transformation piece, insulation, Diffusers (existing).",0,0]
[1,"HA 1"]
[1,"HA 1",null,"1.28","IU.GH.1.28 (28 OF 74)",null,null,{"$f":"SUM(F168:F171)+SUM(G168:G171)","v":0}]
[1,"HA 1",null,"1.28.1","Fan Coil Air-Conditioning Unit (incl Valve, Controller, Heater)",0,0]
[1,"HA 1",null,"1.28.2","Chilled Water & Condensate Piping connections ",0,0]
[1,"HA 1",null,"1.28.3","RAG c/w plenum box",0,0]
[1,"HA 1",null,"1.28.4","Ducting including transformation piece, insulation, Diffusers (existing).",0,0]
[1,"HA 1"]
[1,"HA 1",null,"1.29","IU.GH.1.29 (29 OF 74)",null,null,{"$f":"SUM(F174:F177)+SUM(G174:G177)","v":0}]
[1,"HA 1",null,"1.29.1","Fan Coil Air-Conditioning Unit (incl Valve, Controller, Heater)",0,0]
[1,"HA 1",null,"1.29.2","Chilled Water & Condensate Piping connections ",0,0]
[1,"HA 1",null,"1.29.3","RAG c/w plenum box",0,0]
[1,"HA 1",null,"1.29.4","Ducting including transformation piece, insulation, Diffusers (existing).",0,0]
[1,"HA 1"]
[1,"HA 1",null,"1.30","IU.GH.1.30  (30 OF 74)",null,null,{"$f":"SUM(F180:F183)+SUM(G180:G183)","v":0}]
[1,"HA 1",null,"1.30.1","Fan Coil Air-Conditioning Unit (incl Valve, Controller, Heater)",0,0]
[1,"HA 1",null,"1.30.2","Chilled Water & Condensate Piping connections ",0,0]
[{"$nulls":3},"1.30.3","RAG c/w plenum box",0,0]
[{"$nulls":3},"1.30.4","Ducting including transformation piece, insulation, Diffusers (existing).",0,0]
[]
[{"$nulls":3},"1.31","IU.GH.1.31 (31 OF 74)",null,null,{"$f":"SUM(F186:F189)+SUM(G186:G189)","v":0}]
[{"$nulls":3},"1.31.1","Fan Coil Air-Conditioning Unit (incl Valve, Controller, Heater)",0,0]
[{"$nulls":3},"1.31.2","Chilled Water & Condensate Piping connections ",0,0]
[{"$nulls":3},"1.31.3","RAG c/w plenum box",0,0]
[{"$nulls":3},"1.31.4","Ducting including transformation piece, insulation, Diffusers (existing).",0,0]
[]
[{"$nulls":3},"1.32","IU.GH.1.32 (32 OF 74)",null,null,{"$f":"SUM(F192:F195)+SUM(G192:G195)","v":0}]
[{"$nulls":3},"1.32.1","Fan Coil Air-Conditioning Unit (incl Valve, Controller, Heater)",0,0]
[{"$nulls":3},"1.32.2","Chilled Water & Condensate Piping connections ",0,0]
[{"$nulls":3},"1.32.3","RAG c/w plenum box",0,0]
[{"$nulls":3},"1.32.4","Ducting including transformation piece, insulation, Diffusers (existing).",0,0]
[]
[{"$nulls":3},"1.33","IU.GH.1.33 (33 OF 74)",null,null,{"$f":"SUM(F198:F201)+SUM(G198:G201)","v":0}]
[{"$nulls":3},"1.33.1","Fan Coil Air-Conditioning Unit (incl Valve, Controller, Heater)",0,0]
[{"$nulls":3},"1.33.2","Chilled Water & Condensate Piping connections ",0,0]
[{"$nulls":3},"1.33.3","RAG c/w plenum box",0,0]
[{"$nulls":3},"1.33.4","Ducting including transformation piece, insulation, Diffusers (existing).",0,0]
[]
[{"$nulls":3},"1.34","IU.GH.1.34 (34 OF 74)",null,null,{"$f":"SUM(F204:F207)+SUM(G204:G207)","v":0}]
[{"$nulls":3},"1.34.1","Fan Coil Air-Conditioning Unit (incl Valve, Controller, Heater)",0,0]
[{"$nulls":3},"1.34.2","Chilled Water & Condensate Piping connections ",0,0]
[{"$nulls":3},"1.34.3","RAG c/w plenum box",0,0]
[{"$nulls":3},"1.34.4","Ducting including transformation piece, insulation, Diffusers (existing).",0,0]
[]
[{"$nulls":3},"1.35","IU.GH.1.35 (35 OF 74)",null,null,{"$f":"SUM(F210:F213)+SUM(G210:G213)","v":0}]
[{"$nulls":3},"1.35.1","Fan Coil Air-Conditioning Unit (incl Valve, Controller, Heater)",0,0]
[{"$nulls":3},"1.35.2","Chilled Water & Condensate Piping connections ",0,0]
[{"$nulls":3},"1.35.3","RAG c/w plenum box",0,0]
[{"$nulls":3},"1.35.4","Ducting including transformation piece, insulation, Diffusers (existing).",0,0]
[]
[{"$nulls":3},"1.36","IU.GH.1.36 (36 OF 74)",null,null,{"$f":"SUM(F216:F219)+SUM(G216:G219)","v":0}]
[{"$nulls":3},"1.36.1","Fan Coil Air-Conditioning Unit (incl Valve, Controller, Heater)",0,0]
[{"$nulls":3},"1.36.2","Chilled Water & Condensate Piping connections ",0,0]
[{"$nulls":3},"1.36.3","RAG c/w plenum box",0,0]
[{"$nulls":3},"1.36.4","Ducting including transformation piece, insulation, Diffusers (existing).",0,0]
[]
[{"$nulls":3},"1.37","IU.GH.1.37 (37 OF 74)",null,null,{"$f":"SUM(F222:F225)+SUM(G222:G225)","v":0}]
[{"$nulls":3},"1.37.1","Fan Coil Air-Conditioning Unit (incl Valve, Controller, Heater)",0,0]
[{"$nulls":3},"1.37.2","Chilled Water & Condensate Piping connections ",0,0]
[{"$nulls":3},"1.37.3","RAG c/w plenum box",0,0]
[{"$nulls":3},"1.37.4","Ducting including transformation piece, insulation, Diffusers (existing).",0,0]
[]
[{"$nulls":3},"1.38","IU.GH.1.38 (38 OF 74)",null,null,{"$f":"SUM(F228:F231)+SUM(G228:G231)","v":0}]
[{"$nulls":3},"1.38.1","Fan Coil Air-Conditioning Unit (incl Valve, Controller, Heater)",0,0]
[{"$nulls":3},"1.38.2","Chilled Water & Condensate Piping connections ",0,0]
[{"$nulls":3},"1.38.3","RAG c/w plenum box",0,0]
[{"$nulls":3},"1.38.4","Ducting including transformation piece, insulation, Diffusers (existing).",0,0]
[]
[{"$nulls":3},"1.39","IU.GH.1.39 (39 OF 74)",null,null,{"$f":"SUM(F234:F237)+SUM(G234:G237)","v":0}]
[{"$nulls":3},"1.39.1","Fan Coil Air-Conditioning Unit (incl Valve, Controller, Heater)",0,0]
[{"$nulls":3},"1.39.2","Chilled Water & Condensate Piping connections ",0,0]
[{"$nulls":3},"1.39.3","RAG c/w plenum box",0,0]
[{"$nulls":3},"1.39.4","Ducting including transformation piece, insulation, Diffusers (existing).",0,0]
[]
[{"$nulls":3},"1.40","IU.GH.1.40 (40 OF 74)",null,null,{"$f":"SUM(F240:F243)+SUM(G240:G243)","v":0}]
[{"$nulls":3},"1.40.1","Fan Coil Air-Conditioning Unit (incl Valve, Controller, Heater)",0,0]
[{"$nulls":3},"1.40.2","Chilled Water & Condensate Piping connections ",0,0]
[{"$nulls":3},"1.40.3","RAG c/w plenum box",0,0]
[{"$nulls":3},"1.40.4","Ducting including transformation piece, insulation, Diffusers (existing).",0,0]
[]
[{"$nulls":3},"1.41","IU.GH.1.41 (41 OF 74)",null,null,{"$f":"SUM(F246:F249)+SUM(G246:G249)","v":0}]
[{"$nulls":3},"1.41.1","Fan Coil Air-Conditioning Unit (incl Valve, Controller, Heater)",0,0]
[{"$nulls":3},"1.41.2","Chilled Water & Condensate Piping connections ",0,0]
[{"$nulls":3},"1.41.3","RAG c/w plenum box",0,0]
[{"$nulls":3},"1.41.4","Ducting including transformation piece, insulation, Diffusers (existing).",0,0]
[]
[{"$nulls":3},"1.42","IU.GH.1.42 (42 OF 74)",null,null,{"$f":"SUM(F252:F255)+SUM(G252:G255)","v":0}]
[{"$nulls":3},"1.42.1","Fan Coil Air-Conditioning Unit (incl Valve, Controller, Heater)",0,0]
[{"$nulls":3},"1.42.2","Chilled Water & Condensate Piping connections ",0,0]
[{"$nulls":3},"1.42.3","RAG c/w plenum box",0,0]
[{"$nulls":3},"1.42.4","Ducting including transformation piece, insulation, Diffusers (existing).",0,0]
[]
[{"$nulls":3},"1.43","IU.GH.1.43 (43 OF 74)",null,null,{"$f":"SUM(F258:F261)+SUM(G258:G261)","v":0}]
[{"$nulls":3},"1.43.1","Fan Coil Air-Conditioning Unit (incl Valve, Controller, Heater)",0,0]
[{"$nulls":3},"1.43.2","Chilled Water & Condensate Piping connections ",0,0]
[{"$nulls":3},"1.43.3","RAG c/w plenum box",0,0]
[{"$nulls":3},"1.43.4","Ducting including transformation piece, insulation, Diffusers (existing).",0,0]
[]
[{"$nulls":3},"1.44","IU.GH.1.44 (44 OF 74)",null,null,{"$f":"SUM(F264:F267)+SUM(G264:G267)","v":0}]
[{"$nulls":3},"1.44.1","Fan Coil Air-Conditioning Unit (incl Valve, Controller, Heater)",0,0]
[{"$nulls":3},"1.44.2","Chilled Water & Condensate Piping connections ",0,0]
[{"$nulls":3},"1.44.3","RAG c/w plenum box",0,0]
[{"$nulls":3},"1.44.4","Ducting including transformation piece, insulation, Diffusers (existing).",0,0]
[]
[{"$nulls":3},"1.45","IU.GH.1.47 (45 OF 74)",null,null,{"$f":"SUM(F270:F273)+SUM(G270:G273)","v":0}]
[{"$nulls":3},"1.45.1","Fan Coil Air-Conditioning Unit (incl Valve, Controller, Heater)",0,0]
[{"$nulls":3},"1.45.2","Chilled Water & Condensate Piping connections ",0,0]
[{"$nulls":3},"1.45.3","RAG c/w plenum box",0,0]
[{"$nulls":3},"1.45.4","Ducting including transformation piece, insulation, Diffusers (existing).",0,0]
[]
[{"$nulls":3},"1.46","IU.GH.1.48 (46 OF 74)",null,null,{"$f":"SUM(F276:F279)+SUM(G276:G279)","v":0}]
[{"$nulls":3},"1.46.1","Fan Coil Air-Conditioning Unit (incl Valve, Controller, Heater)",0,0]
[{"$nulls":3},"1.46.2","Chilled Water & Condensate Piping connections ",0,0]
[{"$nulls":3},"1.46.3","RAG c/w plenum box",0,0]
[{"$nulls":3},"1.46.4","Ducting including transformation piece, insulation, Diffusers (existing).",0,0]
[]
[{"$nulls":3},"1.47","IU.GH.1.49 (47 OF 74)",null,null,{"$f":"SUM(F282:F285)+SUM(G282:G285)","v":0}]
[{"$nulls":3},"1.47.1","Fan Coil Air-Conditioning Unit (incl Valve, Controller, Heater)",0,0]
[{"$nulls":3},"1.47.2","Chilled Water & Condensate Piping connections ",0,0]
[{"$nulls":3},"1.47.3","RAG c/w plenum box",0,0]
[{"$nulls":3},"1.47.4","Ducting including transformation piece, insulation, Diffusers (existing).",0,0]
[]
[{"$nulls":3},"1.48","IU.GH.1.50 (48 OF 74)",null,null,{"$f":"SUM(F288:F291)+SUM(G288:G291)","v":0}]
[{"$nulls":3},"1.48.1","Fan Coil Air-Conditioning Unit (incl Valve, Controller, Heater)",0,0]
[{"$nulls":3},"1.48.2","Chilled Water & Condensate Piping connections ",0,0]
[{"$nulls":3},"1.48.3","RAG c/w plenum box",0,0]
[{"$nulls":3},"1.48.4","Ducting including transformation piece, insulation, Diffusers (existing).",0,0]
[]
[{"$nulls":3},"1.49","IU.GH.1.51 (49 OF 74)",null,null,{"$f":"SUM(F294:F297)+SUM(G294:G297)","v":0}]
[{"$nulls":3},"1.49.1","Fan Coil Air-Conditioning Unit (incl Valve, Controller, Heater)",0,0]
[{"$nulls":3},"1.49.2","Chilled Water & Condensate Piping connections ",0,0]
[{"$nulls":3},"1.49.3","RAG c/w plenum box",0,0]
[{"$nulls":3},"1.49.4","Ducting including transformation piece, insulation, Diffusers (existing).",0,0]
[]
[{"$nulls":3},"1.50","IU.GH.1.52  (50 OF 74)",null,null,{"$f":"SUM(F300:F303)+SUM(G300:G303)","v":0}]
[{"$nulls":3},"1.50.1","Fan Coil Air-Conditioning Unit (incl Valve, Controller, Heater)",0,0]
[{"$nulls":3},"1.50.2","Chilled Water & Condensate Piping connections ",0,0]
[{"$nulls":3},"1.50.3","RAG c/w plenum box",0,0]
[{"$nulls":3},"1.50.4","Ducting including transformation piece, insulation, Diffusers (existing).",0,0]
[]
[{"$nulls":3},"1.51","IU.GH.1.53 (51 OF 74)",null,null,{"$f":"SUM(F306:F309)+SUM(G306:G309)","v":0}]
[{"$nulls":3},"1.51.1","Fan Coil Air-Conditioning Unit (incl Valve, Controller, Heater)",0,0]
[{"$nulls":3},"1.51.2","Chilled Water & Condensate Piping connections ",0,0]
[{"$nulls":3},"1.51.3","RAG c/w plenum box",0,0]
[{"$nulls":3},"1.51.4","Ducting including transformation piece, insulation, Diffusers (existing).",0,0]
[]
[{"$nulls":3},"1.52","IU.GH.1.54 (52 OF 74)",null,null,{"$f":"SUM(F312:F315)+SUM(G312:G315)","v":0}]
[{"$nulls":3},"1.52.1","Fan Coil Air-Conditioning Unit (incl Valve, Controller, Heater)",0,0]
[{"$nulls":3},"1.52.2","Chilled Water & Condensate Piping connections ",0,0]
[{"$nulls":3},"1.52.3","RAG c/w plenum box",0,0]
[{"$nulls":3},"1.52.4","Ducting including transformation piece, insulation, Diffusers (existing).",0,0]
[]
[{"$nulls":3},"1.53","IU.GH.1.55 (53 OF 74)",null,null,{"$f":"SUM(F318:F321)+SUM(G318:G321)","v":0}]
[{"$nulls":3},"1.53.1","Fan Coil Air-Conditioning Unit (incl Valve, Controller, Heater)",0,0]
[{"$nulls":3},"1.53.2","Chilled Water & Condensate Piping connections ",0,0]
[{"$nulls":3},"1.53.3","RAG c/w plenum box",0,0]
[{"$nulls":3},"1.53.4","Ducting including transformation piece, insulation, Diffusers (existing).",0,0]
[]
[{"$nulls":3},"1.54","IU.GH.1.56 (54 OF 74)",null,null,{"$f":"SUM(F324:F327)+SUM(G324:G327)","v":0}]
[{"$nulls":3},"1.54.1","Fan Coil Air-Conditioning Unit (incl Valve, Controller, Heater)",0,0]
[{"$nulls":3},"1.54.2","Chilled Water & Condensate Piping connections ",0,0]
[{"$nulls":3},"1.54.3","RAG c/w plenum box",0,0]
[{"$nulls":3},"1.54.4","Ducting including transformation piece, insulation, Diffusers (existing).",0,0]
[]
[{"$nulls":3},"1.55","IU.GH.1.57 (55 OF 74)",null,null,{"$f":"SUM(F330:F333)+SUM(G330:G333)","v":0}]
[{"$nulls":3},"1.55.1","Fan Coil Air-Conditioning Unit (incl Valve, Controller, Heater)",0,0]
[{"$nulls":3},"1.55.2","Chilled Water & Condensate Piping connections ",0,0]
[{"$nulls":3},"1.55.3","RAG c/w plenum box",0,0]
[{"$nulls":3},"1.55.4","Ducting including transformation piece, insulation, Diffusers (existing).",0,0]
[]
[{"$nulls":3},"1.56","IU.GH.1.58 (56 OF 74)",null,null,{"$f":"SUM(F336:F339)+SUM(G336:G339)","v":0}]
[{"$nulls":3},"1.56.1","Fan Coil Air-Conditioning Unit (incl Valve, Controller, Heater)",0,0]
[{"$nulls":3},"1.56.2","Chilled Water & Condensate Piping connections ",0,0]
[{"$nulls":3},"1.56.3","RAG c/w plenum box",0,0]
[{"$nulls":3},"1.56.4","Ducting including transformation piece, insulation, Diffusers (existing).",0,0]
[]
[{"$nulls":3},"1.57","IU.GH.1.59 (57 OF 74)",null,null,{"$f":"SUM(F342:F345)+SUM(G342:G345)","v":0}]
[{"$nulls":3},"1.57.1","Fan Coil Air-Conditioning Unit (incl Valve, Controller, Heater)",0,0]
[{"$nulls":3},"1.57.2","Chilled Water & Condensate Piping connections ",0,0]
[{"$nulls":3},"1.57.3","RAG c/w plenum box",0,0]
[{"$nulls":3},"1.57.4","Ducting including transformation piece, insulation, Diffusers (existing).",0,0]
[]
[{"$nulls":3},"1.58","IU.GH.1.60 (58 OF 74)",null,null,{"$f":"SUM(F348:F351)+SUM(G348:G351)","v":0}]
[{"$nulls":3},"1.58.1","Fan Coil Air-Conditioning Unit (incl Valve, Controller, Heater)",0,0]
[{"$nulls":3},"1.58.2","Chilled Water & Condensate Piping connections ",0,0]
[{"$nulls":3},"1.58.3","RAG c/w plenum box",0,0]
[{"$nulls":3},"1.58.4","Ducting including transformation piece, insulation, Diffusers (existing).",0,0]
[]
[{"$nulls":3},"1.59","IU.GH.1.61 (59 OF 74)",null,null,{"$f":"SUM(F354:F357)+SUM(G354:G357)","v":0}]
[{"$nulls":3},"1.59.1","Fan Coil Air-Conditioning Unit (incl Valve, Controller, Heater)",0,0]
[{"$nulls":3},"1.59.2","Chilled Water & Condensate Piping connections ",0,0]
[{"$nulls":3},"1.59.3","RAG c/w plenum box",0,0]
[{"$nulls":3},"1.59.4","Ducting including transformation piece, insulation, Diffusers (existing).",0,0]
[]
[{"$nulls":3},"1.60","IU.GH.1.62  (60 OF 74)",null,null,{"$f":"SUM(F360:F363)+SUM(G360:G363)","v":0}]
[{"$nulls":3},"1.60.1","Fan Coil Air-Conditioning Unit (incl Valve, Controller, Heater)",0,0]
[{"$nulls":3},"1.60.2","Chilled Water & Condensate Piping connections ",0,0]
[{"$nulls":3},"1.60.3","RAG c/w plenum box",0,0]
[{"$nulls":3},"1.60.4","Ducting including transformation piece, insulation, Diffusers (existing).",0,0]
[]
[{"$nulls":3},"1.61","IU.GH.1.63 (61 OF 74)",null,null,{"$f":"SUM(F366:F369)+SUM(G366:G369)","v":0}]
[{"$nulls":3},"1.61.1","Fan Coil Air-Conditioning Unit (incl Valve, Controller, Heater)",0,0]
[{"$nulls":3},"1.61.2","Chilled Water & Condensate Piping connections ",0,0]
[{"$nulls":3},"1.61.3","RAG c/w plenum box",0,0]
[{"$nulls":3},"1.61.4","Ducting including transformation piece, insulation, Diffusers (existing).",0,0]
[]
[{"$nulls":3},"1.62","IU.GH.1.64 (62 OF 74)",null,null,{"$f":"SUM(F372:F375)+SUM(G372:G375)","v":0}]
[{"$nulls":3},"1.62.1","Fan Coil Air-Conditioning Unit (incl Valve, Controller, Heater)",0,0]
[{"$nulls":3},"1.62.2","Chilled Water & Condensate Piping connections ",0,0]
[{"$nulls":3},"1.62.3","RAG c/w plenum box",0,0]
[{"$nulls":3},"1.62.4","Ducting including transformation piece, insulation, Diffusers (existing).",0,0]
[]
[{"$nulls":3},"1.63","IU.GH.1.65 (63 OF 74)",null,null,{"$f":"SUM(F378:F381)+SUM(G378:G381)","v":0}]
[{"$nulls":3},"1.63.1","Fan Coil Air-Conditioning Unit (incl Valve, Controller, Heater)",0,0]
[{"$nulls":3},"1.63.2","Chilled Water & Condensate Piping connections ",0,0]
[{"$nulls":3},"1.63.3","RAG c/w plenum box",0,0]
[{"$nulls":3},"1.63.4","Ducting including transformation piece, insulation, Diffusers (existing).",0,0]
[]
[{"$nulls":3},"1.64","IU.GH.1.66 (64 OF 74)",null,null,{"$f":"SUM(F384:F387)+SUM(G384:G387)","v":0}]
[{"$nulls":3},"1.64.1","Fan Coil Air-Conditioning Unit (incl Valve, Controller, Heater)",0,0]
[{"$nulls":3},"1.64.2","Chilled Water & Condensate Piping connections ",0,0]
[{"$nulls":3},"1.64.3","RAG c/w plenum box",0,0]
[{"$nulls":3},"1.64.4","Ducting including transformation piece, insulation, Diffusers (existing).",0,0]
[]
[{"$nulls":3},"1.65","IU.GH.1.67 (65 OF 74)",null,null,{"$f":"SUM(F390:F393)+SUM(G390:G393)","v":0}]
[{"$nulls":3},"1.65.1","Fan Coil Air-Conditioning Unit (incl Valve, Controller, Heater)",0,0]
[{"$nulls":3},"1.65.2","Chilled Water & Condensate Piping connections ",0,0]
[{"$nulls":3},"1.65.3","RAG c/w plenum box",0,0]
[{"$nulls":3},"1.65.4","Ducting including transformation piece, insulation, Diffusers (existing).",0,0]
[]
[{"$nulls":3},"1.66","IU.GH.1.68 (66 OF 74)",null,null,{"$f":"SUM(F396:F399)+SUM(G396:G399)","v":0}]
[{"$nulls":3},"1.66.1","Fan Coil Air-Conditioning Unit (incl Valve, Controller, Heater)",0,0]
[{"$nulls":3},"1.66.2","Chilled Water & Condensate Piping connections ",0,0]
[{"$nulls":3},"1.66.3","RAG c/w plenum box",0,0]
[{"$nulls":3},"1.66.4","Ducting including transformation piece, insulation, Diffusers (existing).",0,0]
[]
[{"$nulls":3},"1.67","IU.GH.1.69 (67 OF 74)",null,null,{"$f":"SUM(F402:F405)+SUM(G402:G405)","v":0}]
[{"$nulls":3},"1.67.1","Fan Coil Air-Conditioning Unit (incl Valve, Controller, Heater)",0,0]
[{"$nulls":3},"1.67.2","Chilled Water & Condensate Piping connections ",0,0]
[{"$nulls":3},"1.67.3","RAG c/w plenum box",0,0]
[{"$nulls":3},"1.67.4","Ducting including transformation piece, insulation, Diffusers (existing).",0,0]
[]
[{"$nulls":3},"1.68","IU.GH.1.70 (68 OF 74)",null,null,{"$f":"SUM(F408:F411)+SUM(G408:G411)","v":0}]
[{"$nulls":3},"1.68.1","Fan Coil Air-Conditioning Unit (incl Valve, Controller, Heater)",0,0]
[{"$nulls":3},"1.68.2","Chilled Water & Condensate Piping connections ",0,0]
[{"$nulls":3},"1.68.3","RAG c/w plenum box",0,0]
[{"$nulls":3},"1.68.4","Ducting including transformation piece, insulation, Diffusers (existing).",0,0]
[]
[{"$nulls":3},"1.69","IU.GH.1.71 (69 OF 74)",null,null,{"$f":"SUM(F414:F417)+SUM(G414:G417)","v":0}]
[{"$nulls":3},"1.69.1","Fan Coil Air-Conditioning Unit (incl Valve, Controller, Heater)",0,0]
[{"$nulls":3},"1.69.2","Chilled Water & Condensate Piping connections ",0,0]
[{"$nulls":3},"1.69.3","RAG c/w plenum box",0,0]
[{"$nulls":3},"1.69.4","Ducting including transformation piece, insulation, Diffusers (existing).",0,0]
[]
[{"$nulls":3},"1.70","IU.GH.1.72 (70 OF 74)",null,null,{"$f":"SUM(F420:F423)+SUM(G420:G423)","v":0}]
[{"$nulls":3},"1.70.1","Fan Coil Air-Conditioning Unit (incl Valve, Controller, Heater)",0,0]
[{"$nulls":3},"1.70.2","Chilled Water & Condensate Piping connections ",0,0]
[{"$nulls":3},"1.70.3","RAG c/w plenum box",0,0]
[{"$nulls":3},"1.70.4","Ducting including transformation piece, insulation, Diffusers (existing).",0,0]
[]
[{"$nulls":3},"1.71","IU.GH.1.73 (71 OF 74)",null,null,{"$f":"SUM(F426:F429)+SUM(G426:G429)","v":0}]
[{"$nulls":3},"1.71.1","Fan Coil Air-Conditioning Unit (incl Valve, Controller, Heater)",0,0]
[{"$nulls":3},"1.71.2","Chilled Water & Condensate Piping connections ",0,0]
[{"$nulls":3},"1.71.3","RAG c/w plenum box",0,0]
[{"$nulls":3},"1.71.4","Ducting including transformation piece, insulation, Diffusers (existing).",0,0]
[]
[{"$nulls":3},"1.72","IU.GH.1.74 (72 OF 74)",null,null,{"$f":"SUM(F432:F435)+SUM(G432:G435)","v":0}]
[{"$nulls":3},"1.72.1","Fan Coil Air-Conditioning Unit (incl Valve, Controller, Heater)",0,0]
[{"$nulls":3},"1.72.2","Chilled Water & Condensate Piping connections ",0,0]
[{"$nulls":3},"1.72.3","RAG c/w plenum box",0,0]
[{"$nulls":3},"1.72.4","Ducting including transformation piece, insulation, Diffusers (existing).",0,0]
[]
[{"$nulls":3},"1.73","IU.GH.1.75 (73 OF 74)",null,null,{"$f":"SUM(F438:F441)+SUM(G438:G441)","v":0}]
[{"$nulls":3},"1.73.1","Fan Coil Air-Conditioning Unit (incl Valve, Controller, Heater)",0,0]
[{"$nulls":3},"1.73.2","Chilled Water & Condensate Piping connections ",0,0]
[{"$nulls":3},"1.73.3","RAG c/w plenum box",0,0]
[{"$nulls":3},"1.73.4","Ducting including transformation piece, insulation, Diffusers (existing).",0,0]
[]
[{"$nulls":3},"1.74","IU.GH.1.76 (74 OF 74)",null,null,{"$f":"SUM(F444:F447)+SUM(G444:G447)","v":0}]
[{"$nulls":3},"1.74.1","Fan Coil Air-Conditioning Unit (incl Valve, Controller, Heater)",0,0]
[{"$nulls":3},"1.74.2","Chilled Water & Condensate Piping connections ",0,0]
[{"$nulls":3},"1.74.3","RAG c/w plenum box",0,0]
[{"$nulls":3},"1.74.4","Ducting including transformation piece, insulation, Diffusers (existing).",0,0]
[]
[]
[{"$nulls":3},"1.75","Drain Piping",null,null,{"$f":"SUM(F451+G451)","v":0}]
[{"$nulls":3},"1.75.1","UPVC Drain piping c/w all bends, P-traps and outlets",0,0]
[{"$nulls":4},"SUB TOTAL ITEM 1",null,null,{"$f":"SUM(H5:H451)","v":0}]

{"sheet":"B8","index":8,"n_rows":181,"n_cols":8,"rows_kept":181,"merged":[[0,4,0,7]]}
[{"$nulls":4},"BILL NO 8: BLOCK H  FAN COIL UNIT SUPPLY, COMMISSION & INSTALLATION"]
[{"$nulls":4},"DESCRIPTION","SUPPLY \nRATE","INSTALLATION RATE","AMOUNT"]
[{"$nulls":4},"FAN COIL UNITS "]
["g",null,null,"1","GROUND FLOOR"]
["g","HA 1",null,"1.1","IU.H.0.01 (1 OF 29)",null,null,{"$f":"SUM(F6:F9)+SUM(G6:G9)","v":0}]
["g","HA 1",null,"1.1.1","Fan Coil Air-Conditioning Unit (incl Valve, Controller, Heater)",0,0]
["g","HA 1",null,"1.1.2","Chilled Water & Condensate Piping connections ",0,0]
["g","HA 1",null,"1.1.3","RAG c/w plenum box",0,0]
["g","HA 1",null,"1.1.4","Ducting including transformation piece, insulation, Diffusers (existing).",0,0]
["g","HA 1"]
["g","HA 1",null,"1.2","IU.H.0.02  (2 OF 29)",null,null,{"$f":"SUM(F12:F15)+SUM(G12:G15)","v":0}]
["g","HA 1",null,"1.2.1","Fan Coil Air-Conditioning Unit (incl Valve, Controller, Heater)",0,0]
["g","HA 1",null,"1.2.2","Chilled Water & Condensate Piping connections ",0,0]
["g","HA 1",null,"1.2.3","RAG c/w plenum box",0,0]
["g","HA 1",null,"1.2.4","Ducting including transformation piece, insulation, Diffusers (existing).",0,0]
["g","HA 1"]
["g","HA 1",null,"1.3","IU.H.0.03 (3 OF 29)",null,null,{"$f":"SUM(F18:F21)+SUM(G18:G21)","v":0}]
["g","HA 1",null,"1.3.1","Fan Coil Air-Conditioning Unit (incl Valve, Controller, Heater)",0,0]
["g","HA 1",null,"1.3.2","Chilled Water & Condensate Piping connections ",0,0]
["g","HA 1",null,"1.3.3","RAG c/w plenum box",0,0]
["g","HA 1",null,"1.3.4","Ducting including transformation piece, insulation, Diffusers (existing).",0,0]
["g","HA 1"]
["g","HA 1",null,"1.4","IU.H.0.04 (4 OF 29)",null,null,{"$f":"SUM(F24:F27)+SUM(G24:G27)","v":0}]
["g","HA 1",null,"1.4.1","Fan Coil Air-Conditioning Unit (incl Valve, Controller, Heater)",0,0]
["g","HA 1",null,"1.4.2","Chilled Water & Condensate Piping connections ",0,0]
["g","HA 1",null,"1.4.3","RAG c/w plenum box",0,0]
["g","HA 1",null,"1.4.4","Ducting including transformation piece, insulation, Diffusers (existing).",0,0]
["g","HA 1"]
["g","HA 1",null,"1.5","IU.H.0.05 (5 OF 29)",null,null,{"$f":"SUM(F30:F33)+SUM(G30:G33)","v":0}]
["g","HA 1",null,"1.5.1","Fan Coil Air-Conditioning Unit (incl Valve, Controller, Heater)",0,0]
["g","HA 1",null,"1.5.2","Chilled Water & Condensate Piping connections ",0,0]
["g","HA 1",null,"1.5.3","RAG c/w plenum box",0,0]
["g","HA 1",null,"1.5.4","Ducting including transformation piece, insulation, Diffusers (existing).",0,0]
[]
["g","CA 1",null,"1.6","IU.H.0.06 (6 OF 29)",null,null,{"$f":"SUM(F36:F39)+SUM(G36:G39)","v":0}]
["g","CA 1",null,"1.6.1","Fan Coil Air-Conditioning Unit (incl Valve, Controller, Heater)",0,0]
["g","CA 1",null,"1.6.2","Chilled Water & Condensate Piping connections ",0,0]
[{"$nulls":3},"1.6.3","RAG c/w plenum box",0,0]
[{"$nulls":3},"1.6.4","Ducting including transformation piece, insulation, Diffusers (existing).",0,0]
[]
[{"$nulls":3},"1.7","IU.H.0.07 (7 OF 29)",null,null,{"$f":"SUM(F42:F45)+SUM(G42:G45)","v":0}]
[{"$nulls":3},"1.7.1","Fan Coil Air-Conditioning Unit (incl Valve, Controller, Heater)",0,0]
[{"$nulls":3},"1.7.2","Chilled Water & Condensate Piping connections ",0,0]
[{"$nulls":3},"1.7.3","RAG c/w plenum box",0,0]
[{"$nulls":3},"1.7.4","Ducting including transformation piece, insulation, Diffusers (existing).",0,0]
[]
[{"$nulls":3},"1.8","IU.H.0.08 (8 OF 29)",null,null,{"$f":"SUM(F48:F51)+SUM(G48:G51)","v":0}]
[{"$nulls":3},"1.8.1","Fan Coil Air-Conditioning Unit (incl Valve, Controller, Heater)",0,0]
[{"$nulls":3},"1.8.2","Chilled Water & Condensate Piping connections ",0,0]
[{"$nulls":3},"1.8.3","RAG c/w plenum box",0,0]
[{"$nulls":3},"1.8.4","Ducting including transformation piece, insulation, Diffusers (existing).",0,0]
[]
[{"$nulls":3},"1.9","IU.H.0.09 (9 OF 29)",null,null,{"$f":"SUM(F54:F57)+SUM(G54:G57)","v":0}]
[{"$nulls":3},"1.9.1","Fan Coil Air-Conditioning Unit (incl Valve, Controller, Heater)",0,0]
[{"$nulls":3},"1.9.2","Chilled Water & Condensate Piping connections ",0,0]
[{"$nulls":3},"1.9.3","RAG c/w plenum box",0,0]
[{"$nulls":3},"1.9.4","Ducting including transformation piece, insulation, Diffusers (existing).",0,0]
[]
[{"$nulls":3},"1.10","IU.H.0.10 (10 OF 29)",null,null,{"$f":"SUM(F60:F63)+SUM(G60:G63)","v":0}]
[{"$nulls":3},"1.10.1","Fan Coil Air-Conditioning Unit (incl Valve, Controller, Heater)",0,0]
[{"$nulls":3},"1.10.2","Chilled Water & Condensate Piping connections ",0,0]
[{"$nulls":3},"1.10.3","RAG c/w plenum box",0,0]
[{"$nulls":3},"1.10.4","Ducting including transformation piece, insulation, Diffusers (existing).",0,0]
[]
[{"$nulls":3},"1.11","IU.H.0.11 (11 OF 29)",null,null,{"$f":"SUM(F66:F69)+SUM(G66:G69)","v":0}]
[{"$nulls":3},"1.11.1","Fan Coil Air-Conditioning Unit (incl Valve, Controller, Heater)",0,0]
[{"$nulls":3},"1.11.2","Chilled Water & Condensate Piping connections ",0,0]
[{"$nulls":3},"1.11.3","RAG c/w plenum box",0,0]
[{"$nulls":3},"1.11.4","Ducting including transformation piece, insulation, Diffusers (existing).",0,0]
[]
[{"$nulls":3},"1.12","IU.H.0.12 (12 OF 29)",null,null,{"$f":"SUM(F72:F75)+SUM(G72:G75)","v":0}]
[{"$nulls":3},"1.12.1","Fan Coil Air-Conditioning Unit (incl Valve, Controller, Heater)",0,0]
[{"$nulls":3},"1.12.2","Chilled Water & Condensate Piping connections ",0,0]
[{"$nulls":3},"1.12.3","RAG c/w plenum box",0,0]
[{"$nulls":3},"1.12.4","Ducting including transformation piece, insulation, Diffusers (existing).",0,0]
[]
[{"$nulls":3},"1.13","IU.H.0.13 (13 OF 29)",null,null,{"$f":"SUM(F78:F81)+SUM(G78:G81)","v":0}]
[{"$nulls":3},"1.13.1","Fan Coil Air-Conditioning Unit (incl Valve, Controller, Heater)",0,0]
[{"$nulls":3},"1.13.2","Chilled Water & Condensate Piping connections ",0,0]
[{"$nulls":3},"1.13.3","RAG c/w plenum box",0,0]
[{"$nulls":3},"1.13.4","Ducting including transformation piece, insulation, Diffusers (existing).",0,0]
[]
[{"$nulls":3},"1.14","IU.H.0.14 (14 OF 29)",null,null,{"$f":"SUM(F84:F87)+SUM(G84:G87)","v":0}]
[{"$nulls":3},"1.14.1","Fan Coil Air-Conditioning Unit (incl Valve, Controller, Heater)",0,0]
[{"$nulls":3},"1.14.2","Chilled Water & Condensate Piping connections ",0,0]
[{"$nulls":3},"1.14.3","RAG c/w plenum box",0,0]
[{"$nulls":3},"1.14.4","Ducting including transformation piece, insulation, Diffusers (existing).",0,0]
[]
[{"$nulls":3},"1.15","IU.H.0.15 (15 OF 29)",null,null,{"$f":"SUM(F90:F93)+SUM(G90:G93)","v":0}]
[{"$nulls":3},"1.15.1","Fan Coil Air-Conditioning Unit (incl Valve, Controller, Heater)",0,0]
[{"$nulls":3},"1.15.2","Chilled Water & Condensate Piping connections ",0,0]
[{"$nulls":3},"1.15.3","RAG c/w plenum box",0,0]
[{"$nulls":3},"1.15.4","Ducting including transformation piece, insulation, Diffusers (existing).",0,0]
[]
[{"$nulls":3},"1.16","IU.H.0.16 (16 OF 29)",null,null,{"$f":"SUM(F96:F99)+SUM(G96:G99)","v":0}]
[{"$nulls":3},"1.16.1","Fan Coil Air-Conditioning Unit (incl Valve, Controller, Heater)",0,0]
[{"$nulls":3},"1.16.2","Chilled Water & Condensate Piping connections ",0,0]
[{"$nulls":3},"1.16.3","RAG c/w plenum box",0,0]
[{"$nulls":3},"1.16.4","Ducting including transformation piece, insulation, Diffusers (existing).",0,0]
[]
[{"$nulls":3},"1.17","IU.H.0.17 (17 OF 29)",null,null,{"$f":"SUM(F102:F105)+SUM(G102:G105)","v":0}]
[{"$nulls":3},"1.17.1","Fan Coil Air-Conditioning Unit (incl Valve, Controller, Heater)",0,0]
[{"$nulls":3},"1.17.2","Chilled Water & Condensate Piping connections ",0,0]
[{"$nulls":3},"1.17.3","RAG c/w plenum box",0,0]
[{"$nulls":3},"1.17.4","Ducting including transformation piece, insulation, Diffusers (existing).",0,0]
[]
[{"$nulls":3},"1.18","IU.H.0.18 (18 OF 29)",null,null,{"$f":"SUM(F108:F111)+SUM(G108:G111)","v":0}]
[{"$nulls":3},"1.18.1","Fan Coil Air-Conditioning Unit (incl Valve, Controller, Heater)",0,0]
[{"$nulls":3},"1.18.2","Chilled Water & Condensate Piping connections ",0,0]
[{"$nulls":3},"1.18.3","RAG c/w plenum box",0,0]
[{"$nulls":3},"1.18.4","Ducting including transformation piece, insulation, Diffusers (existing).",0,0]
[]
[{"$nulls":3},"1.9","IU.H.0.19 (19 OF 29)",null,null,{"$f":"SUM(F114:F117)+SUM(G114:G117)","v":0}]
[{"$nulls":3},"1.9.1","Fan Coil Air-Conditioning Unit (incl Valve, Controller, Heater)",0,0]
[{"$nulls":3},"1.9.2","Chilled Water & Condensate Piping connections ",0,0]
[{"$nulls":3},"1.9.3","RAG c/w plenum box",0,0]
[{"$nulls":3},"1.9.4","Ducting including transformation piece, insulation, Diffusers (existing).",0,0]
[]
[{"$nulls":3},"1.10","IU.H.0.20 (20 OF 29)",null,null,{"$f":"SUM(F120:F123)+SUM(G120:G123)","v":0}]
[{"$nulls":3},"1.10.1","Fan Coil Air-Conditioning Unit (incl Valve, Controller, Heater)",0,0]
[{"$nulls":3},"1.10.2","Chilled Water & Condensate Piping connections ",0,0]
[{"$nulls":3},"1.10.3","RAG c/w plenum box",0,0]
[{"$nulls":3},"1.10.4","Ducting including transformation piece, insulation, Diffusers (existing).",0,0]
[]
[{"$nulls":3},"1.11","IU.H.0.21 (21 OF 29)",null,null,{"$f":"SUM(F126:F129)+SUM(G126:G129)","v":0}]
[{"$nulls":3},"1.11.1","Fan Coil Air-Conditioning Unit (incl Valve, Controller, Heater)",0,0]
[{"$nulls":3},"1.11.2","Chilled Water & Condensate Piping connections ",0,0]
[{"$nulls":3},"1.11.3","RAG c/w plenum box",0,0]
[{"$nulls":3},"1.11.4","Ducting including transformation piece, insulation, Diffusers (existing).",0,0]
[]
[{"$nulls":3},"1.12","IU.H.0.22 (22 OF 29)",null,null,{"$f":"SUM(F132:F135)+SUM(G132:G135)","v":0}]
[{"$nulls":3},"1.12.1","Fan Coil Air-Conditioning Unit (incl Valve, Controller, Heater)",0,0]
[{"$nulls":3},"1.12.2","Chilled Water & Condensate Piping connections ",0,0]
[{"$nulls":3},"1.12.3","RAG c/w plenum box",0,0]
[{"$nulls":3},"1.12.4","Ducting including transformation piece, insulation, Diffusers (existing).",0,0]
[]
[{"$nulls":3},"1.13","IU.H.0.23 (23 OF 29)",null,null,{"$f":"SUM(F138:F141)+SUM(G138:G141)","v":0}]
[{"$nulls":3},"1.13.1","Fan Coil Air-Conditioning Unit (incl Valve, Controller, Heater)",0,0]
[{"$nulls":3},"1.13.2","Chilled Water & Condensate Piping connections ",0,0]
[{"$nulls":3},"1.13.3","RAG c/w plenum box",0,0]
[{"$nulls":3},"1.13.4","Ducting including transformation piece, insulation, Diffusers (existing).",0,0]
[]
[{"$nulls":3},"1.14","IU.H.0.24 (24 OF 29)",null,null,{"$f":"SUM(F144:F147)+SUM(G144:G147)","v":0}]
[{"$nulls":3},"1.14.1","Fan Coil Air-Conditioning Unit (incl Valve, Controller, Heater)",0,0]
[{"$nulls":3},"1.14.2","Chilled Water & Condensate Piping connections ",0,0]
[{"$nulls":3},"1.14.3","RAG c/w plenum box",0,0]
[{"$nulls":3},"1.14.4","Ducting including transformation piece, insulation, Diffusers (existing).",0,0]
[]
[{"$nulls":3},"1.15","IU.H.0.25 (25 OF 29)",null,null,{"$f":"SUM(F150:F153)+SUM(G150:G153)","v":0}]
[{"$nulls":3},"1.15.1","Fan Coil Air-Conditioning Unit (incl Valve, Controller, Heater)",0,0]
[{"$nulls":3},"1.15.2","Chilled Water & Condensate Piping connections ",0,0]
[{"$nulls":3},"1.15.3","RAG c/w plenum box",0,0]
[{"$nulls":3},"1.15.4","Ducting including transformation piece, insulation, Diffusers (existing).",0,0]
[]
[{"$nulls":3},"1.16","IU.H.0.26 (26 OF 29)",null,null,{"$f":"SUM(F156:F159)+SUM(G156:G159)","v":0}]
[{"$nulls":3},"1.16.1","Fan Coil Air-Conditioning Unit (incl Valve, Controller, Heater)",0,0]
[{"$nulls":3},"1.16.2","Chilled Water & Condensate Piping connections ",0,0]
[{"$nulls":3},"1.16.3","RAG c/w plenum box",0,0]
[{"$nulls":3},"1.16.4","Ducting including transformation piece, insulation, Diffusers (existing).",0,0]
["g","OU1"]
["g","OU1",null,"1.17","IU.H.0.27 (27 OF 29)",null,null,{"$f":"SUM(F162:F165)+SUM(G162:G165)","v":0}]
["g","OU1",null,"1.17.1","Fan Coil Air-Conditioning Unit (incl Valve, Controller, Heater)",0,0]
["g",null,null,"1.17.2","Chilled Water & Condensate Piping connections ",0,0]
[1,null,null,"1.17.3","RAG c/w plenum box",0,0]
[1,null,null,"1.17.4","Ducting including transformation piece, insulation, Diffusers (existing).",0,0]
[1,"HA 1"]
[1,"HA 1",null,"1.18","IU.H.0.28 (28 OF 29)",null,null,{"$f":"SUM(F168:F171)+SUM(G168:G171)","v":0}]
[1,"HA 1",null,"1.18.1","Fan Coil Air-Conditioning Unit (incl Valve, Controller, Heater)",0,0]
[1,"HA 1",null,"1.18.2","Chilled Water & Condensate Piping connections ",0,0]
[1,"HA 1",null,"1.18.3","RAG c/w plenum box",0,0]
[1,"HA 1",null,"1.18.4","Ducting including transformation piece, insulation, Diffusers (existing).",0,0]
[1,"HA 1"]
[1,"HA 1",null,"1.19","IU.H.0.29 (29 OF 29)",null,null,{"$f":"SUM(F174:F177)+SUM(G174:G177)","v":0}]
[1,"HA 1",null,"1.19.1","Fan Coil Air-Conditioning Unit (incl Valve, Controller, Heater)",0,0]
[1,"HA 1",null,"1.19.2","Chilled Water & Condensate Piping connections ",0,0]
[1,"HA 1",null,"1.19.3","RAG c/w plenum box",0,0]
[1,"HA 1",null,"1.19.4","Ducting including transformation piece, insulation, Diffusers (existing).",0,0]
[1,"HA 1"]
[1,"HA 1",null,"1.20","Drain Piping",null,null,{"$f":"SUM(F180+G180)","v":0}]
[1,"HA 1",null,"1.20.1","UPVC Drain piping c/w all bends, P-traps and outlets",0,0]
[1,"HA 1",null,null,"SUB TOTAL ITEM 1",null,null,{"$f":"SUM(H4:H180)","v":0}]

{"sheet":"B9","index":9,"n_rows":176,"n_cols":5,"rows_kept":176,"merged":[[0,1,0,4],[175,0,175,3]]}
[null,"BILL NO 9: EXTRACT SYSTEMS"]
[null,"DESCRIPTION","SUPPLY RATE","INSTALLATION RATE","AMOUNT"]
["1","Toilet Extract System Block A1"]
["1.1","Fan (FAN-TEX-A-1) 400 l/s @ 280Pa Static "," R -   "," R -   "," R -   "]
["1.2","VSD"," R -   "," R -   "," R -   "]
["1.3","2off 1D Attenuators and Cowl"," R -   "," R -   "," R -   "]
["1.4","Uninsulated galvanised ducting transformation pieces "," R -   "," R -   "," R -   "]
["1.5","Balancing Dampers"," R -   "," R -   "," R -   "]
["1.6","250mm stand c/w anti vibration pads"," R -   "," R -   "," R -   "]
["1.7","Annual Timer "," R -   "," R -   "," R -   "]
[]
["2","Toilet Extract System Block A2"]
["2.1","Fan (FAN-TEX-A-2) 400 l/s @ 280Pa Static "," R -   "," R -   "," R -   "]
["2.2","VSD"," R -   "," R -   "," R -   "]
["2.3","2off 1D Attenuators and Cowl"," R -   "," R -   "," R -   "]
["2.4","Uninsulated galvanised ducting transformation pieces "," R -   "," R -   "," R -   "]
["2.5","Balancing Dampers"," R -   "," R -   "," R -   "]
["2.6","250mm stand c/w anti vibration pads"," R -   "," R -   "," R -   "]
["2.7","Annual Timer "," R -   "," R -   "," R -   "]
["2.8","250mm stand c/w anti vibration pads"," R -   "," R -   "," R -   "]
[]
["3","Ceiling Extract System Block A"]
["3.1","Ceiling Mounted extract fans Ø200 (3 OFF)"," R -   "," R -   "," R -   "]
["3.2","Uninsulated galvanised ducting transformation pieces "," R -   "," R -   "," R -   "]
["3.3","Flex ducting"," R -   "," R -   "," R -   "]
["3.4","Timer"," R -   "," R -   "," R -   "]
[]
["4","Toilet Extract System Block B1"]
["4.1","Fan (FAN-TEX-A-1) 300 l/s @ 200Pa Static "," R -   "," R -   "," R -   "]
["4.2","VSD"," R -   "," R -   "," R -   "]
["4.3","2off 1D Attenuators and Cowl"," R -   "," R -   "," R -   "]
["4.4","Uninsulated galvanised ducting transformation pieces "," R -   "," R -   "," R -   "]
["4.5","Balancing Dampers"," R -   "," R -   "," R -   "]
["4.6","250mm stand c/w anti vibration pads"," R -   "," R -   "," R -   "]
["4.7","Annual Timer "," R -   "," R -   "," R -   "]
["4.8","250mm stand c/w anti vibration pads"," R -   "," R -   "," R -   "]
["4.9","Flex ducting"," R -   "," R -   "," R -   "]
["4.10","Extract air disc valve (T1) Ø200"," R -   "," R -   "," R -   "]
["4.11","Electrical connection"," R -   "," R -   "," R -   "]
[]
["5","Toilet Extract System Block B2"," R -   "," R -   "," R -   "]
["5.1","Fan (FAN-TEX-A-1) 300 l/s @ 200Pa Static "," R -   "," R -   "," R -   "]
["5.2","VSD"," R -   "," R -   "," R -   "]
["5.3","2off 1D Attenuators and Cowl"," R -   "," R -   "," R -   "]
["5.4","Uninsulated galvanised ducting transformation pieces "," R -   "," R -   "," R -   "]
["5.5","Balancing Dampers"," R -   "," R -   "," R -   "]
["5.6","250mm stand c/w anti vibration pads"," R -   "," R -   "," R -   "]
["5.7","Annual Timer "," R -   "," R -   "," R -   "]
["5.8","250mm stand c/w anti vibration pads"]
[]
["6","Ceiling Extract System Block B"]
["6.1","Ceiling Mounted extract fans Ø200"," R -   "," R -   "," R -   "]
["6.2","Uninsulated galvanised ducting transformation pieces "," R -   "," R -   "," R -   "]
["6.3","Flex ducting"," R -   "," R -   "," R -   "]
["6.4","Timer"," R -   "," R -   "," R -   "]
[]
["7","Toilet Extract System Block D1"]
["7.1","Fan (FAN-TEX-A-1) 400 l/s @ 280Pa Static "," R -   "," R -   "," R -   "]
["7.2","VSD"," R -   "," R -   "," R -   "]
["7.3","2off 1D Attenuators and Cowl"," R -   "," R -   "," R -   "]
["7.4","Uninsulated galvanised ducting transformation pieces "," R -   "," R -   "," R -   "]
["7.5","Balancing Dampers"," R -   "," R -   "," R -   "]
["7.6","250mm stand c/w anti vibration pads"," R -   "," R -   "," R -   "]
["7.7","Annual Timer "," R -   "," R -   "," R -   "]
[]
["8","Toilet Extract System Block D2"]
["8.1","Fan (FAN-TEX-A-2) 400 l/s @ 280Pa Static "," R -   "," R -   "," R -   "]
["8.2","VSD"," R -   "," R -   "," R -   "]
["8.3","2off 1D Attenuators and Cowl"," R -   "," R -   "," R -   "]
["8.4","Uninsulated galvanised ducting transformation pieces "," R -   "," R -   "," R -   "]
["8.5","Balancing Dampers"," R -   "," R -   "," R -   "]
["8.6","250mm stand c/w anti vibration pads"," R -   "," R -   "," R -   "]
["8.7","Annual Timer "," R -   "," R -   "," R -   "]
["8.8","250mm stand c/w anti vibration pads",0,0,{"$f":"C74+D74","v":0}]
[]
["9","Ceiling Extract System Block D"]
["9.1","Ceiling Mounted extract fans Ø200 (4 OFF)"," R -   "," R -   "," R -   "]
["9.2","Uninsulated galvanised ducting transformation pieces "," R -   "," R -   "," R -   "]
["9.3","Flex ducting"," R -   "," R -   "," R -   "]
["9.4","Timer"," R -   "," R -   "," R -   "]
[]
["10","Toilet Extract System Block E1"]
["10.1","Fan (FAN-TEX-A-1) 400 l/s @ 280Pa Static "," R -   "," R -   "," R -   "]
["10.2","VSD"," R -   "," R -   "," R -   "]
["10.3","2off 1D Attenuators and Cowl"," R -   "," R -   "," R -   "]
["10.4","Uninsulated galvanised ducting transformation pieces "," R -   "," R -   "," R -   "]
["10.5","Balancing Dampers"," R -   "," R -   "," R -   "]
["10.6","250mm stand c/w anti vibration pads"," R -   "," R -   "," R -   "]
["10.7","Annual Timer "," R -   "," R -   "," R -   "]
[]
["11","Toilet Extract System Block E2"]
["11.1","Fan (FAN-TEX-A-2) 400 l/s @ 280Pa Static "," R -   "," R -   "," R -   "]
["11.2","VSD"," R -   "," R -   "," R -   "]
["11.3","2off 1D Attenuators and Cowl"," R -   "," R -   "," R -   "]
["11.4","Uninsulated galvanised ducting transformation pieces "," R -   "," R -   "," R -   "]
["11.5","Balancing Dampers"," R -   "," R -   "," R -   "]
["11.6","250mm stand c/w anti vibration pads"," R -   "," R -   "," R -   "]
["11.7","Annual Timer "," R -   "," R -   "," R -   "]
["11.8","250mm stand c/w anti vibration pads",0,0,{"$f":"C99+D99","v":0}]
[]
["12","Ceiling Extract System Block E"]
["12.1","Ceiling Mounted extract fans Ø200"," R -   "," R -   "," R -   "]
["12.2","Uninsulated galvanised ducting transformation pieces "," R -   "," R -   "," R -   "]
["12.3","Flex ducting"," R -   "," R -   "," R -   "]
["12.4","Timer"," R -   "," R -   "," R -   "]
[]
["13","Toilet Extract System Block F1"]
["13.1","Fan (FAN-TEX-A-1) 400 l/s @ 280Pa Static "," R -   "," R -   "," R -   "]
["13.2","VSD"," R -   "," R -   "," R -   "]
["13.3","2off 1D Attenuators and Cowl"," R -   "," R -   "," R -   "]
["13.4","Uninsulated galvanised ducting transformation pieces "," R -   "," R -   "," R -   "]
["13.5","Balancing Dampers"," R -   "," R -   "," R -   "]
["13.6","250mm stand c/w anti vibration pads"," R -   "," R -   "," R -   "]
["13.7","Annual Timer "," R -   "," R -   "," R -   "]
[]
["14","Toilet Extract System Block F2"]
["14.1","Fan (FAN-TEX-A-2) 400 l/s @ 280Pa Static "," R -   "," R -   "," R -   "]
["14.2","VSD"," R -   "," R -   "," R -   "]
["14.3","2off 1D Attenuators and Cowl"," R -   "," R -   "," R -   "]
["14.4","Uninsulated galvanised ducting transformation pieces "," R -   "," R -   "," R -   "]
["14.5","Balancing Dampers"," R -   "," R -   "," R -   "]
["14.6","250mm stand c/w anti vibration pads"," R -   "," R -   "," R -   "]
["14.7","Annual Timer "," R -   "," R -   "," R -   "]
["14.8","250mm stand c/w anti vibration pads",0,0,{"$f":"C124+D124","v":0}]
[]
["15","Ceiling Extract System Block F"]
["15.1","Ceiling Mounted extract fans Ø200"," R -   "," R -   "," R -   "]
["15.2","Uninsulated galvanised ducting transformation pieces "," R -   "," R -   "," R -   "]
["15.3","Flex ducting"," R -   "," R -   "," R -   "]
["15.4","Timer"," R -   "," R -   "," R -   "]
[]
["16","Toilet Extract System Block G1"]
["16.1","Fan (FAN-TEX-A-1) 300 l/s @ 200Pa Static "," R -   "," R -   "," R -   "]
["16.2","VSD"," R -   "," R -   "," R -   "]
["16.3","2off 1D Attenuators and Cowl"," R -   "," R -   "," R -   "]
["16.4","Uninsulated galvanised ducting transformation pieces "," R -   "," R -   "," R -   "]
["16.5","Balancing Dampers"," R -   "," R -   "," R -   "]
["16.6","250mm stand c/w anti vibration pads"," R -   "," R -   "," R -   "]
["16.7","Annual Timer "," R -   "," R -   "," R -   "]
[]
["17","Toilet Extract System Block G2"]
["17.1","Fan (FAN-TEX-A-2) 300 l/s @ 200 Pa Static "," R -   "," R -   "," R -   "]
["17.2","VSD"," R -   "," R -   "," R -   "]
["17.3","2off 1D Attenuators and Cowl"," R -   "," R -   "," R -   "]
["17.4","Uninsulated galvanised ducting transformation pieces "," R -   "," R -   "," R -   "]
["17.5","Balancing Dampers"," R -   "," R -   "," R -   "]
["17.6","250mm stand c/w anti vibration pads"," R -   "," R -   "," R -   "]
["17.7","Annual Timer "," R -   "," R -   "," R -   "]
["17.8","250mm stand c/w anti vibration pads",0,0,{"$f":"C149+D149","v":0}]
[]
["18","Toilet Extract System Block H1"]
["18.1","Fan (FAN-TEX-A-1) 300 l/s @ 200Pa Static "," R -   "," R -   "," R -   "]
["18.2","VSD"," R -   "," R -   "," R -   "]
["18.3","2off 1D Attenuators and Cowl"," R -   "," R -   "," R -   "]
["18.4","Uninsulated galvanised ducting transformation pieces "," R -   "," R -   "," R -   "]
["18.5","Balancing Dampers"," R -   "," R -   "," R -   "]
["18.6","250mm stand c/w anti vibration pads"," R -   "," R -   "," R -   "]
["18.7","Annual Timer "," R -   "," R -   "," R -   "]
[]
["19","Toilet Extract System Block H2"]
["19.1","Fan (FAN-TEX-A-2) 300 l/s @ 200 Pa Static "," R -   "," R -   "," R -   "]
["19.2","VSD"," R -   "," R -   "," R -   "]
["19.3","2off 1D Attenuators and Cowl"," R -   "," R -   "," R -   "]
["19.4","Uninsulated galvanised ducting transformation pieces "," R -   "," R -   "," R -   "]
["19.5","Balancing Dampers"," R -   "," R -   "," R -   "]
["19.6","250mm stand c/w anti vibration pads"," R -   "," R -   "," R -   "]
["19.7","Annual Timer "," R -   "," R -   "," R -   "]
["19.8","250mm stand c/w anti vibration pads",0,0,{"$f":"C168+D168","v":0}]
[]
["20","Ceiling Extract System Block GH"]
["20.1","Ceiling Mounted extract fans Ø200"," R -   "," R -   "," R -   "]
["20.2","Uninsulated galvanised ducting transformation pieces "," R -   "," R -   "," R -   "]
["20.3","Flex ducting"," R -   "," R -   "," R -   "]
["20.4","Timer"," R -   "," R -   "," R -   "]
[]
["BILL 9 TOTAL TO SUMMARY",{"$nulls":3},{"$f":"SUM(E4:E175)","v":0}]

{"sheet":"B10","index":10,"n_rows":35,"n_cols":4,"rows_kept":35,"merged":[[0,1,0,3],[34,0,34,2]]}
[null,"BILL NO 10: MISCELLANEOUS"]
[]
[null,"DESCRIPTION","SUPPLY \nRATE","AMOUNT"]
[]
["1.0","General Items"]
[]
["1.1","As Built Drawings",0,{"$f":"C7","v":0}]
[]
["1.2","O & M Manuals",0,{"$f":"C9","v":0}]
[]
["1.3","Testing and Commissioning of Full HVAC Systems",0,{"$f":"C11","v":0}]
[]
["1.4","Maintenance Guarantee (12 Month)",0,{"$f":"C13","v":0}]
[]
["2.0","All items that were not included in the BOQ but is required to ensure that all systems function properly and without fault. As well as all items specified in the tender spec that is not listed in the BOQ.",0,{"$f":"C15","v":0}]
[]
[null,"Note:"]
[null,"Please list all additional items on this Bill below"]
[]
[null,"-"]
[null,"-"]
[null,"-"]
[null,"-"]
[null,"-"]
[null,"-"]
[null,"-"]
[null,"-"]
[null,"-"]
[null,"-"]
[null,"-"]
[]
[]
[]
[]
["BILL 10 TOTAL TO SUMMARY",null,null,{"$f":"SUM(D4:D34)","v":0}]